Workbook

Sheet Um skjalið
B3: Reiknilíkan KPMG v/ áhrifa af breytingu laga um atvinnutryggingar
B4: Útgáfunúmer: | C4: 1.0
B5: Útgáfudagur: | C5: 2020-03-21
B7: Litir reita (e. cell colour)
B8: Forsendureitir eru gráir
B9: Hvítir reitir innihalda útreikning eða föst gildi
B11: Vísanir
B12: Lög og reglur
B13: Lög um atvinnuleysistryggingar
B14: Lög um Ábyrgðasjóð launa
B15: Lög um breytingu á lögum um atvinnuleysistryggingar og lögum um Ábyrgðasjóð launa (minnkað starfshlutfall)
B17: KPMG
B18: Heimasíða KPMG - Skatta- og lögfræðileg álitamál vegna áhrifa COVID-19
B19: Heimasíða KPMG - Stýring í ólgusjó

Sheet Samantekt
AC2: Fyrir gröf >
B3: Samantekt á heildaráhrifum
B4: Liður | C4: Fyrir | D4: Eftir | E4: Áhrif | F4: %
B5: Laun starfsmanna frá launagreiðanda | C5: =+SUM(Launatafla[Meðal heildarlaun sl. 3M fyrir skatta]) -> 71400000 | D5: =+SUM(Launatafla[Laun frá launagreiðanda]) -> 36210000 | E5: =+D5-C5 -> -35190000 | F5: =+IFERROR((D5-C5)/C5,"-") -> -0.4928571429 | AD5: Heildarlaun með bótum | AE5: =D17 -> 50988092.2
AD6: Töpuð heildarlaun | AE6: =-E17 -> 20411907.8
B7: Launatengd gjöld
B8: Skylduframlag launagreiðanda í lífeyrissjóð | C8: =+C$5*Mótframl_lífeyrissj -> 8211000 | D8: =+D$5*Mótframl_lífeyrissj -> 4164150 | E8: =+D8-C8 -> -4046850 | F8: =+IFERROR((D8-C8)/C8,"-") -> -0.4928571429 | AD8: Kostnaður launagreiðanda | AE8: =+D15 -> 44305560.23
B9: Mótframlag launagreiðanda í séreignasjóð | C9: =+C$5*Mótframl_séreignasj -> 1428000 | D9: =+D$5*Mótframl_séreignasj -> 724200 | E9: =+D9-C9 -> -703800 | F9: -0.4928571429 | AD9: Lækkun kostnaðar launagreiðanda | AE9: =-E15 -> 43057516.27
B10: Endurhæfingarsjóður | C10: =+C$5*Endurhæfingarsj -> 71400 | D10: =+D$5*Endurhæfingarsj -> 36210 | E10: -35190 | F10: -0.4928571429
B11: Tryggingagjald | C11: =+SUM(C5,C8:C9)*Tryggingagj -> 5145976.5 | D11: =+SUM(D5,D8:D9)*Tryggingagj -> 2609745.225 | E11: -2536231.275 | F11: -0.4928571429
B12: Mótframlag launagreiðanda í stéttarfélag | C12: =+C$5*Mótframl_stéttarf -> 1106700 | D12: =+D$5*Mótframl_stéttarf -> 561255 | E12: -545445 | F12: -0.4928571429
B13: Launatengd gjöld alls | C13: =SUM(C8:C12) -> 15963076.5 | D13: =SUM(D8:D12) -> 8095560.225 | E13: -7867516.275 | F13: -0.4928571429
B15: Kostnaður launagreiðanda alls | C15: =+C5+C13 -> 87363076.5 | D15: =+D5+D13 -> 44305560.23 | E15: -43057516.27 | F15: =+IFERROR((D15-C15)/C15,"-") -> -0.4928571429
B17: Heildarlaun starfsmanna fyrir skatta | C17: =+SUM(Launatafla[Meðal heildarlaun sl. 3M fyrir skatta]) -> 71400000 | D17: =+SUM(Launatafla[Heildarlaun]) -> 50988092.2 | E17: -20411907.8 | F17: =+IFERROR((D17-C17)/C17,"-") -> -0.2858810616
B19: Starfsmaður 1 | C19: << Veldu starfsmann hér
B21: Samantekt á áhrifum fyrir einstaka starfsmenn
B22: Liður | C22: Fyrir | D22: Eftir | E22: Áhrif | F22: %
B23: Heildarlaun fyrir skatta | C23: =+SUMIFS(Launatafla[Meðal heildarlaun sl. 3M fyrir skatta],Launatafla[Starfsmaður],Valinn_starfsm) -> 300000 | D23: =+SUMIFS(Launatafla[Heildarlaun],Launatafla[Starfsmaður],Valinn_starfsm) -> 300000 | E23: =+D23-C23 -> 0 | F23: =+IFERROR((D23-C23)/C23,"-") -> 0
B25: Iðgjöld starfsmanns
B26: Lífeyrissjóður | C26: =+C23*Skylduframlag_launþ -> 12000 | D26: =+D23*Skylduframlag_launþ -> 12000 | E26: =+D26-C26 -> 0 | F26: =+IFERROR((D26-C26)/C26,"-") -> 0
B27: Séreignasjóður | C27: =+C23*Séreignasj_launþ -> 12000 | D27: =+D23*Séreignasj_launþ -> 12000 | E27: 0 | F27: 0
B28: Stéttarfélag | C28: =+C23*Stéttarf_launþ -> 2100 | D28: =+D23*Stéttarf_launþ -> 2100 | E28: 0 | F28: 0
B29: Samtals | C29: =SUM(C26:C28) -> 26100 | D29: =SUM(D26:D28) -> 26100 | E29: 0 | F29: 0
B31: Tekjuskattur
B32: Tekjuskattsstofn | C32: =+C23-SUM(C26:C27) -> 276000 | D32: =+D23-SUM(D26:D27) -> 276000 | E32: =+D32-C32 -> 0 | F32: =+IFERROR((D32-C32)/C32,"-") -> 0
B33: 1. skattþrep | C33: =+MIN(C32,Fjárhæðarmörk1)*Skattþrep1 -> 96710.4 | D33: =+MIN(D32,Fjárhæðarmörk1)*Skattþrep1 -> 96710.4 | E33: 0 | F33: 0
B34: 2. skattþrep | C34: =MAX(MIN(C32-Fjárhæðarmörk1,Fjárhæðarmörk2-Fjárhæðarmörk1+1)*Skattþrep2,0) -> 0 | D34: =MAX(MIN(D32-Fjárhæðarmörk1,Fjárhæðarmörk2-Fjárhæðarmörk1+1)*Skattþrep2,0) -> 0 | E34: 0 | F34: -
B35: 3. skattþrep | C35: =MAX(C32-Fjárhæðarmörk3,0)*Skattþrep3 -> 0 | D35: =MAX(D32-Fjárhæðarmörk3,0)*Skattþrep3 -> 0 | E35: 0 | F35: -
B36: Persónuafsláttur | C36: =+Persónuafsláttur -> 54628 | D36: =+Persónuafsláttur -> 54628 | E36: 0 | F36: 0
B37: Tekjuskattur til greiðslu | C37: =+MAX(SUM(C33:C35)-C36,0) -> 42082.4 | D37: =+MAX(SUM(D33:D35)-D36,0) -> 42082.4 | E37: 0 | F37: 0
B39: Greidd laun | C39: =+C23-C29-C37 -> 231817.6 | D39: =+D23-D29-D37 -> 231817.6 | E39: 0 | F39: =+IFERROR((D39-C39)/C39,"-") -> 0

Sheet Útreikningar
B3: Forsendur útreikninga | E3: Áhrif breytinga laga um atvinnuleysistryggingar
E4: Forsendur notanda | I4: Útreikningar til grundvalla skerðinga | M4: Skerðingar | P4: Atvinnuleysisbætur | R4: Heildarlaun
C5: kr. / % | E5: Starfsmaður | F5: Meðal heildarlaun sl. 3M fyrir skatta | G5: Starfshlutfall fyrir | H5: Skerðing starfshlutfalls | I5: Starfshlutfall eftir | J5: Atvinnuleysisbætur fyrir skerðingu | K5: Laun frá launagreiðanda | L5: Laun með bótum án skerðingar | M5: Skerðing v/ hámarkshlutfalls | N5: Skerðing v/ hámarkslauna | O5: Skerðing v/ samtals | P5: Viðbót v/ tryggðra lágmarkslauna | Q5: Laun frá ríkissjóði | R5: Heildarlaun | S5: % af fyrri launum
B6: Forsendur frumvarps | E6: Starfsmaður 1 | F6: 300000 | G6: 1 | H6: 0.2 | I6: =+Launatafla[[#This Row],[Starfshlutfall fyrir]]-Launatafla[[#This Row],[Skerðing starfshlutfalls]] -> 0.8 | J6: =+IF(OR(Launatafla[[#This Row],[Skerðing starfshlutfalls]]>Hámarkslækkun_starfshl,Launatafla[[#This Row],[Skerðing starfshlutfalls]]<Lágmarkslækkun_starfshl),0,Atvinnuleysisbætur*Launatafla[[#This Row],[Skerðing starfshlutfalls]]) -> 91280.8 | K6: =IFERROR(Launatafla[[#This Row],[Meðal heildarlaun sl. 3M fyrir skatta]]/Launatafla[[#This Row],[Starfshlutfall fyrir]],0)*(Launatafla[[#This Row],[Starfshlutfall fyrir]]-Launatafla[[#This Row],[Skerðing starfshlutfalls]]) -> 240000 | L6: =+Launatafla[[#This Row],[Atvinnuleysisbætur fyrir skerðingu]]+Launatafla[[#This Row],[Laun frá launagreiðanda]] -> 331280.8 | M6: =-MAX(Launatafla[[#This Row],[Laun með bótum án skerðingar]]-Launatafla[[#This Row],[Meðal heildarlaun sl. 3M fyrir skatta]]*Hámarkshlutfall_af_launum,0) -> -61280.8 | N6: =-MIN(MAX(Launatafla[[#This Row],[Laun með bótum án skerðingar]]-Hámarkslaun,0),Launatafla[[#This Row],[Atvinnuleysisbætur fyrir skerðingu]]) -> 0 | O6: =+MIN(Launatafla[[#This Row],[Skerðing v/ hámarkshlutfalls]:[Skerðing v/ hámarkslauna]]) -> -61280.8 | P6: =+IF(Launatafla[[#This Row],[Atvinnuleysisbætur fyrir skerðingu]]=0,0, MAX(MIN(Lágmarkslaun_fullt_starf,Launatafla[[#This Row],[Meðal heildarlaun sl. 3M fyrir skatta]]/Launatafla[[#This Row],[Starfshlutfall fyrir]])*Launatafla[[#This Row],[Starfshlutfall fyrir]]-(Launatafla[[#This Row],[Laun frá launagreiðanda]]+Launatafla[[#This Row],[Atvinnuleysisbætur fyrir skerðingu]]+Launatafla[[#This Row],[Skerðing v/ samtals]]),0)) -> 30000 | Q6: =+Launatafla[[#This Row],[Atvinnuleysisbætur fyrir skerðingu]]+Launatafla[[#This Row],[Skerðing v/ samtals]]+Launatafla[[#This Row],[Viðbót v/ tryggðra lágmarkslauna]] -> 60000 | R6: =+Launatafla[[#This Row],[Laun frá launagreiðanda]]+Launatafla[[#This Row],[Laun frá ríkissjóði]] -> 300000 | S6: =IFERROR(Launatafla[[#This Row],[Heildarlaun]]/Launatafla[[#This Row],[Meðal heildarlaun sl. 3M fyrir skatta]],0) -> 1
B7: Fullar atvinnuleysisbætur (kr.) | C7: 456404 | E7: Starfsmaður 2 | F7: 300000 | G7: 1 | H7: 0.3 | I7: =+Launatafla[[#This Row],[Starfshlutfall fyrir]]-Launatafla[[#This Row],[Skerðing starfshlutfalls]] -> 0.7 | J7: =+IF(OR(Launatafla[[#This Row],[Skerðing starfshlutfalls]]>Hámarkslækkun_starfshl,Launatafla[[#This Row],[Skerðing starfshlutfalls]]<Lágmarkslækkun_starfshl),0,Atvinnuleysisbætur*Launatafla[[#This Row],[Skerðing starfshlutfalls]]) -> 136921.2 | K7: =IFERROR(Launatafla[[#This Row],[Meðal heildarlaun sl. 3M fyrir skatta]]/Launatafla[[#This Row],[Starfshlutfall fyrir]],0)*(Launatafla[[#This Row],[Starfshlutfall fyrir]]-Launatafla[[#This Row],[Skerðing starfshlutfalls]]) -> 210000 | L7: =+Launatafla[[#This Row],[Atvinnuleysisbætur fyrir skerðingu]]+Launatafla[[#This Row],[Laun frá launagreiðanda]] -> 346921.2 | M7: =-MAX(Launatafla[[#This Row],[Laun með bótum án skerðingar]]-Launatafla[[#This Row],[Meðal heildarlaun sl. 3M fyrir skatta]]*Hámarkshlutfall_af_launum,0) -> -76921.2 | N7: =-MIN(MAX(Launatafla[[#This Row],[Laun með bótum án skerðingar]]-Hámarkslaun,0),Launatafla[[#This Row],[Atvinnuleysisbætur fyrir skerðingu]]) -> 0 | O7: =+MIN(Launatafla[[#This Row],[Skerðing v/ hámarkshlutfalls]:[Skerðing v/ hámarkslauna]]) -> -76921.2 | P7: =+IF(Launatafla[[#This Row],[Atvinnuleysisbætur fyrir skerðingu]]=0,0, MAX(MIN(Lágmarkslaun_fullt_starf,Launatafla[[#This Row],[Meðal heildarlaun sl. 3M fyrir skatta]]/Launatafla[[#This Row],[Starfshlutfall fyrir]])*Launatafla[[#This Row],[Starfshlutfall fyrir]]-(Launatafla[[#This Row],[Laun frá launagreiðanda]]+Launatafla[[#This Row],[Atvinnuleysisbætur fyrir skerðingu]]+Launatafla[[#This Row],[Skerðing v/ samtals]]),0)) -> 30000 | Q7: =+Launatafla[[#This Row],[Atvinnuleysisbætur fyrir skerðingu]]+Launatafla[[#This Row],[Skerðing v/ samtals]]+Launatafla[[#This Row],[Viðbót v/ tryggðra lágmarkslauna]] -> 90000 | R7: =+Launatafla[[#This Row],[Laun frá launagreiðanda]]+Launatafla[[#This Row],[Laun frá ríkissjóði]] -> 300000 | S7: =IFERROR(Launatafla[[#This Row],[Heildarlaun]]/Launatafla[[#This Row],[Meðal heildarlaun sl. 3M fyrir skatta]],0) -> 1
B8: Lágmarkslaun fyrir fullt starf (fyrir skerðingu) (kr.) | C8: 400000 | E8: Starfsmaður 3 | F8: 300000 | G8: 1 | H8: 0.4 | I8: =+Launatafla[[#This Row],[Starfshlutfall fyrir]]-Launatafla[[#This Row],[Skerðing starfshlutfalls]] -> 0.6 | J8: =+IF(OR(Launatafla[[#This Row],[Skerðing starfshlutfalls]]>Hámarkslækkun_starfshl,Launatafla[[#This Row],[Skerðing starfshlutfalls]]<Lágmarkslækkun_starfshl),0,Atvinnuleysisbætur*Launatafla[[#This Row],[Skerðing starfshlutfalls]]) -> 182561.6 | K8: =IFERROR(Launatafla[[#This Row],[Meðal heildarlaun sl. 3M fyrir skatta]]/Launatafla[[#This Row],[Starfshlutfall fyrir]],0)*(Launatafla[[#This Row],[Starfshlutfall fyrir]]-Launatafla[[#This Row],[Skerðing starfshlutfalls]]) -> 180000 | L8: =+Launatafla[[#This Row],[Atvinnuleysisbætur fyrir skerðingu]]+Launatafla[[#This Row],[Laun frá launagreiðanda]] -> 362561.6 | M8: =-MAX(Launatafla[[#This Row],[Laun með bótum án skerðingar]]-Launatafla[[#This Row],[Meðal heildarlaun sl. 3M fyrir skatta]]*Hámarkshlutfall_af_launum,0) -> -92561.6 | N8: =-MIN(MAX(Launatafla[[#This Row],[Laun með bótum án skerðingar]]-Hámarkslaun,0),Launatafla[[#This Row],[Atvinnuleysisbætur fyrir skerðingu]]) -> 0 | O8: =+MIN(Launatafla[[#This Row],[Skerðing v/ hámarkshlutfalls]:[Skerðing v/ hámarkslauna]]) -> -92561.6 | P8: =+IF(Launatafla[[#This Row],[Atvinnuleysisbætur fyrir skerðingu]]=0,0, MAX(MIN(Lágmarkslaun_fullt_starf,Launatafla[[#This Row],[Meðal heildarlaun sl. 3M fyrir skatta]]/Launatafla[[#This Row],[Starfshlutfall fyrir]])*Launatafla[[#This Row],[Starfshlutfall fyrir]]-(Launatafla[[#This Row],[Laun frá launagreiðanda]]+Launatafla[[#This Row],[Atvinnuleysisbætur fyrir skerðingu]]+Launatafla[[#This Row],[Skerðing v/ samtals]]),0)) -> 30000 | Q8: =+Launatafla[[#This Row],[Atvinnuleysisbætur fyrir skerðingu]]+Launatafla[[#This Row],[Skerðing v/ samtals]]+Launatafla[[#This Row],[Viðbót v/ tryggðra lágmarkslauna]] -> 120000 | R8: =+Launatafla[[#This Row],[Laun frá launagreiðanda]]+Launatafla[[#This Row],[Laun frá ríkissjóði]] -> 300000 | S8: =IFERROR(Launatafla[[#This Row],[Heildarlaun]]/Launatafla[[#This Row],[Meðal heildarlaun sl. 3M fyrir skatta]],0) -> 1
B9: Lágmarkslækkun starfshlutfalls (%) | C9: 0.2 | E9: Starfsmaður 4 | F9: 300000 | G9: 1 | H9: 0.5 | I9: =+Launatafla[[#This Row],[Starfshlutfall fyrir]]-Launatafla[[#This Row],[Skerðing starfshlutfalls]] -> 0.5 | J9: =+IF(OR(Launatafla[[#This Row],[Skerðing starfshlutfalls]]>Hámarkslækkun_starfshl,Launatafla[[#This Row],[Skerðing starfshlutfalls]]<Lágmarkslækkun_starfshl),0,Atvinnuleysisbætur*Launatafla[[#This Row],[Skerðing starfshlutfalls]]) -> 228202 | K9: =IFERROR(Launatafla[[#This Row],[Meðal heildarlaun sl. 3M fyrir skatta]]/Launatafla[[#This Row],[Starfshlutfall fyrir]],0)*(Launatafla[[#This Row],[Starfshlutfall fyrir]]-Launatafla[[#This Row],[Skerðing starfshlutfalls]]) -> 150000 | L9: =+Launatafla[[#This Row],[Atvinnuleysisbætur fyrir skerðingu]]+Launatafla[[#This Row],[Laun frá launagreiðanda]] -> 378202 | M9: =-MAX(Launatafla[[#This Row],[Laun með bótum án skerðingar]]-Launatafla[[#This Row],[Meðal heildarlaun sl. 3M fyrir skatta]]*Hámarkshlutfall_af_launum,0) -> -108202 | N9: =-MIN(MAX(Launatafla[[#This Row],[Laun með bótum án skerðingar]]-Hámarkslaun,0),Launatafla[[#This Row],[Atvinnuleysisbætur fyrir skerðingu]]) -> 0 | O9: =+MIN(Launatafla[[#This Row],[Skerðing v/ hámarkshlutfalls]:[Skerðing v/ hámarkslauna]]) -> -108202 | P9: =+IF(Launatafla[[#This Row],[Atvinnuleysisbætur fyrir skerðingu]]=0,0, MAX(MIN(Lágmarkslaun_fullt_starf,Launatafla[[#This Row],[Meðal heildarlaun sl. 3M fyrir skatta]]/Launatafla[[#This Row],[Starfshlutfall fyrir]])*Launatafla[[#This Row],[Starfshlutfall fyrir]]-(Launatafla[[#This Row],[Laun frá launagreiðanda]]+Launatafla[[#This Row],[Atvinnuleysisbætur fyrir skerðingu]]+Launatafla[[#This Row],[Skerðing v/ samtals]]),0)) -> 30000 | Q9: =+Launatafla[[#This Row],[Atvinnuleysisbætur fyrir skerðingu]]+Launatafla[[#This Row],[Skerðing v/ samtals]]+Launatafla[[#This Row],[Viðbót v/ tryggðra lágmarkslauna]] -> 150000 | R9: =+Launatafla[[#This Row],[Laun frá launagreiðanda]]+Launatafla[[#This Row],[Laun frá ríkissjóði]] -> 300000 | S9: =IFERROR(Launatafla[[#This Row],[Heildarlaun]]/Launatafla[[#This Row],[Meðal heildarlaun sl. 3M fyrir skatta]],0) -> 1
B10: Hámarkslækkun starfshlutfalls (%) | C10: 0.75 | E10: Starfsmaður 5 | F10: 300000 | G10: 1 | H10: 0.6 | I10: =+Launatafla[[#This Row],[Starfshlutfall fyrir]]-Launatafla[[#This Row],[Skerðing starfshlutfalls]] -> 0.4 | J10: =+IF(OR(Launatafla[[#This Row],[Skerðing starfshlutfalls]]>Hámarkslækkun_starfshl,Launatafla[[#This Row],[Skerðing starfshlutfalls]]<Lágmarkslækkun_starfshl),0,Atvinnuleysisbætur*Launatafla[[#This Row],[Skerðing starfshlutfalls]]) -> 273842.4 | K10: =IFERROR(Launatafla[[#This Row],[Meðal heildarlaun sl. 3M fyrir skatta]]/Launatafla[[#This Row],[Starfshlutfall fyrir]],0)*(Launatafla[[#This Row],[Starfshlutfall fyrir]]-Launatafla[[#This Row],[Skerðing starfshlutfalls]]) -> 120000 | L10: =+Launatafla[[#This Row],[Atvinnuleysisbætur fyrir skerðingu]]+Launatafla[[#This Row],[Laun frá launagreiðanda]] -> 393842.4 | M10: =-MAX(Launatafla[[#This Row],[Laun með bótum án skerðingar]]-Launatafla[[#This Row],[Meðal heildarlaun sl. 3M fyrir skatta]]*Hámarkshlutfall_af_launum,0) -> -123842.4 | N10: =-MIN(MAX(Launatafla[[#This Row],[Laun með bótum án skerðingar]]-Hámarkslaun,0),Launatafla[[#This Row],[Atvinnuleysisbætur fyrir skerðingu]]) -> 0 | O10: =+MIN(Launatafla[[#This Row],[Skerðing v/ hámarkshlutfalls]:[Skerðing v/ hámarkslauna]]) -> -123842.4 | P10: =+IF(Launatafla[[#This Row],[Atvinnuleysisbætur fyrir skerðingu]]=0,0, MAX(MIN(Lágmarkslaun_fullt_starf,Launatafla[[#This Row],[Meðal heildarlaun sl. 3M fyrir skatta]]/Launatafla[[#This Row],[Starfshlutfall fyrir]])*Launatafla[[#This Row],[Starfshlutfall fyrir]]-(Launatafla[[#This Row],[Laun frá launagreiðanda]]+Launatafla[[#This Row],[Atvinnuleysisbætur fyrir skerðingu]]+Launatafla[[#This Row],[Skerðing v/ samtals]]),0)) -> 30000 | Q10: =+Launatafla[[#This Row],[Atvinnuleysisbætur fyrir skerðingu]]+Launatafla[[#This Row],[Skerðing v/ samtals]]+Launatafla[[#This Row],[Viðbót v/ tryggðra lágmarkslauna]] -> 180000 | R10: =+Launatafla[[#This Row],[Laun frá launagreiðanda]]+Launatafla[[#This Row],[Laun frá ríkissjóði]] -> 300000 | S10: =IFERROR(Launatafla[[#This Row],[Heildarlaun]]/Launatafla[[#This Row],[Meðal heildarlaun sl. 3M fyrir skatta]],0) -> 1
B11: Hámarkshlutfall af fyrri launum (%) | C11: 0.9 | E11: Starfsmaður 6 | F11: 300000 | G11: 1 | H11: 0.7 | I11: =+Launatafla[[#This Row],[Starfshlutfall fyrir]]-Launatafla[[#This Row],[Skerðing starfshlutfalls]] -> 0.3 | J11: =+IF(OR(Launatafla[[#This Row],[Skerðing starfshlutfalls]]>Hámarkslækkun_starfshl,Launatafla[[#This Row],[Skerðing starfshlutfalls]]<Lágmarkslækkun_starfshl),0,Atvinnuleysisbætur*Launatafla[[#This Row],[Skerðing starfshlutfalls]]) -> 319482.8 | K11: =IFERROR(Launatafla[[#This Row],[Meðal heildarlaun sl. 3M fyrir skatta]]/Launatafla[[#This Row],[Starfshlutfall fyrir]],0)*(Launatafla[[#This Row],[Starfshlutfall fyrir]]-Launatafla[[#This Row],[Skerðing starfshlutfalls]]) -> 90000 | L11: =+Launatafla[[#This Row],[Atvinnuleysisbætur fyrir skerðingu]]+Launatafla[[#This Row],[Laun frá launagreiðanda]] -> 409482.8 | M11: =-MAX(Launatafla[[#This Row],[Laun með bótum án skerðingar]]-Launatafla[[#This Row],[Meðal heildarlaun sl. 3M fyrir skatta]]*Hámarkshlutfall_af_launum,0) -> -139482.8 | N11: =-MIN(MAX(Launatafla[[#This Row],[Laun með bótum án skerðingar]]-Hámarkslaun,0),Launatafla[[#This Row],[Atvinnuleysisbætur fyrir skerðingu]]) -> 0 | O11: =+MIN(Launatafla[[#This Row],[Skerðing v/ hámarkshlutfalls]:[Skerðing v/ hámarkslauna]]) -> -139482.8 | P11: =+IF(Launatafla[[#This Row],[Atvinnuleysisbætur fyrir skerðingu]]=0,0, MAX(MIN(Lágmarkslaun_fullt_starf,Launatafla[[#This Row],[Meðal heildarlaun sl. 3M fyrir skatta]]/Launatafla[[#This Row],[Starfshlutfall fyrir]])*Launatafla[[#This Row],[Starfshlutfall fyrir]]-(Launatafla[[#This Row],[Laun frá launagreiðanda]]+Launatafla[[#This Row],[Atvinnuleysisbætur fyrir skerðingu]]+Launatafla[[#This Row],[Skerðing v/ samtals]]),0)) -> 30000 | Q11: =+Launatafla[[#This Row],[Atvinnuleysisbætur fyrir skerðingu]]+Launatafla[[#This Row],[Skerðing v/ samtals]]+Launatafla[[#This Row],[Viðbót v/ tryggðra lágmarkslauna]] -> 210000 | R11: =+Launatafla[[#This Row],[Laun frá launagreiðanda]]+Launatafla[[#This Row],[Laun frá ríkissjóði]] -> 300000 | S11: =IFERROR(Launatafla[[#This Row],[Heildarlaun]]/Launatafla[[#This Row],[Meðal heildarlaun sl. 3M fyrir skatta]],0) -> 1
B12: Hámarkslaun með bótum | C12: 700000 | E12: Starfsmaður 7 | F12: 300000 | G12: 1 | H12: 0.75 | I12: =+Launatafla[[#This Row],[Starfshlutfall fyrir]]-Launatafla[[#This Row],[Skerðing starfshlutfalls]] -> 0.25 | J12: =+IF(OR(Launatafla[[#This Row],[Skerðing starfshlutfalls]]>Hámarkslækkun_starfshl,Launatafla[[#This Row],[Skerðing starfshlutfalls]]<Lágmarkslækkun_starfshl),0,Atvinnuleysisbætur*Launatafla[[#This Row],[Skerðing starfshlutfalls]]) -> 342303 | K12: =IFERROR(Launatafla[[#This Row],[Meðal heildarlaun sl. 3M fyrir skatta]]/Launatafla[[#This Row],[Starfshlutfall fyrir]],0)*(Launatafla[[#This Row],[Starfshlutfall fyrir]]-Launatafla[[#This Row],[Skerðing starfshlutfalls]]) -> 75000 | L12: =+Launatafla[[#This Row],[Atvinnuleysisbætur fyrir skerðingu]]+Launatafla[[#This Row],[Laun frá launagreiðanda]] -> 417303 | M12: =-MAX(Launatafla[[#This Row],[Laun með bótum án skerðingar]]-Launatafla[[#This Row],[Meðal heildarlaun sl. 3M fyrir skatta]]*Hámarkshlutfall_af_launum,0) -> -147303 | N12: =-MIN(MAX(Launatafla[[#This Row],[Laun með bótum án skerðingar]]-Hámarkslaun,0),Launatafla[[#This Row],[Atvinnuleysisbætur fyrir skerðingu]]) -> 0 | O12: =+MIN(Launatafla[[#This Row],[Skerðing v/ hámarkshlutfalls]:[Skerðing v/ hámarkslauna]]) -> -147303 | P12: =+IF(Launatafla[[#This Row],[Atvinnuleysisbætur fyrir skerðingu]]=0,0, MAX(MIN(Lágmarkslaun_fullt_starf,Launatafla[[#This Row],[Meðal heildarlaun sl. 3M fyrir skatta]]/Launatafla[[#This Row],[Starfshlutfall fyrir]])*Launatafla[[#This Row],[Starfshlutfall fyrir]]-(Launatafla[[#This Row],[Laun frá launagreiðanda]]+Launatafla[[#This Row],[Atvinnuleysisbætur fyrir skerðingu]]+Launatafla[[#This Row],[Skerðing v/ samtals]]),0)) -> 30000 | Q12: =+Launatafla[[#This Row],[Atvinnuleysisbætur fyrir skerðingu]]+Launatafla[[#This Row],[Skerðing v/ samtals]]+Launatafla[[#This Row],[Viðbót v/ tryggðra lágmarkslauna]] -> 225000 | R12: =+Launatafla[[#This Row],[Laun frá launagreiðanda]]+Launatafla[[#This Row],[Laun frá ríkissjóði]] -> 300000 | S12: =IFERROR(Launatafla[[#This Row],[Heildarlaun]]/Launatafla[[#This Row],[Meðal heildarlaun sl. 3M fyrir skatta]],0) -> 1
B13: Iðgjöld launþegar | E13: Starfsmaður 8 | F13: 400000 | G13: 1 | H13: 0.2 | I13: =+Launatafla[[#This Row],[Starfshlutfall fyrir]]-Launatafla[[#This Row],[Skerðing starfshlutfalls]] -> 0.8 | J13: =+IF(OR(Launatafla[[#This Row],[Skerðing starfshlutfalls]]>Hámarkslækkun_starfshl,Launatafla[[#This Row],[Skerðing starfshlutfalls]]<Lágmarkslækkun_starfshl),0,Atvinnuleysisbætur*Launatafla[[#This Row],[Skerðing starfshlutfalls]]) -> 91280.8 | K13: =IFERROR(Launatafla[[#This Row],[Meðal heildarlaun sl. 3M fyrir skatta]]/Launatafla[[#This Row],[Starfshlutfall fyrir]],0)*(Launatafla[[#This Row],[Starfshlutfall fyrir]]-Launatafla[[#This Row],[Skerðing starfshlutfalls]]) -> 320000 | L13: =+Launatafla[[#This Row],[Atvinnuleysisbætur fyrir skerðingu]]+Launatafla[[#This Row],[Laun frá launagreiðanda]] -> 411280.8 | M13: =-MAX(Launatafla[[#This Row],[Laun með bótum án skerðingar]]-Launatafla[[#This Row],[Meðal heildarlaun sl. 3M fyrir skatta]]*Hámarkshlutfall_af_launum,0) -> -51280.8 | N13: =-MIN(MAX(Launatafla[[#This Row],[Laun með bótum án skerðingar]]-Hámarkslaun,0),Launatafla[[#This Row],[Atvinnuleysisbætur fyrir skerðingu]]) -> 0 | O13: =+MIN(Launatafla[[#This Row],[Skerðing v/ hámarkshlutfalls]:[Skerðing v/ hámarkslauna]]) -> -51280.8 | P13: =+IF(Launatafla[[#This Row],[Atvinnuleysisbætur fyrir skerðingu]]=0,0, MAX(MIN(Lágmarkslaun_fullt_starf,Launatafla[[#This Row],[Meðal heildarlaun sl. 3M fyrir skatta]]/Launatafla[[#This Row],[Starfshlutfall fyrir]])*Launatafla[[#This Row],[Starfshlutfall fyrir]]-(Launatafla[[#This Row],[Laun frá launagreiðanda]]+Launatafla[[#This Row],[Atvinnuleysisbætur fyrir skerðingu]]+Launatafla[[#This Row],[Skerðing v/ samtals]]),0)) -> 40000 | Q13: =+Launatafla[[#This Row],[Atvinnuleysisbætur fyrir skerðingu]]+Launatafla[[#This Row],[Skerðing v/ samtals]]+Launatafla[[#This Row],[Viðbót v/ tryggðra lágmarkslauna]] -> 80000 | R13: =+Launatafla[[#This Row],[Laun frá launagreiðanda]]+Launatafla[[#This Row],[Laun frá ríkissjóði]] -> 400000 | S13: =IFERROR(Launatafla[[#This Row],[Heildarlaun]]/Launatafla[[#This Row],[Meðal heildarlaun sl. 3M fyrir skatta]],0) -> 1
B14: Skylduframlag launþega í lífeyrissjóð (%) | C14: 0.04 | E14: Starfsmaður 9 | F14: 400000 | G14: 1 | H14: 0.3 | I14: =+Launatafla[[#This Row],[Starfshlutfall fyrir]]-Launatafla[[#This Row],[Skerðing starfshlutfalls]] -> 0.7 | J14: =+IF(OR(Launatafla[[#This Row],[Skerðing starfshlutfalls]]>Hámarkslækkun_starfshl,Launatafla[[#This Row],[Skerðing starfshlutfalls]]<Lágmarkslækkun_starfshl),0,Atvinnuleysisbætur*Launatafla[[#This Row],[Skerðing starfshlutfalls]]) -> 136921.2 | K14: =IFERROR(Launatafla[[#This Row],[Meðal heildarlaun sl. 3M fyrir skatta]]/Launatafla[[#This Row],[Starfshlutfall fyrir]],0)*(Launatafla[[#This Row],[Starfshlutfall fyrir]]-Launatafla[[#This Row],[Skerðing starfshlutfalls]]) -> 280000 | L14: =+Launatafla[[#This Row],[Atvinnuleysisbætur fyrir skerðingu]]+Launatafla[[#This Row],[Laun frá launagreiðanda]] -> 416921.2 | M14: =-MAX(Launatafla[[#This Row],[Laun með bótum án skerðingar]]-Launatafla[[#This Row],[Meðal heildarlaun sl. 3M fyrir skatta]]*Hámarkshlutfall_af_launum,0) -> -56921.2 | N14: =-MIN(MAX(Launatafla[[#This Row],[Laun með bótum án skerðingar]]-Hámarkslaun,0),Launatafla[[#This Row],[Atvinnuleysisbætur fyrir skerðingu]]) -> 0 | O14: =+MIN(Launatafla[[#This Row],[Skerðing v/ hámarkshlutfalls]:[Skerðing v/ hámarkslauna]]) -> -56921.2 | P14: =+IF(Launatafla[[#This Row],[Atvinnuleysisbætur fyrir skerðingu]]=0,0, MAX(MIN(Lágmarkslaun_fullt_starf,Launatafla[[#This Row],[Meðal heildarlaun sl. 3M fyrir skatta]]/Launatafla[[#This Row],[Starfshlutfall fyrir]])*Launatafla[[#This Row],[Starfshlutfall fyrir]]-(Launatafla[[#This Row],[Laun frá launagreiðanda]]+Launatafla[[#This Row],[Atvinnuleysisbætur fyrir skerðingu]]+Launatafla[[#This Row],[Skerðing v/ samtals]]),0)) -> 40000 | Q14: =+Launatafla[[#This Row],[Atvinnuleysisbætur fyrir skerðingu]]+Launatafla[[#This Row],[Skerðing v/ samtals]]+Launatafla[[#This Row],[Viðbót v/ tryggðra lágmarkslauna]] -> 120000 | R14: =+Launatafla[[#This Row],[Laun frá launagreiðanda]]+Launatafla[[#This Row],[Laun frá ríkissjóði]] -> 400000 | S14: =IFERROR(Launatafla[[#This Row],[Heildarlaun]]/Launatafla[[#This Row],[Meðal heildarlaun sl. 3M fyrir skatta]],0) -> 1
B15: Séreignasjóður launþega í lífeyrissjóð (%) | C15: 0.04 | E15: Starfsmaður 10 | F15: 400000 | G15: 1 | H15: 0.4 | I15: =+Launatafla[[#This Row],[Starfshlutfall fyrir]]-Launatafla[[#This Row],[Skerðing starfshlutfalls]] -> 0.6 | J15: =+IF(OR(Launatafla[[#This Row],[Skerðing starfshlutfalls]]>Hámarkslækkun_starfshl,Launatafla[[#This Row],[Skerðing starfshlutfalls]]<Lágmarkslækkun_starfshl),0,Atvinnuleysisbætur*Launatafla[[#This Row],[Skerðing starfshlutfalls]]) -> 182561.6 | K15: =IFERROR(Launatafla[[#This Row],[Meðal heildarlaun sl. 3M fyrir skatta]]/Launatafla[[#This Row],[Starfshlutfall fyrir]],0)*(Launatafla[[#This Row],[Starfshlutfall fyrir]]-Launatafla[[#This Row],[Skerðing starfshlutfalls]]) -> 240000 | L15: =+Launatafla[[#This Row],[Atvinnuleysisbætur fyrir skerðingu]]+Launatafla[[#This Row],[Laun frá launagreiðanda]] -> 422561.6 | M15: =-MAX(Launatafla[[#This Row],[Laun með bótum án skerðingar]]-Launatafla[[#This Row],[Meðal heildarlaun sl. 3M fyrir skatta]]*Hámarkshlutfall_af_launum,0) -> -62561.6 | N15: =-MIN(MAX(Launatafla[[#This Row],[Laun með bótum án skerðingar]]-Hámarkslaun,0),Launatafla[[#This Row],[Atvinnuleysisbætur fyrir skerðingu]]) -> 0 | O15: =+MIN(Launatafla[[#This Row],[Skerðing v/ hámarkshlutfalls]:[Skerðing v/ hámarkslauna]]) -> -62561.6 | P15: =+IF(Launatafla[[#This Row],[Atvinnuleysisbætur fyrir skerðingu]]=0,0, MAX(MIN(Lágmarkslaun_fullt_starf,Launatafla[[#This Row],[Meðal heildarlaun sl. 3M fyrir skatta]]/Launatafla[[#This Row],[Starfshlutfall fyrir]])*Launatafla[[#This Row],[Starfshlutfall fyrir]]-(Launatafla[[#This Row],[Laun frá launagreiðanda]]+Launatafla[[#This Row],[Atvinnuleysisbætur fyrir skerðingu]]+Launatafla[[#This Row],[Skerðing v/ samtals]]),0)) -> 40000 | Q15: =+Launatafla[[#This Row],[Atvinnuleysisbætur fyrir skerðingu]]+Launatafla[[#This Row],[Skerðing v/ samtals]]+Launatafla[[#This Row],[Viðbót v/ tryggðra lágmarkslauna]] -> 160000 | R15: =+Launatafla[[#This Row],[Laun frá launagreiðanda]]+Launatafla[[#This Row],[Laun frá ríkissjóði]] -> 400000 | S15: =IFERROR(Launatafla[[#This Row],[Heildarlaun]]/Launatafla[[#This Row],[Meðal heildarlaun sl. 3M fyrir skatta]],0) -> 1
B16: Iðgjald launþega í stéttarfélag (%)*1 | C16: 0.007 | E16: Starfsmaður 11 | F16: 400000 | G16: 1 | H16: 0.5 | I16: =+Launatafla[[#This Row],[Starfshlutfall fyrir]]-Launatafla[[#This Row],[Skerðing starfshlutfalls]] -> 0.5 | J16: =+IF(OR(Launatafla[[#This Row],[Skerðing starfshlutfalls]]>Hámarkslækkun_starfshl,Launatafla[[#This Row],[Skerðing starfshlutfalls]]<Lágmarkslækkun_starfshl),0,Atvinnuleysisbætur*Launatafla[[#This Row],[Skerðing starfshlutfalls]]) -> 228202 | K16: =IFERROR(Launatafla[[#This Row],[Meðal heildarlaun sl. 3M fyrir skatta]]/Launatafla[[#This Row],[Starfshlutfall fyrir]],0)*(Launatafla[[#This Row],[Starfshlutfall fyrir]]-Launatafla[[#This Row],[Skerðing starfshlutfalls]]) -> 200000 | L16: =+Launatafla[[#This Row],[Atvinnuleysisbætur fyrir skerðingu]]+Launatafla[[#This Row],[Laun frá launagreiðanda]] -> 428202 | M16: =-MAX(Launatafla[[#This Row],[Laun með bótum án skerðingar]]-Launatafla[[#This Row],[Meðal heildarlaun sl. 3M fyrir skatta]]*Hámarkshlutfall_af_launum,0) -> -68202 | N16: =-MIN(MAX(Launatafla[[#This Row],[Laun með bótum án skerðingar]]-Hámarkslaun,0),Launatafla[[#This Row],[Atvinnuleysisbætur fyrir skerðingu]]) -> 0 | O16: =+MIN(Launatafla[[#This Row],[Skerðing v/ hámarkshlutfalls]:[Skerðing v/ hámarkslauna]]) -> -68202 | P16: =+IF(Launatafla[[#This Row],[Atvinnuleysisbætur fyrir skerðingu]]=0,0, MAX(MIN(Lágmarkslaun_fullt_starf,Launatafla[[#This Row],[Meðal heildarlaun sl. 3M fyrir skatta]]/Launatafla[[#This Row],[Starfshlutfall fyrir]])*Launatafla[[#This Row],[Starfshlutfall fyrir]]-(Launatafla[[#This Row],[Laun frá launagreiðanda]]+Launatafla[[#This Row],[Atvinnuleysisbætur fyrir skerðingu]]+Launatafla[[#This Row],[Skerðing v/ samtals]]),0)) -> 40000 | Q16: =+Launatafla[[#This Row],[Atvinnuleysisbætur fyrir skerðingu]]+Launatafla[[#This Row],[Skerðing v/ samtals]]+Launatafla[[#This Row],[Viðbót v/ tryggðra lágmarkslauna]] -> 200000 | R16: =+Launatafla[[#This Row],[Laun frá launagreiðanda]]+Launatafla[[#This Row],[Laun frá ríkissjóði]] -> 400000 | S16: =IFERROR(Launatafla[[#This Row],[Heildarlaun]]/Launatafla[[#This Row],[Meðal heildarlaun sl. 3M fyrir skatta]],0) -> 1
B17: Forsendur launatengdra gjalda | E17: Starfsmaður 12 | F17: 400000 | G17: 1 | H17: 0.6 | I17: =+Launatafla[[#This Row],[Starfshlutfall fyrir]]-Launatafla[[#This Row],[Skerðing starfshlutfalls]] -> 0.4 | J17: =+IF(OR(Launatafla[[#This Row],[Skerðing starfshlutfalls]]>Hámarkslækkun_starfshl,Launatafla[[#This Row],[Skerðing starfshlutfalls]]<Lágmarkslækkun_starfshl),0,Atvinnuleysisbætur*Launatafla[[#This Row],[Skerðing starfshlutfalls]]) -> 273842.4 | K17: =IFERROR(Launatafla[[#This Row],[Meðal heildarlaun sl. 3M fyrir skatta]]/Launatafla[[#This Row],[Starfshlutfall fyrir]],0)*(Launatafla[[#This Row],[Starfshlutfall fyrir]]-Launatafla[[#This Row],[Skerðing starfshlutfalls]]) -> 160000 | L17: =+Launatafla[[#This Row],[Atvinnuleysisbætur fyrir skerðingu]]+Launatafla[[#This Row],[Laun frá launagreiðanda]] -> 433842.4 | M17: =-MAX(Launatafla[[#This Row],[Laun með bótum án skerðingar]]-Launatafla[[#This Row],[Meðal heildarlaun sl. 3M fyrir skatta]]*Hámarkshlutfall_af_launum,0) -> -73842.4 | N17: =-MIN(MAX(Launatafla[[#This Row],[Laun með bótum án skerðingar]]-Hámarkslaun,0),Launatafla[[#This Row],[Atvinnuleysisbætur fyrir skerðingu]]) -> 0 | O17: =+MIN(Launatafla[[#This Row],[Skerðing v/ hámarkshlutfalls]:[Skerðing v/ hámarkslauna]]) -> -73842.4 | P17: =+IF(Launatafla[[#This Row],[Atvinnuleysisbætur fyrir skerðingu]]=0,0, MAX(MIN(Lágmarkslaun_fullt_starf,Launatafla[[#This Row],[Meðal heildarlaun sl. 3M fyrir skatta]]/Launatafla[[#This Row],[Starfshlutfall fyrir]])*Launatafla[[#This Row],[Starfshlutfall fyrir]]-(Launatafla[[#This Row],[Laun frá launagreiðanda]]+Launatafla[[#This Row],[Atvinnuleysisbætur fyrir skerðingu]]+Launatafla[[#This Row],[Skerðing v/ samtals]]),0)) -> 40000 | Q17: =+Launatafla[[#This Row],[Atvinnuleysisbætur fyrir skerðingu]]+Launatafla[[#This Row],[Skerðing v/ samtals]]+Launatafla[[#This Row],[Viðbót v/ tryggðra lágmarkslauna]] -> 240000 | R17: =+Launatafla[[#This Row],[Laun frá launagreiðanda]]+Launatafla[[#This Row],[Laun frá ríkissjóði]] -> 400000 | S17: =IFERROR(Launatafla[[#This Row],[Heildarlaun]]/Launatafla[[#This Row],[Meðal heildarlaun sl. 3M fyrir skatta]],0) -> 1
B18: Skylduframlag launagreiðanda í lífeyrissjóð (%) | C18: 0.115 | E18: Starfsmaður 13 | F18: 400000 | G18: 1 | H18: 0.7 | I18: =+Launatafla[[#This Row],[Starfshlutfall fyrir]]-Launatafla[[#This Row],[Skerðing starfshlutfalls]] -> 0.3 | J18: =+IF(OR(Launatafla[[#This Row],[Skerðing starfshlutfalls]]>Hámarkslækkun_starfshl,Launatafla[[#This Row],[Skerðing starfshlutfalls]]<Lágmarkslækkun_starfshl),0,Atvinnuleysisbætur*Launatafla[[#This Row],[Skerðing starfshlutfalls]]) -> 319482.8 | K18: =IFERROR(Launatafla[[#This Row],[Meðal heildarlaun sl. 3M fyrir skatta]]/Launatafla[[#This Row],[Starfshlutfall fyrir]],0)*(Launatafla[[#This Row],[Starfshlutfall fyrir]]-Launatafla[[#This Row],[Skerðing starfshlutfalls]]) -> 120000 | L18: =+Launatafla[[#This Row],[Atvinnuleysisbætur fyrir skerðingu]]+Launatafla[[#This Row],[Laun frá launagreiðanda]] -> 439482.8 | M18: =-MAX(Launatafla[[#This Row],[Laun með bótum án skerðingar]]-Launatafla[[#This Row],[Meðal heildarlaun sl. 3M fyrir skatta]]*Hámarkshlutfall_af_launum,0) -> -79482.8 | N18: =-MIN(MAX(Launatafla[[#This Row],[Laun með bótum án skerðingar]]-Hámarkslaun,0),Launatafla[[#This Row],[Atvinnuleysisbætur fyrir skerðingu]]) -> 0 | O18: =+MIN(Launatafla[[#This Row],[Skerðing v/ hámarkshlutfalls]:[Skerðing v/ hámarkslauna]]) -> -79482.8 | P18: =+IF(Launatafla[[#This Row],[Atvinnuleysisbætur fyrir skerðingu]]=0,0, MAX(MIN(Lágmarkslaun_fullt_starf,Launatafla[[#This Row],[Meðal heildarlaun sl. 3M fyrir skatta]]/Launatafla[[#This Row],[Starfshlutfall fyrir]])*Launatafla[[#This Row],[Starfshlutfall fyrir]]-(Launatafla[[#This Row],[Laun frá launagreiðanda]]+Launatafla[[#This Row],[Atvinnuleysisbætur fyrir skerðingu]]+Launatafla[[#This Row],[Skerðing v/ samtals]]),0)) -> 40000 | Q18: =+Launatafla[[#This Row],[Atvinnuleysisbætur fyrir skerðingu]]+Launatafla[[#This Row],[Skerðing v/ samtals]]+Launatafla[[#This Row],[Viðbót v/ tryggðra lágmarkslauna]] -> 280000 | R18: =+Launatafla[[#This Row],[Laun frá launagreiðanda]]+Launatafla[[#This Row],[Laun frá ríkissjóði]] -> 400000 | S18: =IFERROR(Launatafla[[#This Row],[Heildarlaun]]/Launatafla[[#This Row],[Meðal heildarlaun sl. 3M fyrir skatta]],0) -> 1
B19: Mótframlag launagreiðanda í séreignasjóð (%) | C19: 0.02 | E19: Starfsmaður 14 | F19: 400000 | G19: 1 | H19: 0.75 | I19: =+Launatafla[[#This Row],[Starfshlutfall fyrir]]-Launatafla[[#This Row],[Skerðing starfshlutfalls]] -> 0.25 | J19: =+IF(OR(Launatafla[[#This Row],[Skerðing starfshlutfalls]]>Hámarkslækkun_starfshl,Launatafla[[#This Row],[Skerðing starfshlutfalls]]<Lágmarkslækkun_starfshl),0,Atvinnuleysisbætur*Launatafla[[#This Row],[Skerðing starfshlutfalls]]) -> 342303 | K19: =IFERROR(Launatafla[[#This Row],[Meðal heildarlaun sl. 3M fyrir skatta]]/Launatafla[[#This Row],[Starfshlutfall fyrir]],0)*(Launatafla[[#This Row],[Starfshlutfall fyrir]]-Launatafla[[#This Row],[Skerðing starfshlutfalls]]) -> 100000 | L19: =+Launatafla[[#This Row],[Atvinnuleysisbætur fyrir skerðingu]]+Launatafla[[#This Row],[Laun frá launagreiðanda]] -> 442303 | M19: =-MAX(Launatafla[[#This Row],[Laun með bótum án skerðingar]]-Launatafla[[#This Row],[Meðal heildarlaun sl. 3M fyrir skatta]]*Hámarkshlutfall_af_launum,0) -> -82303 | N19: =-MIN(MAX(Launatafla[[#This Row],[Laun með bótum án skerðingar]]-Hámarkslaun,0),Launatafla[[#This Row],[Atvinnuleysisbætur fyrir skerðingu]]) -> 0 | O19: =+MIN(Launatafla[[#This Row],[Skerðing v/ hámarkshlutfalls]:[Skerðing v/ hámarkslauna]]) -> -82303 | P19: =+IF(Launatafla[[#This Row],[Atvinnuleysisbætur fyrir skerðingu]]=0,0, MAX(MIN(Lágmarkslaun_fullt_starf,Launatafla[[#This Row],[Meðal heildarlaun sl. 3M fyrir skatta]]/Launatafla[[#This Row],[Starfshlutfall fyrir]])*Launatafla[[#This Row],[Starfshlutfall fyrir]]-(Launatafla[[#This Row],[Laun frá launagreiðanda]]+Launatafla[[#This Row],[Atvinnuleysisbætur fyrir skerðingu]]+Launatafla[[#This Row],[Skerðing v/ samtals]]),0)) -> 40000 | Q19: =+Launatafla[[#This Row],[Atvinnuleysisbætur fyrir skerðingu]]+Launatafla[[#This Row],[Skerðing v/ samtals]]+Launatafla[[#This Row],[Viðbót v/ tryggðra lágmarkslauna]] -> 300000 | R19: =+Launatafla[[#This Row],[Laun frá launagreiðanda]]+Launatafla[[#This Row],[Laun frá ríkissjóði]] -> 400000 | S19: =IFERROR(Launatafla[[#This Row],[Heildarlaun]]/Launatafla[[#This Row],[Meðal heildarlaun sl. 3M fyrir skatta]],0) -> 1
B20: Endurhæfingarsjóður (%) | C20: 0.001 | E20: Starfsmaður 15 | F20: 500000 | G20: 1 | H20: 0.2 | I20: =+Launatafla[[#This Row],[Starfshlutfall fyrir]]-Launatafla[[#This Row],[Skerðing starfshlutfalls]] -> 0.8 | J20: =+IF(OR(Launatafla[[#This Row],[Skerðing starfshlutfalls]]>Hámarkslækkun_starfshl,Launatafla[[#This Row],[Skerðing starfshlutfalls]]<Lágmarkslækkun_starfshl),0,Atvinnuleysisbætur*Launatafla[[#This Row],[Skerðing starfshlutfalls]]) -> 91280.8 | K20: =IFERROR(Launatafla[[#This Row],[Meðal heildarlaun sl. 3M fyrir skatta]]/Launatafla[[#This Row],[Starfshlutfall fyrir]],0)*(Launatafla[[#This Row],[Starfshlutfall fyrir]]-Launatafla[[#This Row],[Skerðing starfshlutfalls]]) -> 400000 | L20: =+Launatafla[[#This Row],[Atvinnuleysisbætur fyrir skerðingu]]+Launatafla[[#This Row],[Laun frá launagreiðanda]] -> 491280.8 | M20: =-MAX(Launatafla[[#This Row],[Laun með bótum án skerðingar]]-Launatafla[[#This Row],[Meðal heildarlaun sl. 3M fyrir skatta]]*Hámarkshlutfall_af_launum,0) -> -41280.8 | N20: =-MIN(MAX(Launatafla[[#This Row],[Laun með bótum án skerðingar]]-Hámarkslaun,0),Launatafla[[#This Row],[Atvinnuleysisbætur fyrir skerðingu]]) -> 0 | O20: =+MIN(Launatafla[[#This Row],[Skerðing v/ hámarkshlutfalls]:[Skerðing v/ hámarkslauna]]) -> -41280.8 | P20: =+IF(Launatafla[[#This Row],[Atvinnuleysisbætur fyrir skerðingu]]=0,0, MAX(MIN(Lágmarkslaun_fullt_starf,Launatafla[[#This Row],[Meðal heildarlaun sl. 3M fyrir skatta]]/Launatafla[[#This Row],[Starfshlutfall fyrir]])*Launatafla[[#This Row],[Starfshlutfall fyrir]]-(Launatafla[[#This Row],[Laun frá launagreiðanda]]+Launatafla[[#This Row],[Atvinnuleysisbætur fyrir skerðingu]]+Launatafla[[#This Row],[Skerðing v/ samtals]]),0)) -> 0 | Q20: =+Launatafla[[#This Row],[Atvinnuleysisbætur fyrir skerðingu]]+Launatafla[[#This Row],[Skerðing v/ samtals]]+Launatafla[[#This Row],[Viðbót v/ tryggðra lágmarkslauna]] -> 50000 | R20: =+Launatafla[[#This Row],[Laun frá launagreiðanda]]+Launatafla[[#This Row],[Laun frá ríkissjóði]] -> 450000 | S20: =IFERROR(Launatafla[[#This Row],[Heildarlaun]]/Launatafla[[#This Row],[Meðal heildarlaun sl. 3M fyrir skatta]],0) -> 0.9
B21: Tryggingagjald (%) | C21: 0.0635 | E21: Starfsmaður 16 | F21: 500000 | G21: 1 | H21: 0.3 | I21: =+Launatafla[[#This Row],[Starfshlutfall fyrir]]-Launatafla[[#This Row],[Skerðing starfshlutfalls]] -> 0.7 | J21: =+IF(OR(Launatafla[[#This Row],[Skerðing starfshlutfalls]]>Hámarkslækkun_starfshl,Launatafla[[#This Row],[Skerðing starfshlutfalls]]<Lágmarkslækkun_starfshl),0,Atvinnuleysisbætur*Launatafla[[#This Row],[Skerðing starfshlutfalls]]) -> 136921.2 | K21: =IFERROR(Launatafla[[#This Row],[Meðal heildarlaun sl. 3M fyrir skatta]]/Launatafla[[#This Row],[Starfshlutfall fyrir]],0)*(Launatafla[[#This Row],[Starfshlutfall fyrir]]-Launatafla[[#This Row],[Skerðing starfshlutfalls]]) -> 350000 | L21: =+Launatafla[[#This Row],[Atvinnuleysisbætur fyrir skerðingu]]+Launatafla[[#This Row],[Laun frá launagreiðanda]] -> 486921.2 | M21: =-MAX(Launatafla[[#This Row],[Laun með bótum án skerðingar]]-Launatafla[[#This Row],[Meðal heildarlaun sl. 3M fyrir skatta]]*Hámarkshlutfall_af_launum,0) -> -36921.2 | N21: =-MIN(MAX(Launatafla[[#This Row],[Laun með bótum án skerðingar]]-Hámarkslaun,0),Launatafla[[#This Row],[Atvinnuleysisbætur fyrir skerðingu]]) -> 0 | O21: =+MIN(Launatafla[[#This Row],[Skerðing v/ hámarkshlutfalls]:[Skerðing v/ hámarkslauna]]) -> -36921.2 | P21: =+IF(Launatafla[[#This Row],[Atvinnuleysisbætur fyrir skerðingu]]=0,0, MAX(MIN(Lágmarkslaun_fullt_starf,Launatafla[[#This Row],[Meðal heildarlaun sl. 3M fyrir skatta]]/Launatafla[[#This Row],[Starfshlutfall fyrir]])*Launatafla[[#This Row],[Starfshlutfall fyrir]]-(Launatafla[[#This Row],[Laun frá launagreiðanda]]+Launatafla[[#This Row],[Atvinnuleysisbætur fyrir skerðingu]]+Launatafla[[#This Row],[Skerðing v/ samtals]]),0)) -> 0 | Q21: =+Launatafla[[#This Row],[Atvinnuleysisbætur fyrir skerðingu]]+Launatafla[[#This Row],[Skerðing v/ samtals]]+Launatafla[[#This Row],[Viðbót v/ tryggðra lágmarkslauna]] -> 100000 | R21: =+Launatafla[[#This Row],[Laun frá launagreiðanda]]+Launatafla[[#This Row],[Laun frá ríkissjóði]] -> 450000 | S21: =IFERROR(Launatafla[[#This Row],[Heildarlaun]]/Launatafla[[#This Row],[Meðal heildarlaun sl. 3M fyrir skatta]],0) -> 0.9
B22: Mótframlag launagreiðanda í stéttarfélag (%)*1 | C22: 0.0155 | E22: Starfsmaður 17 | F22: 500000 | G22: 1 | H22: 0.4 | I22: =+Launatafla[[#This Row],[Starfshlutfall fyrir]]-Launatafla[[#This Row],[Skerðing starfshlutfalls]] -> 0.6 | J22: =+IF(OR(Launatafla[[#This Row],[Skerðing starfshlutfalls]]>Hámarkslækkun_starfshl,Launatafla[[#This Row],[Skerðing starfshlutfalls]]<Lágmarkslækkun_starfshl),0,Atvinnuleysisbætur*Launatafla[[#This Row],[Skerðing starfshlutfalls]]) -> 182561.6 | K22: =IFERROR(Launatafla[[#This Row],[Meðal heildarlaun sl. 3M fyrir skatta]]/Launatafla[[#This Row],[Starfshlutfall fyrir]],0)*(Launatafla[[#This Row],[Starfshlutfall fyrir]]-Launatafla[[#This Row],[Skerðing starfshlutfalls]]) -> 300000 | L22: =+Launatafla[[#This Row],[Atvinnuleysisbætur fyrir skerðingu]]+Launatafla[[#This Row],[Laun frá launagreiðanda]] -> 482561.6 | M22: =-MAX(Launatafla[[#This Row],[Laun með bótum án skerðingar]]-Launatafla[[#This Row],[Meðal heildarlaun sl. 3M fyrir skatta]]*Hámarkshlutfall_af_launum,0) -> -32561.6 | N22: =-MIN(MAX(Launatafla[[#This Row],[Laun með bótum án skerðingar]]-Hámarkslaun,0),Launatafla[[#This Row],[Atvinnuleysisbætur fyrir skerðingu]]) -> 0 | O22: =+MIN(Launatafla[[#This Row],[Skerðing v/ hámarkshlutfalls]:[Skerðing v/ hámarkslauna]]) -> -32561.6 | P22: =+IF(Launatafla[[#This Row],[Atvinnuleysisbætur fyrir skerðingu]]=0,0, MAX(MIN(Lágmarkslaun_fullt_starf,Launatafla[[#This Row],[Meðal heildarlaun sl. 3M fyrir skatta]]/Launatafla[[#This Row],[Starfshlutfall fyrir]])*Launatafla[[#This Row],[Starfshlutfall fyrir]]-(Launatafla[[#This Row],[Laun frá launagreiðanda]]+Launatafla[[#This Row],[Atvinnuleysisbætur fyrir skerðingu]]+Launatafla[[#This Row],[Skerðing v/ samtals]]),0)) -> 0 | Q22: =+Launatafla[[#This Row],[Atvinnuleysisbætur fyrir skerðingu]]+Launatafla[[#This Row],[Skerðing v/ samtals]]+Launatafla[[#This Row],[Viðbót v/ tryggðra lágmarkslauna]] -> 150000 | R22: =+Launatafla[[#This Row],[Laun frá launagreiðanda]]+Launatafla[[#This Row],[Laun frá ríkissjóði]] -> 450000 | S22: =IFERROR(Launatafla[[#This Row],[Heildarlaun]]/Launatafla[[#This Row],[Meðal heildarlaun sl. 3M fyrir skatta]],0) -> 0.9
B23: Tekjuskattur | E23: Starfsmaður 18 | F23: 500000 | G23: 1 | H23: 0.5 | I23: =+Launatafla[[#This Row],[Starfshlutfall fyrir]]-Launatafla[[#This Row],[Skerðing starfshlutfalls]] -> 0.5 | J23: =+IF(OR(Launatafla[[#This Row],[Skerðing starfshlutfalls]]>Hámarkslækkun_starfshl,Launatafla[[#This Row],[Skerðing starfshlutfalls]]<Lágmarkslækkun_starfshl),0,Atvinnuleysisbætur*Launatafla[[#This Row],[Skerðing starfshlutfalls]]) -> 228202 | K23: =IFERROR(Launatafla[[#This Row],[Meðal heildarlaun sl. 3M fyrir skatta]]/Launatafla[[#This Row],[Starfshlutfall fyrir]],0)*(Launatafla[[#This Row],[Starfshlutfall fyrir]]-Launatafla[[#This Row],[Skerðing starfshlutfalls]]) -> 250000 | L23: =+Launatafla[[#This Row],[Atvinnuleysisbætur fyrir skerðingu]]+Launatafla[[#This Row],[Laun frá launagreiðanda]] -> 478202 | M23: =-MAX(Launatafla[[#This Row],[Laun með bótum án skerðingar]]-Launatafla[[#This Row],[Meðal heildarlaun sl. 3M fyrir skatta]]*Hámarkshlutfall_af_launum,0) -> -28202 | N23: =-MIN(MAX(Launatafla[[#This Row],[Laun með bótum án skerðingar]]-Hámarkslaun,0),Launatafla[[#This Row],[Atvinnuleysisbætur fyrir skerðingu]]) -> 0 | O23: =+MIN(Launatafla[[#This Row],[Skerðing v/ hámarkshlutfalls]:[Skerðing v/ hámarkslauna]]) -> -28202 | P23: =+IF(Launatafla[[#This Row],[Atvinnuleysisbætur fyrir skerðingu]]=0,0, MAX(MIN(Lágmarkslaun_fullt_starf,Launatafla[[#This Row],[Meðal heildarlaun sl. 3M fyrir skatta]]/Launatafla[[#This Row],[Starfshlutfall fyrir]])*Launatafla[[#This Row],[Starfshlutfall fyrir]]-(Launatafla[[#This Row],[Laun frá launagreiðanda]]+Launatafla[[#This Row],[Atvinnuleysisbætur fyrir skerðingu]]+Launatafla[[#This Row],[Skerðing v/ samtals]]),0)) -> 0 | Q23: =+Launatafla[[#This Row],[Atvinnuleysisbætur fyrir skerðingu]]+Launatafla[[#This Row],[Skerðing v/ samtals]]+Launatafla[[#This Row],[Viðbót v/ tryggðra lágmarkslauna]] -> 200000 | R23: =+Launatafla[[#This Row],[Laun frá launagreiðanda]]+Launatafla[[#This Row],[Laun frá ríkissjóði]] -> 450000 | S23: =IFERROR(Launatafla[[#This Row],[Heildarlaun]]/Launatafla[[#This Row],[Meðal heildarlaun sl. 3M fyrir skatta]],0) -> 0.9
B24: 1. skattþrep (%)*2 | C24: 0.3504 | E24: Starfsmaður 19 | F24: 500000 | G24: 1 | H24: 0.6 | I24: =+Launatafla[[#This Row],[Starfshlutfall fyrir]]-Launatafla[[#This Row],[Skerðing starfshlutfalls]] -> 0.4 | J24: =+IF(OR(Launatafla[[#This Row],[Skerðing starfshlutfalls]]>Hámarkslækkun_starfshl,Launatafla[[#This Row],[Skerðing starfshlutfalls]]<Lágmarkslækkun_starfshl),0,Atvinnuleysisbætur*Launatafla[[#This Row],[Skerðing starfshlutfalls]]) -> 273842.4 | K24: =IFERROR(Launatafla[[#This Row],[Meðal heildarlaun sl. 3M fyrir skatta]]/Launatafla[[#This Row],[Starfshlutfall fyrir]],0)*(Launatafla[[#This Row],[Starfshlutfall fyrir]]-Launatafla[[#This Row],[Skerðing starfshlutfalls]]) -> 200000 | L24: =+Launatafla[[#This Row],[Atvinnuleysisbætur fyrir skerðingu]]+Launatafla[[#This Row],[Laun frá launagreiðanda]] -> 473842.4 | M24: =-MAX(Launatafla[[#This Row],[Laun með bótum án skerðingar]]-Launatafla[[#This Row],[Meðal heildarlaun sl. 3M fyrir skatta]]*Hámarkshlutfall_af_launum,0) -> -23842.4 | N24: =-MIN(MAX(Launatafla[[#This Row],[Laun með bótum án skerðingar]]-Hámarkslaun,0),Launatafla[[#This Row],[Atvinnuleysisbætur fyrir skerðingu]]) -> 0 | O24: =+MIN(Launatafla[[#This Row],[Skerðing v/ hámarkshlutfalls]:[Skerðing v/ hámarkslauna]]) -> -23842.4 | P24: =+IF(Launatafla[[#This Row],[Atvinnuleysisbætur fyrir skerðingu]]=0,0, MAX(MIN(Lágmarkslaun_fullt_starf,Launatafla[[#This Row],[Meðal heildarlaun sl. 3M fyrir skatta]]/Launatafla[[#This Row],[Starfshlutfall fyrir]])*Launatafla[[#This Row],[Starfshlutfall fyrir]]-(Launatafla[[#This Row],[Laun frá launagreiðanda]]+Launatafla[[#This Row],[Atvinnuleysisbætur fyrir skerðingu]]+Launatafla[[#This Row],[Skerðing v/ samtals]]),0)) -> 0 | Q24: =+Launatafla[[#This Row],[Atvinnuleysisbætur fyrir skerðingu]]+Launatafla[[#This Row],[Skerðing v/ samtals]]+Launatafla[[#This Row],[Viðbót v/ tryggðra lágmarkslauna]] -> 250000 | R24: =+Launatafla[[#This Row],[Laun frá launagreiðanda]]+Launatafla[[#This Row],[Laun frá ríkissjóði]] -> 450000 | S24: =IFERROR(Launatafla[[#This Row],[Heildarlaun]]/Launatafla[[#This Row],[Meðal heildarlaun sl. 3M fyrir skatta]],0) -> 0.9
B25: 2. skattþrep (%)*2 | C25: 0.3719 | E25: Starfsmaður 20 | F25: 500000 | G25: 1 | H25: 0.7 | I25: =+Launatafla[[#This Row],[Starfshlutfall fyrir]]-Launatafla[[#This Row],[Skerðing starfshlutfalls]] -> 0.3 | J25: =+IF(OR(Launatafla[[#This Row],[Skerðing starfshlutfalls]]>Hámarkslækkun_starfshl,Launatafla[[#This Row],[Skerðing starfshlutfalls]]<Lágmarkslækkun_starfshl),0,Atvinnuleysisbætur*Launatafla[[#This Row],[Skerðing starfshlutfalls]]) -> 319482.8 | K25: =IFERROR(Launatafla[[#This Row],[Meðal heildarlaun sl. 3M fyrir skatta]]/Launatafla[[#This Row],[Starfshlutfall fyrir]],0)*(Launatafla[[#This Row],[Starfshlutfall fyrir]]-Launatafla[[#This Row],[Skerðing starfshlutfalls]]) -> 150000 | L25: =+Launatafla[[#This Row],[Atvinnuleysisbætur fyrir skerðingu]]+Launatafla[[#This Row],[Laun frá launagreiðanda]] -> 469482.8 | M25: =-MAX(Launatafla[[#This Row],[Laun með bótum án skerðingar]]-Launatafla[[#This Row],[Meðal heildarlaun sl. 3M fyrir skatta]]*Hámarkshlutfall_af_launum,0) -> -19482.8 | N25: =-MIN(MAX(Launatafla[[#This Row],[Laun með bótum án skerðingar]]-Hámarkslaun,0),Launatafla[[#This Row],[Atvinnuleysisbætur fyrir skerðingu]]) -> 0 | O25: =+MIN(Launatafla[[#This Row],[Skerðing v/ hámarkshlutfalls]:[Skerðing v/ hámarkslauna]]) -> -19482.8 | P25: =+IF(Launatafla[[#This Row],[Atvinnuleysisbætur fyrir skerðingu]]=0,0, MAX(MIN(Lágmarkslaun_fullt_starf,Launatafla[[#This Row],[Meðal heildarlaun sl. 3M fyrir skatta]]/Launatafla[[#This Row],[Starfshlutfall fyrir]])*Launatafla[[#This Row],[Starfshlutfall fyrir]]-(Launatafla[[#This Row],[Laun frá launagreiðanda]]+Launatafla[[#This Row],[Atvinnuleysisbætur fyrir skerðingu]]+Launatafla[[#This Row],[Skerðing v/ samtals]]),0)) -> 0 | Q25: =+Launatafla[[#This Row],[Atvinnuleysisbætur fyrir skerðingu]]+Launatafla[[#This Row],[Skerðing v/ samtals]]+Launatafla[[#This Row],[Viðbót v/ tryggðra lágmarkslauna]] -> 300000 | R25: =+Launatafla[[#This Row],[Laun frá launagreiðanda]]+Launatafla[[#This Row],[Laun frá ríkissjóði]] -> 450000 | S25: =IFERROR(Launatafla[[#This Row],[Heildarlaun]]/Launatafla[[#This Row],[Meðal heildarlaun sl. 3M fyrir skatta]],0) -> 0.9
B26: 3. skattþrep (%)*2 | C26: 0.4624 | E26: Starfsmaður 21 | F26: 500000 | G26: 1 | H26: 0.75 | I26: =+Launatafla[[#This Row],[Starfshlutfall fyrir]]-Launatafla[[#This Row],[Skerðing starfshlutfalls]] -> 0.25 | J26: =+IF(OR(Launatafla[[#This Row],[Skerðing starfshlutfalls]]>Hámarkslækkun_starfshl,Launatafla[[#This Row],[Skerðing starfshlutfalls]]<Lágmarkslækkun_starfshl),0,Atvinnuleysisbætur*Launatafla[[#This Row],[Skerðing starfshlutfalls]]) -> 342303 | K26: =IFERROR(Launatafla[[#This Row],[Meðal heildarlaun sl. 3M fyrir skatta]]/Launatafla[[#This Row],[Starfshlutfall fyrir]],0)*(Launatafla[[#This Row],[Starfshlutfall fyrir]]-Launatafla[[#This Row],[Skerðing starfshlutfalls]]) -> 125000 | L26: =+Launatafla[[#This Row],[Atvinnuleysisbætur fyrir skerðingu]]+Launatafla[[#This Row],[Laun frá launagreiðanda]] -> 467303 | M26: =-MAX(Launatafla[[#This Row],[Laun með bótum án skerðingar]]-Launatafla[[#This Row],[Meðal heildarlaun sl. 3M fyrir skatta]]*Hámarkshlutfall_af_launum,0) -> -17303 | N26: =-MIN(MAX(Launatafla[[#This Row],[Laun með bótum án skerðingar]]-Hámarkslaun,0),Launatafla[[#This Row],[Atvinnuleysisbætur fyrir skerðingu]]) -> 0 | O26: =+MIN(Launatafla[[#This Row],[Skerðing v/ hámarkshlutfalls]:[Skerðing v/ hámarkslauna]]) -> -17303 | P26: =+IF(Launatafla[[#This Row],[Atvinnuleysisbætur fyrir skerðingu]]=0,0, MAX(MIN(Lágmarkslaun_fullt_starf,Launatafla[[#This Row],[Meðal heildarlaun sl. 3M fyrir skatta]]/Launatafla[[#This Row],[Starfshlutfall fyrir]])*Launatafla[[#This Row],[Starfshlutfall fyrir]]-(Launatafla[[#This Row],[Laun frá launagreiðanda]]+Launatafla[[#This Row],[Atvinnuleysisbætur fyrir skerðingu]]+Launatafla[[#This Row],[Skerðing v/ samtals]]),0)) -> 0 | Q26: =+Launatafla[[#This Row],[Atvinnuleysisbætur fyrir skerðingu]]+Launatafla[[#This Row],[Skerðing v/ samtals]]+Launatafla[[#This Row],[Viðbót v/ tryggðra lágmarkslauna]] -> 325000 | R26: =+Launatafla[[#This Row],[Laun frá launagreiðanda]]+Launatafla[[#This Row],[Laun frá ríkissjóði]] -> 450000 | S26: =IFERROR(Launatafla[[#This Row],[Heildarlaun]]/Launatafla[[#This Row],[Meðal heildarlaun sl. 3M fyrir skatta]],0) -> 0.9
B27: Fjárhæðarmörk 1. þreps - Tekjur að (kr.) | C27: 336916 | E27: Starfsmaður 22 | F27: 600000 | G27: 1 | H27: 0.2 | I27: =+Launatafla[[#This Row],[Starfshlutfall fyrir]]-Launatafla[[#This Row],[Skerðing starfshlutfalls]] -> 0.8 | J27: =+IF(OR(Launatafla[[#This Row],[Skerðing starfshlutfalls]]>Hámarkslækkun_starfshl,Launatafla[[#This Row],[Skerðing starfshlutfalls]]<Lágmarkslækkun_starfshl),0,Atvinnuleysisbætur*Launatafla[[#This Row],[Skerðing starfshlutfalls]]) -> 91280.8 | K27: =IFERROR(Launatafla[[#This Row],[Meðal heildarlaun sl. 3M fyrir skatta]]/Launatafla[[#This Row],[Starfshlutfall fyrir]],0)*(Launatafla[[#This Row],[Starfshlutfall fyrir]]-Launatafla[[#This Row],[Skerðing starfshlutfalls]]) -> 480000 | L27: =+Launatafla[[#This Row],[Atvinnuleysisbætur fyrir skerðingu]]+Launatafla[[#This Row],[Laun frá launagreiðanda]] -> 571280.8 | M27: =-MAX(Launatafla[[#This Row],[Laun með bótum án skerðingar]]-Launatafla[[#This Row],[Meðal heildarlaun sl. 3M fyrir skatta]]*Hámarkshlutfall_af_launum,0) -> -31280.8 | N27: =-MIN(MAX(Launatafla[[#This Row],[Laun með bótum án skerðingar]]-Hámarkslaun,0),Launatafla[[#This Row],[Atvinnuleysisbætur fyrir skerðingu]]) -> 0 | O27: =+MIN(Launatafla[[#This Row],[Skerðing v/ hámarkshlutfalls]:[Skerðing v/ hámarkslauna]]) -> -31280.8 | P27: =+IF(Launatafla[[#This Row],[Atvinnuleysisbætur fyrir skerðingu]]=0,0, MAX(MIN(Lágmarkslaun_fullt_starf,Launatafla[[#This Row],[Meðal heildarlaun sl. 3M fyrir skatta]]/Launatafla[[#This Row],[Starfshlutfall fyrir]])*Launatafla[[#This Row],[Starfshlutfall fyrir]]-(Launatafla[[#This Row],[Laun frá launagreiðanda]]+Launatafla[[#This Row],[Atvinnuleysisbætur fyrir skerðingu]]+Launatafla[[#This Row],[Skerðing v/ samtals]]),0)) -> 0 | Q27: =+Launatafla[[#This Row],[Atvinnuleysisbætur fyrir skerðingu]]+Launatafla[[#This Row],[Skerðing v/ samtals]]+Launatafla[[#This Row],[Viðbót v/ tryggðra lágmarkslauna]] -> 60000 | R27: =+Launatafla[[#This Row],[Laun frá launagreiðanda]]+Launatafla[[#This Row],[Laun frá ríkissjóði]] -> 540000 | S27: =IFERROR(Launatafla[[#This Row],[Heildarlaun]]/Launatafla[[#This Row],[Meðal heildarlaun sl. 3M fyrir skatta]],0) -> 0.9
B28: Fjárhæðarmörk 2. þreps - Tekjur frá efri mörk 1. þreps að (kr.) | C28: 945873 | E28: Starfsmaður 23 | F28: 600000 | G28: 1 | H28: 0.3 | I28: =+Launatafla[[#This Row],[Starfshlutfall fyrir]]-Launatafla[[#This Row],[Skerðing starfshlutfalls]] -> 0.7 | J28: =+IF(OR(Launatafla[[#This Row],[Skerðing starfshlutfalls]]>Hámarkslækkun_starfshl,Launatafla[[#This Row],[Skerðing starfshlutfalls]]<Lágmarkslækkun_starfshl),0,Atvinnuleysisbætur*Launatafla[[#This Row],[Skerðing starfshlutfalls]]) -> 136921.2 | K28: =IFERROR(Launatafla[[#This Row],[Meðal heildarlaun sl. 3M fyrir skatta]]/Launatafla[[#This Row],[Starfshlutfall fyrir]],0)*(Launatafla[[#This Row],[Starfshlutfall fyrir]]-Launatafla[[#This Row],[Skerðing starfshlutfalls]]) -> 420000 | L28: =+Launatafla[[#This Row],[Atvinnuleysisbætur fyrir skerðingu]]+Launatafla[[#This Row],[Laun frá launagreiðanda]] -> 556921.2 | M28: =-MAX(Launatafla[[#This Row],[Laun með bótum án skerðingar]]-Launatafla[[#This Row],[Meðal heildarlaun sl. 3M fyrir skatta]]*Hámarkshlutfall_af_launum,0) -> -16921.2 | N28: =-MIN(MAX(Launatafla[[#This Row],[Laun með bótum án skerðingar]]-Hámarkslaun,0),Launatafla[[#This Row],[Atvinnuleysisbætur fyrir skerðingu]]) -> 0 | O28: =+MIN(Launatafla[[#This Row],[Skerðing v/ hámarkshlutfalls]:[Skerðing v/ hámarkslauna]]) -> -16921.2 | P28: =+IF(Launatafla[[#This Row],[Atvinnuleysisbætur fyrir skerðingu]]=0,0, MAX(MIN(Lágmarkslaun_fullt_starf,Launatafla[[#This Row],[Meðal heildarlaun sl. 3M fyrir skatta]]/Launatafla[[#This Row],[Starfshlutfall fyrir]])*Launatafla[[#This Row],[Starfshlutfall fyrir]]-(Launatafla[[#This Row],[Laun frá launagreiðanda]]+Launatafla[[#This Row],[Atvinnuleysisbætur fyrir skerðingu]]+Launatafla[[#This Row],[Skerðing v/ samtals]]),0)) -> 0 | Q28: =+Launatafla[[#This Row],[Atvinnuleysisbætur fyrir skerðingu]]+Launatafla[[#This Row],[Skerðing v/ samtals]]+Launatafla[[#This Row],[Viðbót v/ tryggðra lágmarkslauna]] -> 120000 | R28: =+Launatafla[[#This Row],[Laun frá launagreiðanda]]+Launatafla[[#This Row],[Laun frá ríkissjóði]] -> 540000 | S28: =IFERROR(Launatafla[[#This Row],[Heildarlaun]]/Launatafla[[#This Row],[Meðal heildarlaun sl. 3M fyrir skatta]],0) -> 0.9
B29: Fjárhæðarmörk 3. þreps - Tekjur frá | C29: 945874 | E29: Starfsmaður 24 | F29: 600000 | G29: 1 | H29: 0.4 | I29: =+Launatafla[[#This Row],[Starfshlutfall fyrir]]-Launatafla[[#This Row],[Skerðing starfshlutfalls]] -> 0.6 | J29: =+IF(OR(Launatafla[[#This Row],[Skerðing starfshlutfalls]]>Hámarkslækkun_starfshl,Launatafla[[#This Row],[Skerðing starfshlutfalls]]<Lágmarkslækkun_starfshl),0,Atvinnuleysisbætur*Launatafla[[#This Row],[Skerðing starfshlutfalls]]) -> 182561.6 | K29: =IFERROR(Launatafla[[#This Row],[Meðal heildarlaun sl. 3M fyrir skatta]]/Launatafla[[#This Row],[Starfshlutfall fyrir]],0)*(Launatafla[[#This Row],[Starfshlutfall fyrir]]-Launatafla[[#This Row],[Skerðing starfshlutfalls]]) -> 360000 | L29: =+Launatafla[[#This Row],[Atvinnuleysisbætur fyrir skerðingu]]+Launatafla[[#This Row],[Laun frá launagreiðanda]] -> 542561.6 | M29: =-MAX(Launatafla[[#This Row],[Laun með bótum án skerðingar]]-Launatafla[[#This Row],[Meðal heildarlaun sl. 3M fyrir skatta]]*Hámarkshlutfall_af_launum,0) -> -2561.6 | N29: =-MIN(MAX(Launatafla[[#This Row],[Laun með bótum án skerðingar]]-Hámarkslaun,0),Launatafla[[#This Row],[Atvinnuleysisbætur fyrir skerðingu]]) -> 0 | O29: =+MIN(Launatafla[[#This Row],[Skerðing v/ hámarkshlutfalls]:[Skerðing v/ hámarkslauna]]) -> -2561.6 | P29: =+IF(Launatafla[[#This Row],[Atvinnuleysisbætur fyrir skerðingu]]=0,0, MAX(MIN(Lágmarkslaun_fullt_starf,Launatafla[[#This Row],[Meðal heildarlaun sl. 3M fyrir skatta]]/Launatafla[[#This Row],[Starfshlutfall fyrir]])*Launatafla[[#This Row],[Starfshlutfall fyrir]]-(Launatafla[[#This Row],[Laun frá launagreiðanda]]+Launatafla[[#This Row],[Atvinnuleysisbætur fyrir skerðingu]]+Launatafla[[#This Row],[Skerðing v/ samtals]]),0)) -> 0 | Q29: =+Launatafla[[#This Row],[Atvinnuleysisbætur fyrir skerðingu]]+Launatafla[[#This Row],[Skerðing v/ samtals]]+Launatafla[[#This Row],[Viðbót v/ tryggðra lágmarkslauna]] -> 180000 | R29: =+Launatafla[[#This Row],[Laun frá launagreiðanda]]+Launatafla[[#This Row],[Laun frá ríkissjóði]] -> 540000 | S29: =IFERROR(Launatafla[[#This Row],[Heildarlaun]]/Launatafla[[#This Row],[Meðal heildarlaun sl. 3M fyrir skatta]],0) -> 0.9
B30: Persónuafsláttur | C30: 54628 | E30: Starfsmaður 25 | F30: 600000 | G30: 1 | H30: 0.5 | I30: =+Launatafla[[#This Row],[Starfshlutfall fyrir]]-Launatafla[[#This Row],[Skerðing starfshlutfalls]] -> 0.5 | J30: =+IF(OR(Launatafla[[#This Row],[Skerðing starfshlutfalls]]>Hámarkslækkun_starfshl,Launatafla[[#This Row],[Skerðing starfshlutfalls]]<Lágmarkslækkun_starfshl),0,Atvinnuleysisbætur*Launatafla[[#This Row],[Skerðing starfshlutfalls]]) -> 228202 | K30: =IFERROR(Launatafla[[#This Row],[Meðal heildarlaun sl. 3M fyrir skatta]]/Launatafla[[#This Row],[Starfshlutfall fyrir]],0)*(Launatafla[[#This Row],[Starfshlutfall fyrir]]-Launatafla[[#This Row],[Skerðing starfshlutfalls]]) -> 300000 | L30: =+Launatafla[[#This Row],[Atvinnuleysisbætur fyrir skerðingu]]+Launatafla[[#This Row],[Laun frá launagreiðanda]] -> 528202 | M30: =-MAX(Launatafla[[#This Row],[Laun með bótum án skerðingar]]-Launatafla[[#This Row],[Meðal heildarlaun sl. 3M fyrir skatta]]*Hámarkshlutfall_af_launum,0) -> 0 | N30: =-MIN(MAX(Launatafla[[#This Row],[Laun með bótum án skerðingar]]-Hámarkslaun,0),Launatafla[[#This Row],[Atvinnuleysisbætur fyrir skerðingu]]) -> 0 | O30: =+MIN(Launatafla[[#This Row],[Skerðing v/ hámarkshlutfalls]:[Skerðing v/ hámarkslauna]]) -> 0 | P30: =+IF(Launatafla[[#This Row],[Atvinnuleysisbætur fyrir skerðingu]]=0,0, MAX(MIN(Lágmarkslaun_fullt_starf,Launatafla[[#This Row],[Meðal heildarlaun sl. 3M fyrir skatta]]/Launatafla[[#This Row],[Starfshlutfall fyrir]])*Launatafla[[#This Row],[Starfshlutfall fyrir]]-(Launatafla[[#This Row],[Laun frá launagreiðanda]]+Launatafla[[#This Row],[Atvinnuleysisbætur fyrir skerðingu]]+Launatafla[[#This Row],[Skerðing v/ samtals]]),0)) -> 0 | Q30: =+Launatafla[[#This Row],[Atvinnuleysisbætur fyrir skerðingu]]+Launatafla[[#This Row],[Skerðing v/ samtals]]+Launatafla[[#This Row],[Viðbót v/ tryggðra lágmarkslauna]] -> 228202 | R30: =+Launatafla[[#This Row],[Laun frá launagreiðanda]]+Launatafla[[#This Row],[Laun frá ríkissjóði]] -> 528202 | S30: =IFERROR(Launatafla[[#This Row],[Heildarlaun]]/Launatafla[[#This Row],[Meðal heildarlaun sl. 3M fyrir skatta]],0) -> 0.8803366667
B31: *1: Iðgjald launþega og launagreiðanda í stéttarfélag er mismunandi eftir stéttarfélögum. Hér er miðað við stéttarfélag VR. | E31: Starfsmaður 26 | F31: 600000 | G31: 1 | H31: 0.6 | I31: =+Launatafla[[#This Row],[Starfshlutfall fyrir]]-Launatafla[[#This Row],[Skerðing starfshlutfalls]] -> 0.4 | J31: =+IF(OR(Launatafla[[#This Row],[Skerðing starfshlutfalls]]>Hámarkslækkun_starfshl,Launatafla[[#This Row],[Skerðing starfshlutfalls]]<Lágmarkslækkun_starfshl),0,Atvinnuleysisbætur*Launatafla[[#This Row],[Skerðing starfshlutfalls]]) -> 273842.4 | K31: =IFERROR(Launatafla[[#This Row],[Meðal heildarlaun sl. 3M fyrir skatta]]/Launatafla[[#This Row],[Starfshlutfall fyrir]],0)*(Launatafla[[#This Row],[Starfshlutfall fyrir]]-Launatafla[[#This Row],[Skerðing starfshlutfalls]]) -> 240000 | L31: =+Launatafla[[#This Row],[Atvinnuleysisbætur fyrir skerðingu]]+Launatafla[[#This Row],[Laun frá launagreiðanda]] -> 513842.4 | M31: =-MAX(Launatafla[[#This Row],[Laun með bótum án skerðingar]]-Launatafla[[#This Row],[Meðal heildarlaun sl. 3M fyrir skatta]]*Hámarkshlutfall_af_launum,0) -> 0 | N31: =-MIN(MAX(Launatafla[[#This Row],[Laun með bótum án skerðingar]]-Hámarkslaun,0),Launatafla[[#This Row],[Atvinnuleysisbætur fyrir skerðingu]]) -> 0 | O31: =+MIN(Launatafla[[#This Row],[Skerðing v/ hámarkshlutfalls]:[Skerðing v/ hámarkslauna]]) -> 0 | P31: =+IF(Launatafla[[#This Row],[Atvinnuleysisbætur fyrir skerðingu]]=0,0, MAX(MIN(Lágmarkslaun_fullt_starf,Launatafla[[#This Row],[Meðal heildarlaun sl. 3M fyrir skatta]]/Launatafla[[#This Row],[Starfshlutfall fyrir]])*Launatafla[[#This Row],[Starfshlutfall fyrir]]-(Launatafla[[#This Row],[Laun frá launagreiðanda]]+Launatafla[[#This Row],[Atvinnuleysisbætur fyrir skerðingu]]+Launatafla[[#This Row],[Skerðing v/ samtals]]),0)) -> 0 | Q31: =+Launatafla[[#This Row],[Atvinnuleysisbætur fyrir skerðingu]]+Launatafla[[#This Row],[Skerðing v/ samtals]]+Launatafla[[#This Row],[Viðbót v/ tryggðra lágmarkslauna]] -> 273842.4 | R31: =+Launatafla[[#This Row],[Laun frá launagreiðanda]]+Launatafla[[#This Row],[Laun frá ríkissjóði]] -> 513842.4 | S31: =IFERROR(Launatafla[[#This Row],[Heildarlaun]]/Launatafla[[#This Row],[Meðal heildarlaun sl. 3M fyrir skatta]],0) -> 0.856404
E32: Starfsmaður 27 | F32: 600000 | G32: 1 | H32: 0.7 | I32: =+Launatafla[[#This Row],[Starfshlutfall fyrir]]-Launatafla[[#This Row],[Skerðing starfshlutfalls]] -> 0.3 | J32: =+IF(OR(Launatafla[[#This Row],[Skerðing starfshlutfalls]]>Hámarkslækkun_starfshl,Launatafla[[#This Row],[Skerðing starfshlutfalls]]<Lágmarkslækkun_starfshl),0,Atvinnuleysisbætur*Launatafla[[#This Row],[Skerðing starfshlutfalls]]) -> 319482.8 | K32: =IFERROR(Launatafla[[#This Row],[Meðal heildarlaun sl. 3M fyrir skatta]]/Launatafla[[#This Row],[Starfshlutfall fyrir]],0)*(Launatafla[[#This Row],[Starfshlutfall fyrir]]-Launatafla[[#This Row],[Skerðing starfshlutfalls]]) -> 180000 | L32: =+Launatafla[[#This Row],[Atvinnuleysisbætur fyrir skerðingu]]+Launatafla[[#This Row],[Laun frá launagreiðanda]] -> 499482.8 | M32: =-MAX(Launatafla[[#This Row],[Laun með bótum án skerðingar]]-Launatafla[[#This Row],[Meðal heildarlaun sl. 3M fyrir skatta]]*Hámarkshlutfall_af_launum,0) -> 0 | N32: =-MIN(MAX(Launatafla[[#This Row],[Laun með bótum án skerðingar]]-Hámarkslaun,0),Launatafla[[#This Row],[Atvinnuleysisbætur fyrir skerðingu]]) -> 0 | O32: =+MIN(Launatafla[[#This Row],[Skerðing v/ hámarkshlutfalls]:[Skerðing v/ hámarkslauna]]) -> 0 | P32: =+IF(Launatafla[[#This Row],[Atvinnuleysisbætur fyrir skerðingu]]=0,0, MAX(MIN(Lágmarkslaun_fullt_starf,Launatafla[[#This Row],[Meðal heildarlaun sl. 3M fyrir skatta]]/Launatafla[[#This Row],[Starfshlutfall fyrir]])*Launatafla[[#This Row],[Starfshlutfall fyrir]]-(Launatafla[[#This Row],[Laun frá launagreiðanda]]+Launatafla[[#This Row],[Atvinnuleysisbætur fyrir skerðingu]]+Launatafla[[#This Row],[Skerðing v/ samtals]]),0)) -> 0 | Q32: =+Launatafla[[#This Row],[Atvinnuleysisbætur fyrir skerðingu]]+Launatafla[[#This Row],[Skerðing v/ samtals]]+Launatafla[[#This Row],[Viðbót v/ tryggðra lágmarkslauna]] -> 319482.8 | R32: =+Launatafla[[#This Row],[Laun frá launagreiðanda]]+Launatafla[[#This Row],[Laun frá ríkissjóði]] -> 499482.8 | S32: =IFERROR(Launatafla[[#This Row],[Heildarlaun]]/Launatafla[[#This Row],[Meðal heildarlaun sl. 3M fyrir skatta]],0) -> 0.8324713333
B33: *2: Tekjuskattshlutfall miðar við meðalútsvar 14,44%. | E33: Starfsmaður 28 | F33: 600000 | G33: 1 | H33: 0.75 | I33: =+Launatafla[[#This Row],[Starfshlutfall fyrir]]-Launatafla[[#This Row],[Skerðing starfshlutfalls]] -> 0.25 | J33: =+IF(OR(Launatafla[[#This Row],[Skerðing starfshlutfalls]]>Hámarkslækkun_starfshl,Launatafla[[#This Row],[Skerðing starfshlutfalls]]<Lágmarkslækkun_starfshl),0,Atvinnuleysisbætur*Launatafla[[#This Row],[Skerðing starfshlutfalls]]) -> 342303 | K33: =IFERROR(Launatafla[[#This Row],[Meðal heildarlaun sl. 3M fyrir skatta]]/Launatafla[[#This Row],[Starfshlutfall fyrir]],0)*(Launatafla[[#This Row],[Starfshlutfall fyrir]]-Launatafla[[#This Row],[Skerðing starfshlutfalls]]) -> 150000 | L33: =+Launatafla[[#This Row],[Atvinnuleysisbætur fyrir skerðingu]]+Launatafla[[#This Row],[Laun frá launagreiðanda]] -> 492303 | M33: =-MAX(Launatafla[[#This Row],[Laun með bótum án skerðingar]]-Launatafla[[#This Row],[Meðal heildarlaun sl. 3M fyrir skatta]]*Hámarkshlutfall_af_launum,0) -> 0 | N33: =-MIN(MAX(Launatafla[[#This Row],[Laun með bótum án skerðingar]]-Hámarkslaun,0),Launatafla[[#This Row],[Atvinnuleysisbætur fyrir skerðingu]]) -> 0 | O33: =+MIN(Launatafla[[#This Row],[Skerðing v/ hámarkshlutfalls]:[Skerðing v/ hámarkslauna]]) -> 0 | P33: =+IF(Launatafla[[#This Row],[Atvinnuleysisbætur fyrir skerðingu]]=0,0, MAX(MIN(Lágmarkslaun_fullt_starf,Launatafla[[#This Row],[Meðal heildarlaun sl. 3M fyrir skatta]]/Launatafla[[#This Row],[Starfshlutfall fyrir]])*Launatafla[[#This Row],[Starfshlutfall fyrir]]-(Launatafla[[#This Row],[Laun frá launagreiðanda]]+Launatafla[[#This Row],[Atvinnuleysisbætur fyrir skerðingu]]+Launatafla[[#This Row],[Skerðing v/ samtals]]),0)) -> 0 | Q33: =+Launatafla[[#This Row],[Atvinnuleysisbætur fyrir skerðingu]]+Launatafla[[#This Row],[Skerðing v/ samtals]]+Launatafla[[#This Row],[Viðbót v/ tryggðra lágmarkslauna]] -> 342303 | R33: =+Launatafla[[#This Row],[Laun frá launagreiðanda]]+Launatafla[[#This Row],[Laun frá ríkissjóði]] -> 492303 | S33: =IFERROR(Launatafla[[#This Row],[Heildarlaun]]/Launatafla[[#This Row],[Meðal heildarlaun sl. 3M fyrir skatta]],0) -> 0.820505
E34: Starfsmaður 29 | F34: 700000 | G34: 1 | H34: 0.2 | I34: =+Launatafla[[#This Row],[Starfshlutfall fyrir]]-Launatafla[[#This Row],[Skerðing starfshlutfalls]] -> 0.8 | J34: =+IF(OR(Launatafla[[#This Row],[Skerðing starfshlutfalls]]>Hámarkslækkun_starfshl,Launatafla[[#This Row],[Skerðing starfshlutfalls]]<Lágmarkslækkun_starfshl),0,Atvinnuleysisbætur*Launatafla[[#This Row],[Skerðing starfshlutfalls]]) -> 91280.8 | K34: =IFERROR(Launatafla[[#This Row],[Meðal heildarlaun sl. 3M fyrir skatta]]/Launatafla[[#This Row],[Starfshlutfall fyrir]],0)*(Launatafla[[#This Row],[Starfshlutfall fyrir]]-Launatafla[[#This Row],[Skerðing starfshlutfalls]]) -> 560000 | L34: =+Launatafla[[#This Row],[Atvinnuleysisbætur fyrir skerðingu]]+Launatafla[[#This Row],[Laun frá launagreiðanda]] -> 651280.8 | M34: =-MAX(Launatafla[[#This Row],[Laun með bótum án skerðingar]]-Launatafla[[#This Row],[Meðal heildarlaun sl. 3M fyrir skatta]]*Hámarkshlutfall_af_launum,0) -> -21280.8 | N34: =-MIN(MAX(Launatafla[[#This Row],[Laun með bótum án skerðingar]]-Hámarkslaun,0),Launatafla[[#This Row],[Atvinnuleysisbætur fyrir skerðingu]]) -> 0 | O34: =+MIN(Launatafla[[#This Row],[Skerðing v/ hámarkshlutfalls]:[Skerðing v/ hámarkslauna]]) -> -21280.8 | P34: =+IF(Launatafla[[#This Row],[Atvinnuleysisbætur fyrir skerðingu]]=0,0, MAX(MIN(Lágmarkslaun_fullt_starf,Launatafla[[#This Row],[Meðal heildarlaun sl. 3M fyrir skatta]]/Launatafla[[#This Row],[Starfshlutfall fyrir]])*Launatafla[[#This Row],[Starfshlutfall fyrir]]-(Launatafla[[#This Row],[Laun frá launagreiðanda]]+Launatafla[[#This Row],[Atvinnuleysisbætur fyrir skerðingu]]+Launatafla[[#This Row],[Skerðing v/ samtals]]),0)) -> 0 | Q34: =+Launatafla[[#This Row],[Atvinnuleysisbætur fyrir skerðingu]]+Launatafla[[#This Row],[Skerðing v/ samtals]]+Launatafla[[#This Row],[Viðbót v/ tryggðra lágmarkslauna]] -> 70000 | R34: =+Launatafla[[#This Row],[Laun frá launagreiðanda]]+Launatafla[[#This Row],[Laun frá ríkissjóði]] -> 630000 | S34: =IFERROR(Launatafla[[#This Row],[Heildarlaun]]/Launatafla[[#This Row],[Meðal heildarlaun sl. 3M fyrir skatta]],0) -> 0.9
E35: Starfsmaður 30 | F35: 700000 | G35: 1 | H35: 0.3 | I35: =+Launatafla[[#This Row],[Starfshlutfall fyrir]]-Launatafla[[#This Row],[Skerðing starfshlutfalls]] -> 0.7 | J35: =+IF(OR(Launatafla[[#This Row],[Skerðing starfshlutfalls]]>Hámarkslækkun_starfshl,Launatafla[[#This Row],[Skerðing starfshlutfalls]]<Lágmarkslækkun_starfshl),0,Atvinnuleysisbætur*Launatafla[[#This Row],[Skerðing starfshlutfalls]]) -> 136921.2 | K35: =IFERROR(Launatafla[[#This Row],[Meðal heildarlaun sl. 3M fyrir skatta]]/Launatafla[[#This Row],[Starfshlutfall fyrir]],0)*(Launatafla[[#This Row],[Starfshlutfall fyrir]]-Launatafla[[#This Row],[Skerðing starfshlutfalls]]) -> 490000 | L35: =+Launatafla[[#This Row],[Atvinnuleysisbætur fyrir skerðingu]]+Launatafla[[#This Row],[Laun frá launagreiðanda]] -> 626921.2 | M35: =-MAX(Launatafla[[#This Row],[Laun með bótum án skerðingar]]-Launatafla[[#This Row],[Meðal heildarlaun sl. 3M fyrir skatta]]*Hámarkshlutfall_af_launum,0) -> 0 | N35: =-MIN(MAX(Launatafla[[#This Row],[Laun með bótum án skerðingar]]-Hámarkslaun,0),Launatafla[[#This Row],[Atvinnuleysisbætur fyrir skerðingu]]) -> 0 | O35: =+MIN(Launatafla[[#This Row],[Skerðing v/ hámarkshlutfalls]:[Skerðing v/ hámarkslauna]]) -> 0 | P35: =+IF(Launatafla[[#This Row],[Atvinnuleysisbætur fyrir skerðingu]]=0,0, MAX(MIN(Lágmarkslaun_fullt_starf,Launatafla[[#This Row],[Meðal heildarlaun sl. 3M fyrir skatta]]/Launatafla[[#This Row],[Starfshlutfall fyrir]])*Launatafla[[#This Row],[Starfshlutfall fyrir]]-(Launatafla[[#This Row],[Laun frá launagreiðanda]]+Launatafla[[#This Row],[Atvinnuleysisbætur fyrir skerðingu]]+Launatafla[[#This Row],[Skerðing v/ samtals]]),0)) -> 0 | Q35: =+Launatafla[[#This Row],[Atvinnuleysisbætur fyrir skerðingu]]+Launatafla[[#This Row],[Skerðing v/ samtals]]+Launatafla[[#This Row],[Viðbót v/ tryggðra lágmarkslauna]] -> 136921.2 | R35: =+Launatafla[[#This Row],[Laun frá launagreiðanda]]+Launatafla[[#This Row],[Laun frá ríkissjóði]] -> 626921.2 | S35: =IFERROR(Launatafla[[#This Row],[Heildarlaun]]/Launatafla[[#This Row],[Meðal heildarlaun sl. 3M fyrir skatta]],0) -> 0.8956017143
E36: Starfsmaður 31 | F36: 700000 | G36: 1 | H36: 0.4 | I36: =+Launatafla[[#This Row],[Starfshlutfall fyrir]]-Launatafla[[#This Row],[Skerðing starfshlutfalls]] -> 0.6 | J36: =+IF(OR(Launatafla[[#This Row],[Skerðing starfshlutfalls]]>Hámarkslækkun_starfshl,Launatafla[[#This Row],[Skerðing starfshlutfalls]]<Lágmarkslækkun_starfshl),0,Atvinnuleysisbætur*Launatafla[[#This Row],[Skerðing starfshlutfalls]]) -> 182561.6 | K36: =IFERROR(Launatafla[[#This Row],[Meðal heildarlaun sl. 3M fyrir skatta]]/Launatafla[[#This Row],[Starfshlutfall fyrir]],0)*(Launatafla[[#This Row],[Starfshlutfall fyrir]]-Launatafla[[#This Row],[Skerðing starfshlutfalls]]) -> 420000 | L36: =+Launatafla[[#This Row],[Atvinnuleysisbætur fyrir skerðingu]]+Launatafla[[#This Row],[Laun frá launagreiðanda]] -> 602561.6 | M36: =-MAX(Launatafla[[#This Row],[Laun með bótum án skerðingar]]-Launatafla[[#This Row],[Meðal heildarlaun sl. 3M fyrir skatta]]*Hámarkshlutfall_af_launum,0) -> 0 | N36: =-MIN(MAX(Launatafla[[#This Row],[Laun með bótum án skerðingar]]-Hámarkslaun,0),Launatafla[[#This Row],[Atvinnuleysisbætur fyrir skerðingu]]) -> 0 | O36: =+MIN(Launatafla[[#This Row],[Skerðing v/ hámarkshlutfalls]:[Skerðing v/ hámarkslauna]]) -> 0 | P36: =+IF(Launatafla[[#This Row],[Atvinnuleysisbætur fyrir skerðingu]]=0,0, MAX(MIN(Lágmarkslaun_fullt_starf,Launatafla[[#This Row],[Meðal heildarlaun sl. 3M fyrir skatta]]/Launatafla[[#This Row],[Starfshlutfall fyrir]])*Launatafla[[#This Row],[Starfshlutfall fyrir]]-(Launatafla[[#This Row],[Laun frá launagreiðanda]]+Launatafla[[#This Row],[Atvinnuleysisbætur fyrir skerðingu]]+Launatafla[[#This Row],[Skerðing v/ samtals]]),0)) -> 0 | Q36: =+Launatafla[[#This Row],[Atvinnuleysisbætur fyrir skerðingu]]+Launatafla[[#This Row],[Skerðing v/ samtals]]+Launatafla[[#This Row],[Viðbót v/ tryggðra lágmarkslauna]] -> 182561.6 | R36: =+Launatafla[[#This Row],[Laun frá launagreiðanda]]+Launatafla[[#This Row],[Laun frá ríkissjóði]] -> 602561.6 | S36: =IFERROR(Launatafla[[#This Row],[Heildarlaun]]/Launatafla[[#This Row],[Meðal heildarlaun sl. 3M fyrir skatta]],0) -> 0.8608022857
E37: Starfsmaður 32 | F37: 700000 | G37: 1 | H37: 0.5 | I37: =+Launatafla[[#This Row],[Starfshlutfall fyrir]]-Launatafla[[#This Row],[Skerðing starfshlutfalls]] -> 0.5 | J37: =+IF(OR(Launatafla[[#This Row],[Skerðing starfshlutfalls]]>Hámarkslækkun_starfshl,Launatafla[[#This Row],[Skerðing starfshlutfalls]]<Lágmarkslækkun_starfshl),0,Atvinnuleysisbætur*Launatafla[[#This Row],[Skerðing starfshlutfalls]]) -> 228202 | K37: =IFERROR(Launatafla[[#This Row],[Meðal heildarlaun sl. 3M fyrir skatta]]/Launatafla[[#This Row],[Starfshlutfall fyrir]],0)*(Launatafla[[#This Row],[Starfshlutfall fyrir]]-Launatafla[[#This Row],[Skerðing starfshlutfalls]]) -> 350000 | L37: =+Launatafla[[#This Row],[Atvinnuleysisbætur fyrir skerðingu]]+Launatafla[[#This Row],[Laun frá launagreiðanda]] -> 578202 | M37: =-MAX(Launatafla[[#This Row],[Laun með bótum án skerðingar]]-Launatafla[[#This Row],[Meðal heildarlaun sl. 3M fyrir skatta]]*Hámarkshlutfall_af_launum,0) -> 0 | N37: =-MIN(MAX(Launatafla[[#This Row],[Laun með bótum án skerðingar]]-Hámarkslaun,0),Launatafla[[#This Row],[Atvinnuleysisbætur fyrir skerðingu]]) -> 0 | O37: =+MIN(Launatafla[[#This Row],[Skerðing v/ hámarkshlutfalls]:[Skerðing v/ hámarkslauna]]) -> 0 | P37: =+IF(Launatafla[[#This Row],[Atvinnuleysisbætur fyrir skerðingu]]=0,0, MAX(MIN(Lágmarkslaun_fullt_starf,Launatafla[[#This Row],[Meðal heildarlaun sl. 3M fyrir skatta]]/Launatafla[[#This Row],[Starfshlutfall fyrir]])*Launatafla[[#This Row],[Starfshlutfall fyrir]]-(Launatafla[[#This Row],[Laun frá launagreiðanda]]+Launatafla[[#This Row],[Atvinnuleysisbætur fyrir skerðingu]]+Launatafla[[#This Row],[Skerðing v/ samtals]]),0)) -> 0 | Q37: =+Launatafla[[#This Row],[Atvinnuleysisbætur fyrir skerðingu]]+Launatafla[[#This Row],[Skerðing v/ samtals]]+Launatafla[[#This Row],[Viðbót v/ tryggðra lágmarkslauna]] -> 228202 | R37: =+Launatafla[[#This Row],[Laun frá launagreiðanda]]+Launatafla[[#This Row],[Laun frá ríkissjóði]] -> 578202 | S37: =IFERROR(Launatafla[[#This Row],[Heildarlaun]]/Launatafla[[#This Row],[Meðal heildarlaun sl. 3M fyrir skatta]],0) -> 0.8260028571
E38: Starfsmaður 33 | F38: 700000 | G38: 1 | H38: 0.6 | I38: =+Launatafla[[#This Row],[Starfshlutfall fyrir]]-Launatafla[[#This Row],[Skerðing starfshlutfalls]] -> 0.4 | J38: =+IF(OR(Launatafla[[#This Row],[Skerðing starfshlutfalls]]>Hámarkslækkun_starfshl,Launatafla[[#This Row],[Skerðing starfshlutfalls]]<Lágmarkslækkun_starfshl),0,Atvinnuleysisbætur*Launatafla[[#This Row],[Skerðing starfshlutfalls]]) -> 273842.4 | K38: =IFERROR(Launatafla[[#This Row],[Meðal heildarlaun sl. 3M fyrir skatta]]/Launatafla[[#This Row],[Starfshlutfall fyrir]],0)*(Launatafla[[#This Row],[Starfshlutfall fyrir]]-Launatafla[[#This Row],[Skerðing starfshlutfalls]]) -> 280000 | L38: =+Launatafla[[#This Row],[Atvinnuleysisbætur fyrir skerðingu]]+Launatafla[[#This Row],[Laun frá launagreiðanda]] -> 553842.4 | M38: =-MAX(Launatafla[[#This Row],[Laun með bótum án skerðingar]]-Launatafla[[#This Row],[Meðal heildarlaun sl. 3M fyrir skatta]]*Hámarkshlutfall_af_launum,0) -> 0 | N38: =-MIN(MAX(Launatafla[[#This Row],[Laun með bótum án skerðingar]]-Hámarkslaun,0),Launatafla[[#This Row],[Atvinnuleysisbætur fyrir skerðingu]]) -> 0 | O38: =+MIN(Launatafla[[#This Row],[Skerðing v/ hámarkshlutfalls]:[Skerðing v/ hámarkslauna]]) -> 0 | P38: =+IF(Launatafla[[#This Row],[Atvinnuleysisbætur fyrir skerðingu]]=0,0, MAX(MIN(Lágmarkslaun_fullt_starf,Launatafla[[#This Row],[Meðal heildarlaun sl. 3M fyrir skatta]]/Launatafla[[#This Row],[Starfshlutfall fyrir]])*Launatafla[[#This Row],[Starfshlutfall fyrir]]-(Launatafla[[#This Row],[Laun frá launagreiðanda]]+Launatafla[[#This Row],[Atvinnuleysisbætur fyrir skerðingu]]+Launatafla[[#This Row],[Skerðing v/ samtals]]),0)) -> 0 | Q38: =+Launatafla[[#This Row],[Atvinnuleysisbætur fyrir skerðingu]]+Launatafla[[#This Row],[Skerðing v/ samtals]]+Launatafla[[#This Row],[Viðbót v/ tryggðra lágmarkslauna]] -> 273842.4 | R38: =+Launatafla[[#This Row],[Laun frá launagreiðanda]]+Launatafla[[#This Row],[Laun frá ríkissjóði]] -> 553842.4 | S38: =IFERROR(Launatafla[[#This Row],[Heildarlaun]]/Launatafla[[#This Row],[Meðal heildarlaun sl. 3M fyrir skatta]],0) -> 0.7912034286
E39: Starfsmaður 34 | F39: 700000 | G39: 1 | H39: 0.7 | I39: =+Launatafla[[#This Row],[Starfshlutfall fyrir]]-Launatafla[[#This Row],[Skerðing starfshlutfalls]] -> 0.3 | J39: =+IF(OR(Launatafla[[#This Row],[Skerðing starfshlutfalls]]>Hámarkslækkun_starfshl,Launatafla[[#This Row],[Skerðing starfshlutfalls]]<Lágmarkslækkun_starfshl),0,Atvinnuleysisbætur*Launatafla[[#This Row],[Skerðing starfshlutfalls]]) -> 319482.8 | K39: =IFERROR(Launatafla[[#This Row],[Meðal heildarlaun sl. 3M fyrir skatta]]/Launatafla[[#This Row],[Starfshlutfall fyrir]],0)*(Launatafla[[#This Row],[Starfshlutfall fyrir]]-Launatafla[[#This Row],[Skerðing starfshlutfalls]]) -> 210000 | L39: =+Launatafla[[#This Row],[Atvinnuleysisbætur fyrir skerðingu]]+Launatafla[[#This Row],[Laun frá launagreiðanda]] -> 529482.8 | M39: =-MAX(Launatafla[[#This Row],[Laun með bótum án skerðingar]]-Launatafla[[#This Row],[Meðal heildarlaun sl. 3M fyrir skatta]]*Hámarkshlutfall_af_launum,0) -> 0 | N39: =-MIN(MAX(Launatafla[[#This Row],[Laun með bótum án skerðingar]]-Hámarkslaun,0),Launatafla[[#This Row],[Atvinnuleysisbætur fyrir skerðingu]]) -> 0 | O39: =+MIN(Launatafla[[#This Row],[Skerðing v/ hámarkshlutfalls]:[Skerðing v/ hámarkslauna]]) -> 0 | P39: =+IF(Launatafla[[#This Row],[Atvinnuleysisbætur fyrir skerðingu]]=0,0, MAX(MIN(Lágmarkslaun_fullt_starf,Launatafla[[#This Row],[Meðal heildarlaun sl. 3M fyrir skatta]]/Launatafla[[#This Row],[Starfshlutfall fyrir]])*Launatafla[[#This Row],[Starfshlutfall fyrir]]-(Launatafla[[#This Row],[Laun frá launagreiðanda]]+Launatafla[[#This Row],[Atvinnuleysisbætur fyrir skerðingu]]+Launatafla[[#This Row],[Skerðing v/ samtals]]),0)) -> 0 | Q39: =+Launatafla[[#This Row],[Atvinnuleysisbætur fyrir skerðingu]]+Launatafla[[#This Row],[Skerðing v/ samtals]]+Launatafla[[#This Row],[Viðbót v/ tryggðra lágmarkslauna]] -> 319482.8 | R39: =+Launatafla[[#This Row],[Laun frá launagreiðanda]]+Launatafla[[#This Row],[Laun frá ríkissjóði]] -> 529482.8 | S39: =IFERROR(Launatafla[[#This Row],[Heildarlaun]]/Launatafla[[#This Row],[Meðal heildarlaun sl. 3M fyrir skatta]],0) -> 0.756404
E40: Starfsmaður 35 | F40: 700000 | G40: 1 | H40: 0.75 | I40: =+Launatafla[[#This Row],[Starfshlutfall fyrir]]-Launatafla[[#This Row],[Skerðing starfshlutfalls]] -> 0.25 | J40: =+IF(OR(Launatafla[[#This Row],[Skerðing starfshlutfalls]]>Hámarkslækkun_starfshl,Launatafla[[#This Row],[Skerðing starfshlutfalls]]<Lágmarkslækkun_starfshl),0,Atvinnuleysisbætur*Launatafla[[#This Row],[Skerðing starfshlutfalls]]) -> 342303 | K40: =IFERROR(Launatafla[[#This Row],[Meðal heildarlaun sl. 3M fyrir skatta]]/Launatafla[[#This Row],[Starfshlutfall fyrir]],0)*(Launatafla[[#This Row],[Starfshlutfall fyrir]]-Launatafla[[#This Row],[Skerðing starfshlutfalls]]) -> 175000 | L40: =+Launatafla[[#This Row],[Atvinnuleysisbætur fyrir skerðingu]]+Launatafla[[#This Row],[Laun frá launagreiðanda]] -> 517303 | M40: =-MAX(Launatafla[[#This Row],[Laun með bótum án skerðingar]]-Launatafla[[#This Row],[Meðal heildarlaun sl. 3M fyrir skatta]]*Hámarkshlutfall_af_launum,0) -> 0 | N40: =-MIN(MAX(Launatafla[[#This Row],[Laun með bótum án skerðingar]]-Hámarkslaun,0),Launatafla[[#This Row],[Atvinnuleysisbætur fyrir skerðingu]]) -> 0 | O40: =+MIN(Launatafla[[#This Row],[Skerðing v/ hámarkshlutfalls]:[Skerðing v/ hámarkslauna]]) -> 0 | P40: =+IF(Launatafla[[#This Row],[Atvinnuleysisbætur fyrir skerðingu]]=0,0, MAX(MIN(Lágmarkslaun_fullt_starf,Launatafla[[#This Row],[Meðal heildarlaun sl. 3M fyrir skatta]]/Launatafla[[#This Row],[Starfshlutfall fyrir]])*Launatafla[[#This Row],[Starfshlutfall fyrir]]-(Launatafla[[#This Row],[Laun frá launagreiðanda]]+Launatafla[[#This Row],[Atvinnuleysisbætur fyrir skerðingu]]+Launatafla[[#This Row],[Skerðing v/ samtals]]),0)) -> 0 | Q40: =+Launatafla[[#This Row],[Atvinnuleysisbætur fyrir skerðingu]]+Launatafla[[#This Row],[Skerðing v/ samtals]]+Launatafla[[#This Row],[Viðbót v/ tryggðra lágmarkslauna]] -> 342303 | R40: =+Launatafla[[#This Row],[Laun frá launagreiðanda]]+Launatafla[[#This Row],[Laun frá ríkissjóði]] -> 517303 | S40: =IFERROR(Launatafla[[#This Row],[Heildarlaun]]/Launatafla[[#This Row],[Meðal heildarlaun sl. 3M fyrir skatta]],0) -> 0.7390042857
E41: Starfsmaður 36 | F41: 800000 | G41: 1 | H41: 0.2 | I41: =+Launatafla[[#This Row],[Starfshlutfall fyrir]]-Launatafla[[#This Row],[Skerðing starfshlutfalls]] -> 0.8 | J41: =+IF(OR(Launatafla[[#This Row],[Skerðing starfshlutfalls]]>Hámarkslækkun_starfshl,Launatafla[[#This Row],[Skerðing starfshlutfalls]]<Lágmarkslækkun_starfshl),0,Atvinnuleysisbætur*Launatafla[[#This Row],[Skerðing starfshlutfalls]]) -> 91280.8 | K41: =IFERROR(Launatafla[[#This Row],[Meðal heildarlaun sl. 3M fyrir skatta]]/Launatafla[[#This Row],[Starfshlutfall fyrir]],0)*(Launatafla[[#This Row],[Starfshlutfall fyrir]]-Launatafla[[#This Row],[Skerðing starfshlutfalls]]) -> 640000 | L41: =+Launatafla[[#This Row],[Atvinnuleysisbætur fyrir skerðingu]]+Launatafla[[#This Row],[Laun frá launagreiðanda]] -> 731280.8 | M41: =-MAX(Launatafla[[#This Row],[Laun með bótum án skerðingar]]-Launatafla[[#This Row],[Meðal heildarlaun sl. 3M fyrir skatta]]*Hámarkshlutfall_af_launum,0) -> -11280.8 | N41: =-MIN(MAX(Launatafla[[#This Row],[Laun með bótum án skerðingar]]-Hámarkslaun,0),Launatafla[[#This Row],[Atvinnuleysisbætur fyrir skerðingu]]) -> -31280.8 | O41: =+MIN(Launatafla[[#This Row],[Skerðing v/ hámarkshlutfalls]:[Skerðing v/ hámarkslauna]]) -> -31280.8 | P41: =+IF(Launatafla[[#This Row],[Atvinnuleysisbætur fyrir skerðingu]]=0,0, MAX(MIN(Lágmarkslaun_fullt_starf,Launatafla[[#This Row],[Meðal heildarlaun sl. 3M fyrir skatta]]/Launatafla[[#This Row],[Starfshlutfall fyrir]])*Launatafla[[#This Row],[Starfshlutfall fyrir]]-(Launatafla[[#This Row],[Laun frá launagreiðanda]]+Launatafla[[#This Row],[Atvinnuleysisbætur fyrir skerðingu]]+Launatafla[[#This Row],[Skerðing v/ samtals]]),0)) -> 0 | Q41: =+Launatafla[[#This Row],[Atvinnuleysisbætur fyrir skerðingu]]+Launatafla[[#This Row],[Skerðing v/ samtals]]+Launatafla[[#This Row],[Viðbót v/ tryggðra lágmarkslauna]] -> 60000 | R41: =+Launatafla[[#This Row],[Laun frá launagreiðanda]]+Launatafla[[#This Row],[Laun frá ríkissjóði]] -> 700000 | S41: =IFERROR(Launatafla[[#This Row],[Heildarlaun]]/Launatafla[[#This Row],[Meðal heildarlaun sl. 3M fyrir skatta]],0) -> 0.875
E42: Starfsmaður 37 | F42: 800000 | G42: 1 | H42: 0.3 | I42: =+Launatafla[[#This Row],[Starfshlutfall fyrir]]-Launatafla[[#This Row],[Skerðing starfshlutfalls]] -> 0.7 | J42: =+IF(OR(Launatafla[[#This Row],[Skerðing starfshlutfalls]]>Hámarkslækkun_starfshl,Launatafla[[#This Row],[Skerðing starfshlutfalls]]<Lágmarkslækkun_starfshl),0,Atvinnuleysisbætur*Launatafla[[#This Row],[Skerðing starfshlutfalls]]) -> 136921.2 | K42: =IFERROR(Launatafla[[#This Row],[Meðal heildarlaun sl. 3M fyrir skatta]]/Launatafla[[#This Row],[Starfshlutfall fyrir]],0)*(Launatafla[[#This Row],[Starfshlutfall fyrir]]-Launatafla[[#This Row],[Skerðing starfshlutfalls]]) -> 560000 | L42: =+Launatafla[[#This Row],[Atvinnuleysisbætur fyrir skerðingu]]+Launatafla[[#This Row],[Laun frá launagreiðanda]] -> 696921.2 | M42: =-MAX(Launatafla[[#This Row],[Laun með bótum án skerðingar]]-Launatafla[[#This Row],[Meðal heildarlaun sl. 3M fyrir skatta]]*Hámarkshlutfall_af_launum,0) -> 0 | N42: =-MIN(MAX(Launatafla[[#This Row],[Laun með bótum án skerðingar]]-Hámarkslaun,0),Launatafla[[#This Row],[Atvinnuleysisbætur fyrir skerðingu]]) -> 0 | O42: =+MIN(Launatafla[[#This Row],[Skerðing v/ hámarkshlutfalls]:[Skerðing v/ hámarkslauna]]) -> 0 | P42: =+IF(Launatafla[[#This Row],[Atvinnuleysisbætur fyrir skerðingu]]=0,0, MAX(MIN(Lágmarkslaun_fullt_starf,Launatafla[[#This Row],[Meðal heildarlaun sl. 3M fyrir skatta]]/Launatafla[[#This Row],[Starfshlutfall fyrir]])*Launatafla[[#This Row],[Starfshlutfall fyrir]]-(Launatafla[[#This Row],[Laun frá launagreiðanda]]+Launatafla[[#This Row],[Atvinnuleysisbætur fyrir skerðingu]]+Launatafla[[#This Row],[Skerðing v/ samtals]]),0)) -> 0 | Q42: =+Launatafla[[#This Row],[Atvinnuleysisbætur fyrir skerðingu]]+Launatafla[[#This Row],[Skerðing v/ samtals]]+Launatafla[[#This Row],[Viðbót v/ tryggðra lágmarkslauna]] -> 136921.2 | R42: =+Launatafla[[#This Row],[Laun frá launagreiðanda]]+Launatafla[[#This Row],[Laun frá ríkissjóði]] -> 696921.2 | S42: =IFERROR(Launatafla[[#This Row],[Heildarlaun]]/Launatafla[[#This Row],[Meðal heildarlaun sl. 3M fyrir skatta]],0) -> 0.8711515
E43: Starfsmaður 38 | F43: 800000 | G43: 1 | H43: 0.4 | I43: =+Launatafla[[#This Row],[Starfshlutfall fyrir]]-Launatafla[[#This Row],[Skerðing starfshlutfalls]] -> 0.6 | J43: =+IF(OR(Launatafla[[#This Row],[Skerðing starfshlutfalls]]>Hámarkslækkun_starfshl,Launatafla[[#This Row],[Skerðing starfshlutfalls]]<Lágmarkslækkun_starfshl),0,Atvinnuleysisbætur*Launatafla[[#This Row],[Skerðing starfshlutfalls]]) -> 182561.6 | K43: =IFERROR(Launatafla[[#This Row],[Meðal heildarlaun sl. 3M fyrir skatta]]/Launatafla[[#This Row],[Starfshlutfall fyrir]],0)*(Launatafla[[#This Row],[Starfshlutfall fyrir]]-Launatafla[[#This Row],[Skerðing starfshlutfalls]]) -> 480000 | L43: =+Launatafla[[#This Row],[Atvinnuleysisbætur fyrir skerðingu]]+Launatafla[[#This Row],[Laun frá launagreiðanda]] -> 662561.6 | M43: =-MAX(Launatafla[[#This Row],[Laun með bótum án skerðingar]]-Launatafla[[#This Row],[Meðal heildarlaun sl. 3M fyrir skatta]]*Hámarkshlutfall_af_launum,0) -> 0 | N43: =-MIN(MAX(Launatafla[[#This Row],[Laun með bótum án skerðingar]]-Hámarkslaun,0),Launatafla[[#This Row],[Atvinnuleysisbætur fyrir skerðingu]]) -> 0 | O43: =+MIN(Launatafla[[#This Row],[Skerðing v/ hámarkshlutfalls]:[Skerðing v/ hámarkslauna]]) -> 0 | P43: =+IF(Launatafla[[#This Row],[Atvinnuleysisbætur fyrir skerðingu]]=0,0, MAX(MIN(Lágmarkslaun_fullt_starf,Launatafla[[#This Row],[Meðal heildarlaun sl. 3M fyrir skatta]]/Launatafla[[#This Row],[Starfshlutfall fyrir]])*Launatafla[[#This Row],[Starfshlutfall fyrir]]-(Launatafla[[#This Row],[Laun frá launagreiðanda]]+Launatafla[[#This Row],[Atvinnuleysisbætur fyrir skerðingu]]+Launatafla[[#This Row],[Skerðing v/ samtals]]),0)) -> 0 | Q43: =+Launatafla[[#This Row],[Atvinnuleysisbætur fyrir skerðingu]]+Launatafla[[#This Row],[Skerðing v/ samtals]]+Launatafla[[#This Row],[Viðbót v/ tryggðra lágmarkslauna]] -> 182561.6 | R43: =+Launatafla[[#This Row],[Laun frá launagreiðanda]]+Launatafla[[#This Row],[Laun frá ríkissjóði]] -> 662561.6 | S43: =IFERROR(Launatafla[[#This Row],[Heildarlaun]]/Launatafla[[#This Row],[Meðal heildarlaun sl. 3M fyrir skatta]],0) -> 0.828202
E44: Starfsmaður 39 | F44: 800000 | G44: 1 | H44: 0.5 | I44: =+Launatafla[[#This Row],[Starfshlutfall fyrir]]-Launatafla[[#This Row],[Skerðing starfshlutfalls]] -> 0.5 | J44: =+IF(OR(Launatafla[[#This Row],[Skerðing starfshlutfalls]]>Hámarkslækkun_starfshl,Launatafla[[#This Row],[Skerðing starfshlutfalls]]<Lágmarkslækkun_starfshl),0,Atvinnuleysisbætur*Launatafla[[#This Row],[Skerðing starfshlutfalls]]) -> 228202 | K44: =IFERROR(Launatafla[[#This Row],[Meðal heildarlaun sl. 3M fyrir skatta]]/Launatafla[[#This Row],[Starfshlutfall fyrir]],0)*(Launatafla[[#This Row],[Starfshlutfall fyrir]]-Launatafla[[#This Row],[Skerðing starfshlutfalls]]) -> 400000 | L44: =+Launatafla[[#This Row],[Atvinnuleysisbætur fyrir skerðingu]]+Launatafla[[#This Row],[Laun frá launagreiðanda]] -> 628202 | M44: =-MAX(Launatafla[[#This Row],[Laun með bótum án skerðingar]]-Launatafla[[#This Row],[Meðal heildarlaun sl. 3M fyrir skatta]]*Hámarkshlutfall_af_launum,0) -> 0 | N44: =-MIN(MAX(Launatafla[[#This Row],[Laun með bótum án skerðingar]]-Hámarkslaun,0),Launatafla[[#This Row],[Atvinnuleysisbætur fyrir skerðingu]]) -> 0 | O44: =+MIN(Launatafla[[#This Row],[Skerðing v/ hámarkshlutfalls]:[Skerðing v/ hámarkslauna]]) -> 0 | P44: =+IF(Launatafla[[#This Row],[Atvinnuleysisbætur fyrir skerðingu]]=0,0, MAX(MIN(Lágmarkslaun_fullt_starf,Launatafla[[#This Row],[Meðal heildarlaun sl. 3M fyrir skatta]]/Launatafla[[#This Row],[Starfshlutfall fyrir]])*Launatafla[[#This Row],[Starfshlutfall fyrir]]-(Launatafla[[#This Row],[Laun frá launagreiðanda]]+Launatafla[[#This Row],[Atvinnuleysisbætur fyrir skerðingu]]+Launatafla[[#This Row],[Skerðing v/ samtals]]),0)) -> 0 | Q44: =+Launatafla[[#This Row],[Atvinnuleysisbætur fyrir skerðingu]]+Launatafla[[#This Row],[Skerðing v/ samtals]]+Launatafla[[#This Row],[Viðbót v/ tryggðra lágmarkslauna]] -> 228202 | R44: =+Launatafla[[#This Row],[Laun frá launagreiðanda]]+Launatafla[[#This Row],[Laun frá ríkissjóði]] -> 628202 | S44: =IFERROR(Launatafla[[#This Row],[Heildarlaun]]/Launatafla[[#This Row],[Meðal heildarlaun sl. 3M fyrir skatta]],0) -> 0.7852525
E45: Starfsmaður 40 | F45: 800000 | G45: 1 | H45: 0.6 | I45: =+Launatafla[[#This Row],[Starfshlutfall fyrir]]-Launatafla[[#This Row],[Skerðing starfshlutfalls]] -> 0.4 | J45: =+IF(OR(Launatafla[[#This Row],[Skerðing starfshlutfalls]]>Hámarkslækkun_starfshl,Launatafla[[#This Row],[Skerðing starfshlutfalls]]<Lágmarkslækkun_starfshl),0,Atvinnuleysisbætur*Launatafla[[#This Row],[Skerðing starfshlutfalls]]) -> 273842.4 | K45: =IFERROR(Launatafla[[#This Row],[Meðal heildarlaun sl. 3M fyrir skatta]]/Launatafla[[#This Row],[Starfshlutfall fyrir]],0)*(Launatafla[[#This Row],[Starfshlutfall fyrir]]-Launatafla[[#This Row],[Skerðing starfshlutfalls]]) -> 320000 | L45: =+Launatafla[[#This Row],[Atvinnuleysisbætur fyrir skerðingu]]+Launatafla[[#This Row],[Laun frá launagreiðanda]] -> 593842.4 | M45: =-MAX(Launatafla[[#This Row],[Laun með bótum án skerðingar]]-Launatafla[[#This Row],[Meðal heildarlaun sl. 3M fyrir skatta]]*Hámarkshlutfall_af_launum,0) -> 0 | N45: =-MIN(MAX(Launatafla[[#This Row],[Laun með bótum án skerðingar]]-Hámarkslaun,0),Launatafla[[#This Row],[Atvinnuleysisbætur fyrir skerðingu]]) -> 0 | O45: =+MIN(Launatafla[[#This Row],[Skerðing v/ hámarkshlutfalls]:[Skerðing v/ hámarkslauna]]) -> 0 | P45: =+IF(Launatafla[[#This Row],[Atvinnuleysisbætur fyrir skerðingu]]=0,0, MAX(MIN(Lágmarkslaun_fullt_starf,Launatafla[[#This Row],[Meðal heildarlaun sl. 3M fyrir skatta]]/Launatafla[[#This Row],[Starfshlutfall fyrir]])*Launatafla[[#This Row],[Starfshlutfall fyrir]]-(Launatafla[[#This Row],[Laun frá launagreiðanda]]+Launatafla[[#This Row],[Atvinnuleysisbætur fyrir skerðingu]]+Launatafla[[#This Row],[Skerðing v/ samtals]]),0)) -> 0 | Q45: =+Launatafla[[#This Row],[Atvinnuleysisbætur fyrir skerðingu]]+Launatafla[[#This Row],[Skerðing v/ samtals]]+Launatafla[[#This Row],[Viðbót v/ tryggðra lágmarkslauna]] -> 273842.4 | R45: =+Launatafla[[#This Row],[Laun frá launagreiðanda]]+Launatafla[[#This Row],[Laun frá ríkissjóði]] -> 593842.4 | S45: =IFERROR(Launatafla[[#This Row],[Heildarlaun]]/Launatafla[[#This Row],[Meðal heildarlaun sl. 3M fyrir skatta]],0) -> 0.742303
E46: Starfsmaður 41 | F46: 800000 | G46: 1 | H46: 0.7 | I46: =+Launatafla[[#This Row],[Starfshlutfall fyrir]]-Launatafla[[#This Row],[Skerðing starfshlutfalls]] -> 0.3 | J46: =+IF(OR(Launatafla[[#This Row],[Skerðing starfshlutfalls]]>Hámarkslækkun_starfshl,Launatafla[[#This Row],[Skerðing starfshlutfalls]]<Lágmarkslækkun_starfshl),0,Atvinnuleysisbætur*Launatafla[[#This Row],[Skerðing starfshlutfalls]]) -> 319482.8 | K46: =IFERROR(Launatafla[[#This Row],[Meðal heildarlaun sl. 3M fyrir skatta]]/Launatafla[[#This Row],[Starfshlutfall fyrir]],0)*(Launatafla[[#This Row],[Starfshlutfall fyrir]]-Launatafla[[#This Row],[Skerðing starfshlutfalls]]) -> 240000 | L46: =+Launatafla[[#This Row],[Atvinnuleysisbætur fyrir skerðingu]]+Launatafla[[#This Row],[Laun frá launagreiðanda]] -> 559482.8 | M46: =-MAX(Launatafla[[#This Row],[Laun með bótum án skerðingar]]-Launatafla[[#This Row],[Meðal heildarlaun sl. 3M fyrir skatta]]*Hámarkshlutfall_af_launum,0) -> 0 | N46: =-MIN(MAX(Launatafla[[#This Row],[Laun með bótum án skerðingar]]-Hámarkslaun,0),Launatafla[[#This Row],[Atvinnuleysisbætur fyrir skerðingu]]) -> 0 | O46: =+MIN(Launatafla[[#This Row],[Skerðing v/ hámarkshlutfalls]:[Skerðing v/ hámarkslauna]]) -> 0 | P46: =+IF(Launatafla[[#This Row],[Atvinnuleysisbætur fyrir skerðingu]]=0,0, MAX(MIN(Lágmarkslaun_fullt_starf,Launatafla[[#This Row],[Meðal heildarlaun sl. 3M fyrir skatta]]/Launatafla[[#This Row],[Starfshlutfall fyrir]])*Launatafla[[#This Row],[Starfshlutfall fyrir]]-(Launatafla[[#This Row],[Laun frá launagreiðanda]]+Launatafla[[#This Row],[Atvinnuleysisbætur fyrir skerðingu]]+Launatafla[[#This Row],[Skerðing v/ samtals]]),0)) -> 0 | Q46: =+Launatafla[[#This Row],[Atvinnuleysisbætur fyrir skerðingu]]+Launatafla[[#This Row],[Skerðing v/ samtals]]+Launatafla[[#This Row],[Viðbót v/ tryggðra lágmarkslauna]] -> 319482.8 | R46: =+Launatafla[[#This Row],[Laun frá launagreiðanda]]+Launatafla[[#This Row],[Laun frá ríkissjóði]] -> 559482.8 | S46: =IFERROR(Launatafla[[#This Row],[Heildarlaun]]/Launatafla[[#This Row],[Meðal heildarlaun sl. 3M fyrir skatta]],0) -> 0.6993535
E47: Starfsmaður 42 | F47: 800000 | G47: 1 | H47: 0.75 | I47: =+Launatafla[[#This Row],[Starfshlutfall fyrir]]-Launatafla[[#This Row],[Skerðing starfshlutfalls]] -> 0.25 | J47: =+IF(OR(Launatafla[[#This Row],[Skerðing starfshlutfalls]]>Hámarkslækkun_starfshl,Launatafla[[#This Row],[Skerðing starfshlutfalls]]<Lágmarkslækkun_starfshl),0,Atvinnuleysisbætur*Launatafla[[#This Row],[Skerðing starfshlutfalls]]) -> 342303 | K47: =IFERROR(Launatafla[[#This Row],[Meðal heildarlaun sl. 3M fyrir skatta]]/Launatafla[[#This Row],[Starfshlutfall fyrir]],0)*(Launatafla[[#This Row],[Starfshlutfall fyrir]]-Launatafla[[#This Row],[Skerðing starfshlutfalls]]) -> 200000 | L47: =+Launatafla[[#This Row],[Atvinnuleysisbætur fyrir skerðingu]]+Launatafla[[#This Row],[Laun frá launagreiðanda]] -> 542303 | M47: =-MAX(Launatafla[[#This Row],[Laun með bótum án skerðingar]]-Launatafla[[#This Row],[Meðal heildarlaun sl. 3M fyrir skatta]]*Hámarkshlutfall_af_launum,0) -> 0 | N47: =-MIN(MAX(Launatafla[[#This Row],[Laun með bótum án skerðingar]]-Hámarkslaun,0),Launatafla[[#This Row],[Atvinnuleysisbætur fyrir skerðingu]]) -> 0 | O47: =+MIN(Launatafla[[#This Row],[Skerðing v/ hámarkshlutfalls]:[Skerðing v/ hámarkslauna]]) -> 0 | P47: =+IF(Launatafla[[#This Row],[Atvinnuleysisbætur fyrir skerðingu]]=0,0, MAX(MIN(Lágmarkslaun_fullt_starf,Launatafla[[#This Row],[Meðal heildarlaun sl. 3M fyrir skatta]]/Launatafla[[#This Row],[Starfshlutfall fyrir]])*Launatafla[[#This Row],[Starfshlutfall fyrir]]-(Launatafla[[#This Row],[Laun frá launagreiðanda]]+Launatafla[[#This Row],[Atvinnuleysisbætur fyrir skerðingu]]+Launatafla[[#This Row],[Skerðing v/ samtals]]),0)) -> 0 | Q47: =+Launatafla[[#This Row],[Atvinnuleysisbætur fyrir skerðingu]]+Launatafla[[#This Row],[Skerðing v/ samtals]]+Launatafla[[#This Row],[Viðbót v/ tryggðra lágmarkslauna]] -> 342303 | R47: =+Launatafla[[#This Row],[Laun frá launagreiðanda]]+Launatafla[[#This Row],[Laun frá ríkissjóði]] -> 542303 | S47: =IFERROR(Launatafla[[#This Row],[Heildarlaun]]/Launatafla[[#This Row],[Meðal heildarlaun sl. 3M fyrir skatta]],0) -> 0.67787875
E48: Starfsmaður 43 | F48: 900000 | G48: 1 | H48: 0.2 | I48: =+Launatafla[[#This Row],[Starfshlutfall fyrir]]-Launatafla[[#This Row],[Skerðing starfshlutfalls]] -> 0.8 | J48: =+IF(OR(Launatafla[[#This Row],[Skerðing starfshlutfalls]]>Hámarkslækkun_starfshl,Launatafla[[#This Row],[Skerðing starfshlutfalls]]<Lágmarkslækkun_starfshl),0,Atvinnuleysisbætur*Launatafla[[#This Row],[Skerðing starfshlutfalls]]) -> 91280.8 | K48: =IFERROR(Launatafla[[#This Row],[Meðal heildarlaun sl. 3M fyrir skatta]]/Launatafla[[#This Row],[Starfshlutfall fyrir]],0)*(Launatafla[[#This Row],[Starfshlutfall fyrir]]-Launatafla[[#This Row],[Skerðing starfshlutfalls]]) -> 720000 | L48: =+Launatafla[[#This Row],[Atvinnuleysisbætur fyrir skerðingu]]+Launatafla[[#This Row],[Laun frá launagreiðanda]] -> 811280.8 | M48: =-MAX(Launatafla[[#This Row],[Laun með bótum án skerðingar]]-Launatafla[[#This Row],[Meðal heildarlaun sl. 3M fyrir skatta]]*Hámarkshlutfall_af_launum,0) -> -1280.8 | N48: =-MIN(MAX(Launatafla[[#This Row],[Laun með bótum án skerðingar]]-Hámarkslaun,0),Launatafla[[#This Row],[Atvinnuleysisbætur fyrir skerðingu]]) -> -91280.8 | O48: =+MIN(Launatafla[[#This Row],[Skerðing v/ hámarkshlutfalls]:[Skerðing v/ hámarkslauna]]) -> -91280.8 | P48: =+IF(Launatafla[[#This Row],[Atvinnuleysisbætur fyrir skerðingu]]=0,0, MAX(MIN(Lágmarkslaun_fullt_starf,Launatafla[[#This Row],[Meðal heildarlaun sl. 3M fyrir skatta]]/Launatafla[[#This Row],[Starfshlutfall fyrir]])*Launatafla[[#This Row],[Starfshlutfall fyrir]]-(Launatafla[[#This Row],[Laun frá launagreiðanda]]+Launatafla[[#This Row],[Atvinnuleysisbætur fyrir skerðingu]]+Launatafla[[#This Row],[Skerðing v/ samtals]]),0)) -> 0 | Q48: =+Launatafla[[#This Row],[Atvinnuleysisbætur fyrir skerðingu]]+Launatafla[[#This Row],[Skerðing v/ samtals]]+Launatafla[[#This Row],[Viðbót v/ tryggðra lágmarkslauna]] -> 0 | R48: =+Launatafla[[#This Row],[Laun frá launagreiðanda]]+Launatafla[[#This Row],[Laun frá ríkissjóði]] -> 720000 | S48: =IFERROR(Launatafla[[#This Row],[Heildarlaun]]/Launatafla[[#This Row],[Meðal heildarlaun sl. 3M fyrir skatta]],0) -> 0.8
E49: Starfsmaður 44 | F49: 900000 | G49: 1 | H49: 0.3 | I49: =+Launatafla[[#This Row],[Starfshlutfall fyrir]]-Launatafla[[#This Row],[Skerðing starfshlutfalls]] -> 0.7 | J49: =+IF(OR(Launatafla[[#This Row],[Skerðing starfshlutfalls]]>Hámarkslækkun_starfshl,Launatafla[[#This Row],[Skerðing starfshlutfalls]]<Lágmarkslækkun_starfshl),0,Atvinnuleysisbætur*Launatafla[[#This Row],[Skerðing starfshlutfalls]]) -> 136921.2 | K49: =IFERROR(Launatafla[[#This Row],[Meðal heildarlaun sl. 3M fyrir skatta]]/Launatafla[[#This Row],[Starfshlutfall fyrir]],0)*(Launatafla[[#This Row],[Starfshlutfall fyrir]]-Launatafla[[#This Row],[Skerðing starfshlutfalls]]) -> 630000 | L49: =+Launatafla[[#This Row],[Atvinnuleysisbætur fyrir skerðingu]]+Launatafla[[#This Row],[Laun frá launagreiðanda]] -> 766921.2 | M49: =-MAX(Launatafla[[#This Row],[Laun með bótum án skerðingar]]-Launatafla[[#This Row],[Meðal heildarlaun sl. 3M fyrir skatta]]*Hámarkshlutfall_af_launum,0) -> 0 | N49: =-MIN(MAX(Launatafla[[#This Row],[Laun með bótum án skerðingar]]-Hámarkslaun,0),Launatafla[[#This Row],[Atvinnuleysisbætur fyrir skerðingu]]) -> -66921.2 | O49: =+MIN(Launatafla[[#This Row],[Skerðing v/ hámarkshlutfalls]:[Skerðing v/ hámarkslauna]]) -> -66921.2 | P49: =+IF(Launatafla[[#This Row],[Atvinnuleysisbætur fyrir skerðingu]]=0,0, MAX(MIN(Lágmarkslaun_fullt_starf,Launatafla[[#This Row],[Meðal heildarlaun sl. 3M fyrir skatta]]/Launatafla[[#This Row],[Starfshlutfall fyrir]])*Launatafla[[#This Row],[Starfshlutfall fyrir]]-(Launatafla[[#This Row],[Laun frá launagreiðanda]]+Launatafla[[#This Row],[Atvinnuleysisbætur fyrir skerðingu]]+Launatafla[[#This Row],[Skerðing v/ samtals]]),0)) -> 0 | Q49: =+Launatafla[[#This Row],[Atvinnuleysisbætur fyrir skerðingu]]+Launatafla[[#This Row],[Skerðing v/ samtals]]+Launatafla[[#This Row],[Viðbót v/ tryggðra lágmarkslauna]] -> 70000 | R49: =+Launatafla[[#This Row],[Laun frá launagreiðanda]]+Launatafla[[#This Row],[Laun frá ríkissjóði]] -> 700000 | S49: =IFERROR(Launatafla[[#This Row],[Heildarlaun]]/Launatafla[[#This Row],[Meðal heildarlaun sl. 3M fyrir skatta]],0) -> 0.7777777778
E50: Starfsmaður 45 | F50: 900000 | G50: 1 | H50: 0.4 | I50: =+Launatafla[[#This Row],[Starfshlutfall fyrir]]-Launatafla[[#This Row],[Skerðing starfshlutfalls]] -> 0.6 | J50: =+IF(OR(Launatafla[[#This Row],[Skerðing starfshlutfalls]]>Hámarkslækkun_starfshl,Launatafla[[#This Row],[Skerðing starfshlutfalls]]<Lágmarkslækkun_starfshl),0,Atvinnuleysisbætur*Launatafla[[#This Row],[Skerðing starfshlutfalls]]) -> 182561.6 | K50: =IFERROR(Launatafla[[#This Row],[Meðal heildarlaun sl. 3M fyrir skatta]]/Launatafla[[#This Row],[Starfshlutfall fyrir]],0)*(Launatafla[[#This Row],[Starfshlutfall fyrir]]-Launatafla[[#This Row],[Skerðing starfshlutfalls]]) -> 540000 | L50: =+Launatafla[[#This Row],[Atvinnuleysisbætur fyrir skerðingu]]+Launatafla[[#This Row],[Laun frá launagreiðanda]] -> 722561.6 | M50: =-MAX(Launatafla[[#This Row],[Laun með bótum án skerðingar]]-Launatafla[[#This Row],[Meðal heildarlaun sl. 3M fyrir skatta]]*Hámarkshlutfall_af_launum,0) -> 0 | N50: =-MIN(MAX(Launatafla[[#This Row],[Laun með bótum án skerðingar]]-Hámarkslaun,0),Launatafla[[#This Row],[Atvinnuleysisbætur fyrir skerðingu]]) -> -22561.6 | O50: =+MIN(Launatafla[[#This Row],[Skerðing v/ hámarkshlutfalls]:[Skerðing v/ hámarkslauna]]) -> -22561.6 | P50: =+IF(Launatafla[[#This Row],[Atvinnuleysisbætur fyrir skerðingu]]=0,0, MAX(MIN(Lágmarkslaun_fullt_starf,Launatafla[[#This Row],[Meðal heildarlaun sl. 3M fyrir skatta]]/Launatafla[[#This Row],[Starfshlutfall fyrir]])*Launatafla[[#This Row],[Starfshlutfall fyrir]]-(Launatafla[[#This Row],[Laun frá launagreiðanda]]+Launatafla[[#This Row],[Atvinnuleysisbætur fyrir skerðingu]]+Launatafla[[#This Row],[Skerðing v/ samtals]]),0)) -> 0 | Q50: =+Launatafla[[#This Row],[Atvinnuleysisbætur fyrir skerðingu]]+Launatafla[[#This Row],[Skerðing v/ samtals]]+Launatafla[[#This Row],[Viðbót v/ tryggðra lágmarkslauna]] -> 160000 | R50: =+Launatafla[[#This Row],[Laun frá launagreiðanda]]+Launatafla[[#This Row],[Laun frá ríkissjóði]] -> 700000 | S50: =IFERROR(Launatafla[[#This Row],[Heildarlaun]]/Launatafla[[#This Row],[Meðal heildarlaun sl. 3M fyrir skatta]],0) -> 0.7777777778
E51: Starfsmaður 46 | F51: 900000 | G51: 1 | H51: 0.5 | I51: =+Launatafla[[#This Row],[Starfshlutfall fyrir]]-Launatafla[[#This Row],[Skerðing starfshlutfalls]] -> 0.5 | J51: =+IF(OR(Launatafla[[#This Row],[Skerðing starfshlutfalls]]>Hámarkslækkun_starfshl,Launatafla[[#This Row],[Skerðing starfshlutfalls]]<Lágmarkslækkun_starfshl),0,Atvinnuleysisbætur*Launatafla[[#This Row],[Skerðing starfshlutfalls]]) -> 228202 | K51: =IFERROR(Launatafla[[#This Row],[Meðal heildarlaun sl. 3M fyrir skatta]]/Launatafla[[#This Row],[Starfshlutfall fyrir]],0)*(Launatafla[[#This Row],[Starfshlutfall fyrir]]-Launatafla[[#This Row],[Skerðing starfshlutfalls]]) -> 450000 | L51: =+Launatafla[[#This Row],[Atvinnuleysisbætur fyrir skerðingu]]+Launatafla[[#This Row],[Laun frá launagreiðanda]] -> 678202 | M51: =-MAX(Launatafla[[#This Row],[Laun með bótum án skerðingar]]-Launatafla[[#This Row],[Meðal heildarlaun sl. 3M fyrir skatta]]*Hámarkshlutfall_af_launum,0) -> 0 | N51: =-MIN(MAX(Launatafla[[#This Row],[Laun með bótum án skerðingar]]-Hámarkslaun,0),Launatafla[[#This Row],[Atvinnuleysisbætur fyrir skerðingu]]) -> 0 | O51: =+MIN(Launatafla[[#This Row],[Skerðing v/ hámarkshlutfalls]:[Skerðing v/ hámarkslauna]]) -> 0 | P51: =+IF(Launatafla[[#This Row],[Atvinnuleysisbætur fyrir skerðingu]]=0,0, MAX(MIN(Lágmarkslaun_fullt_starf,Launatafla[[#This Row],[Meðal heildarlaun sl. 3M fyrir skatta]]/Launatafla[[#This Row],[Starfshlutfall fyrir]])*Launatafla[[#This Row],[Starfshlutfall fyrir]]-(Launatafla[[#This Row],[Laun frá launagreiðanda]]+Launatafla[[#This Row],[Atvinnuleysisbætur fyrir skerðingu]]+Launatafla[[#This Row],[Skerðing v/ samtals]]),0)) -> 0 | Q51: =+Launatafla[[#This Row],[Atvinnuleysisbætur fyrir skerðingu]]+Launatafla[[#This Row],[Skerðing v/ samtals]]+Launatafla[[#This Row],[Viðbót v/ tryggðra lágmarkslauna]] -> 228202 | R51: =+Launatafla[[#This Row],[Laun frá launagreiðanda]]+Launatafla[[#This Row],[Laun frá ríkissjóði]] -> 678202 | S51: =IFERROR(Launatafla[[#This Row],[Heildarlaun]]/Launatafla[[#This Row],[Meðal heildarlaun sl. 3M fyrir skatta]],0) -> 0.7535577778
E52: Starfsmaður 47 | F52: 900000 | G52: 1 | H52: 0.6 | I52: =+Launatafla[[#This Row],[Starfshlutfall fyrir]]-Launatafla[[#This Row],[Skerðing starfshlutfalls]] -> 0.4 | J52: =+IF(OR(Launatafla[[#This Row],[Skerðing starfshlutfalls]]>Hámarkslækkun_starfshl,Launatafla[[#This Row],[Skerðing starfshlutfalls]]<Lágmarkslækkun_starfshl),0,Atvinnuleysisbætur*Launatafla[[#This Row],[Skerðing starfshlutfalls]]) -> 273842.4 | K52: =IFERROR(Launatafla[[#This Row],[Meðal heildarlaun sl. 3M fyrir skatta]]/Launatafla[[#This Row],[Starfshlutfall fyrir]],0)*(Launatafla[[#This Row],[Starfshlutfall fyrir]]-Launatafla[[#This Row],[Skerðing starfshlutfalls]]) -> 360000 | L52: =+Launatafla[[#This Row],[Atvinnuleysisbætur fyrir skerðingu]]+Launatafla[[#This Row],[Laun frá launagreiðanda]] -> 633842.4 | M52: =-MAX(Launatafla[[#This Row],[Laun með bótum án skerðingar]]-Launatafla[[#This Row],[Meðal heildarlaun sl. 3M fyrir skatta]]*Hámarkshlutfall_af_launum,0) -> 0 | N52: =-MIN(MAX(Launatafla[[#This Row],[Laun með bótum án skerðingar]]-Hámarkslaun,0),Launatafla[[#This Row],[Atvinnuleysisbætur fyrir skerðingu]]) -> 0 | O52: =+MIN(Launatafla[[#This Row],[Skerðing v/ hámarkshlutfalls]:[Skerðing v/ hámarkslauna]]) -> 0 | P52: =+IF(Launatafla[[#This Row],[Atvinnuleysisbætur fyrir skerðingu]]=0,0, MAX(MIN(Lágmarkslaun_fullt_starf,Launatafla[[#This Row],[Meðal heildarlaun sl. 3M fyrir skatta]]/Launatafla[[#This Row],[Starfshlutfall fyrir]])*Launatafla[[#This Row],[Starfshlutfall fyrir]]-(Launatafla[[#This Row],[Laun frá launagreiðanda]]+Launatafla[[#This Row],[Atvinnuleysisbætur fyrir skerðingu]]+Launatafla[[#This Row],[Skerðing v/ samtals]]),0)) -> 0 | Q52: =+Launatafla[[#This Row],[Atvinnuleysisbætur fyrir skerðingu]]+Launatafla[[#This Row],[Skerðing v/ samtals]]+Launatafla[[#This Row],[Viðbót v/ tryggðra lágmarkslauna]] -> 273842.4 | R52: =+Launatafla[[#This Row],[Laun frá launagreiðanda]]+Launatafla[[#This Row],[Laun frá ríkissjóði]] -> 633842.4 | S52: =IFERROR(Launatafla[[#This Row],[Heildarlaun]]/Launatafla[[#This Row],[Meðal heildarlaun sl. 3M fyrir skatta]],0) -> 0.7042693333
E53: Starfsmaður 48 | F53: 900000 | G53: 1 | H53: 0.7 | I53: =+Launatafla[[#This Row],[Starfshlutfall fyrir]]-Launatafla[[#This Row],[Skerðing starfshlutfalls]] -> 0.3 | J53: =+IF(OR(Launatafla[[#This Row],[Skerðing starfshlutfalls]]>Hámarkslækkun_starfshl,Launatafla[[#This Row],[Skerðing starfshlutfalls]]<Lágmarkslækkun_starfshl),0,Atvinnuleysisbætur*Launatafla[[#This Row],[Skerðing starfshlutfalls]]) -> 319482.8 | K53: =IFERROR(Launatafla[[#This Row],[Meðal heildarlaun sl. 3M fyrir skatta]]/Launatafla[[#This Row],[Starfshlutfall fyrir]],0)*(Launatafla[[#This Row],[Starfshlutfall fyrir]]-Launatafla[[#This Row],[Skerðing starfshlutfalls]]) -> 270000 | L53: =+Launatafla[[#This Row],[Atvinnuleysisbætur fyrir skerðingu]]+Launatafla[[#This Row],[Laun frá launagreiðanda]] -> 589482.8 | M53: =-MAX(Launatafla[[#This Row],[Laun með bótum án skerðingar]]-Launatafla[[#This Row],[Meðal heildarlaun sl. 3M fyrir skatta]]*Hámarkshlutfall_af_launum,0) -> 0 | N53: =-MIN(MAX(Launatafla[[#This Row],[Laun með bótum án skerðingar]]-Hámarkslaun,0),Launatafla[[#This Row],[Atvinnuleysisbætur fyrir skerðingu]]) -> 0 | O53: =+MIN(Launatafla[[#This Row],[Skerðing v/ hámarkshlutfalls]:[Skerðing v/ hámarkslauna]]) -> 0 | P53: =+IF(Launatafla[[#This Row],[Atvinnuleysisbætur fyrir skerðingu]]=0,0, MAX(MIN(Lágmarkslaun_fullt_starf,Launatafla[[#This Row],[Meðal heildarlaun sl. 3M fyrir skatta]]/Launatafla[[#This Row],[Starfshlutfall fyrir]])*Launatafla[[#This Row],[Starfshlutfall fyrir]]-(Launatafla[[#This Row],[Laun frá launagreiðanda]]+Launatafla[[#This Row],[Atvinnuleysisbætur fyrir skerðingu]]+Launatafla[[#This Row],[Skerðing v/ samtals]]),0)) -> 0 | Q53: =+Launatafla[[#This Row],[Atvinnuleysisbætur fyrir skerðingu]]+Launatafla[[#This Row],[Skerðing v/ samtals]]+Launatafla[[#This Row],[Viðbót v/ tryggðra lágmarkslauna]] -> 319482.8 | R53: =+Launatafla[[#This Row],[Laun frá launagreiðanda]]+Launatafla[[#This Row],[Laun frá ríkissjóði]] -> 589482.8 | S53: =IFERROR(Launatafla[[#This Row],[Heildarlaun]]/Launatafla[[#This Row],[Meðal heildarlaun sl. 3M fyrir skatta]],0) -> 0.6549808889
E54: Starfsmaður 49 | F54: 900000 | G54: 1 | H54: 0.75 | I54: =+Launatafla[[#This Row],[Starfshlutfall fyrir]]-Launatafla[[#This Row],[Skerðing starfshlutfalls]] -> 0.25 | J54: =+IF(OR(Launatafla[[#This Row],[Skerðing starfshlutfalls]]>Hámarkslækkun_starfshl,Launatafla[[#This Row],[Skerðing starfshlutfalls]]<Lágmarkslækkun_starfshl),0,Atvinnuleysisbætur*Launatafla[[#This Row],[Skerðing starfshlutfalls]]) -> 342303 | K54: =IFERROR(Launatafla[[#This Row],[Meðal heildarlaun sl. 3M fyrir skatta]]/Launatafla[[#This Row],[Starfshlutfall fyrir]],0)*(Launatafla[[#This Row],[Starfshlutfall fyrir]]-Launatafla[[#This Row],[Skerðing starfshlutfalls]]) -> 225000 | L54: =+Launatafla[[#This Row],[Atvinnuleysisbætur fyrir skerðingu]]+Launatafla[[#This Row],[Laun frá launagreiðanda]] -> 567303 | M54: =-MAX(Launatafla[[#This Row],[Laun með bótum án skerðingar]]-Launatafla[[#This Row],[Meðal heildarlaun sl. 3M fyrir skatta]]*Hámarkshlutfall_af_launum,0) -> 0 | N54: =-MIN(MAX(Launatafla[[#This Row],[Laun með bótum án skerðingar]]-Hámarkslaun,0),Launatafla[[#This Row],[Atvinnuleysisbætur fyrir skerðingu]]) -> 0 | O54: =+MIN(Launatafla[[#This Row],[Skerðing v/ hámarkshlutfalls]:[Skerðing v/ hámarkslauna]]) -> 0 | P54: =+IF(Launatafla[[#This Row],[Atvinnuleysisbætur fyrir skerðingu]]=0,0, MAX(MIN(Lágmarkslaun_fullt_starf,Launatafla[[#This Row],[Meðal heildarlaun sl. 3M fyrir skatta]]/Launatafla[[#This Row],[Starfshlutfall fyrir]])*Launatafla[[#This Row],[Starfshlutfall fyrir]]-(Launatafla[[#This Row],[Laun frá launagreiðanda]]+Launatafla[[#This Row],[Atvinnuleysisbætur fyrir skerðingu]]+Launatafla[[#This Row],[Skerðing v/ samtals]]),0)) -> 0 | Q54: =+Launatafla[[#This Row],[Atvinnuleysisbætur fyrir skerðingu]]+Launatafla[[#This Row],[Skerðing v/ samtals]]+Launatafla[[#This Row],[Viðbót v/ tryggðra lágmarkslauna]] -> 342303 | R54: =+Launatafla[[#This Row],[Laun frá launagreiðanda]]+Launatafla[[#This Row],[Laun frá ríkissjóði]] -> 567303 | S54: =IFERROR(Launatafla[[#This Row],[Heildarlaun]]/Launatafla[[#This Row],[Meðal heildarlaun sl. 3M fyrir skatta]],0) -> 0.6303366667
E55: Starfsmaður 50 | F55: 1000000 | G55: 1 | H55: 0.2 | I55: =+Launatafla[[#This Row],[Starfshlutfall fyrir]]-Launatafla[[#This Row],[Skerðing starfshlutfalls]] -> 0.8 | J55: =+IF(OR(Launatafla[[#This Row],[Skerðing starfshlutfalls]]>Hámarkslækkun_starfshl,Launatafla[[#This Row],[Skerðing starfshlutfalls]]<Lágmarkslækkun_starfshl),0,Atvinnuleysisbætur*Launatafla[[#This Row],[Skerðing starfshlutfalls]]) -> 91280.8 | K55: =IFERROR(Launatafla[[#This Row],[Meðal heildarlaun sl. 3M fyrir skatta]]/Launatafla[[#This Row],[Starfshlutfall fyrir]],0)*(Launatafla[[#This Row],[Starfshlutfall fyrir]]-Launatafla[[#This Row],[Skerðing starfshlutfalls]]) -> 800000 | L55: =+Launatafla[[#This Row],[Atvinnuleysisbætur fyrir skerðingu]]+Launatafla[[#This Row],[Laun frá launagreiðanda]] -> 891280.8 | M55: =-MAX(Launatafla[[#This Row],[Laun með bótum án skerðingar]]-Launatafla[[#This Row],[Meðal heildarlaun sl. 3M fyrir skatta]]*Hámarkshlutfall_af_launum,0) -> 0 | N55: =-MIN(MAX(Launatafla[[#This Row],[Laun með bótum án skerðingar]]-Hámarkslaun,0),Launatafla[[#This Row],[Atvinnuleysisbætur fyrir skerðingu]]) -> -91280.8 | O55: =+MIN(Launatafla[[#This Row],[Skerðing v/ hámarkshlutfalls]:[Skerðing v/ hámarkslauna]]) -> -91280.8 | P55: =+IF(Launatafla[[#This Row],[Atvinnuleysisbætur fyrir skerðingu]]=0,0, MAX(MIN(Lágmarkslaun_fullt_starf,Launatafla[[#This Row],[Meðal heildarlaun sl. 3M fyrir skatta]]/Launatafla[[#This Row],[Starfshlutfall fyrir]])*Launatafla[[#This Row],[Starfshlutfall fyrir]]-(Launatafla[[#This Row],[Laun frá launagreiðanda]]+Launatafla[[#This Row],[Atvinnuleysisbætur fyrir skerðingu]]+Launatafla[[#This Row],[Skerðing v/ samtals]]),0)) -> 0 | Q55: =+Launatafla[[#This Row],[Atvinnuleysisbætur fyrir skerðingu]]+Launatafla[[#This Row],[Skerðing v/ samtals]]+Launatafla[[#This Row],[Viðbót v/ tryggðra lágmarkslauna]] -> 0 | R55: =+Launatafla[[#This Row],[Laun frá launagreiðanda]]+Launatafla[[#This Row],[Laun frá ríkissjóði]] -> 800000 | S55: =IFERROR(Launatafla[[#This Row],[Heildarlaun]]/Launatafla[[#This Row],[Meðal heildarlaun sl. 3M fyrir skatta]],0) -> 0.8
E56: Starfsmaður 51 | F56: 1000000 | G56: 1 | H56: 0.3 | I56: =+Launatafla[[#This Row],[Starfshlutfall fyrir]]-Launatafla[[#This Row],[Skerðing starfshlutfalls]] -> 0.7 | J56: =+IF(OR(Launatafla[[#This Row],[Skerðing starfshlutfalls]]>Hámarkslækkun_starfshl,Launatafla[[#This Row],[Skerðing starfshlutfalls]]<Lágmarkslækkun_starfshl),0,Atvinnuleysisbætur*Launatafla[[#This Row],[Skerðing starfshlutfalls]]) -> 136921.2 | K56: =IFERROR(Launatafla[[#This Row],[Meðal heildarlaun sl. 3M fyrir skatta]]/Launatafla[[#This Row],[Starfshlutfall fyrir]],0)*(Launatafla[[#This Row],[Starfshlutfall fyrir]]-Launatafla[[#This Row],[Skerðing starfshlutfalls]]) -> 700000 | L56: =+Launatafla[[#This Row],[Atvinnuleysisbætur fyrir skerðingu]]+Launatafla[[#This Row],[Laun frá launagreiðanda]] -> 836921.2 | M56: =-MAX(Launatafla[[#This Row],[Laun með bótum án skerðingar]]-Launatafla[[#This Row],[Meðal heildarlaun sl. 3M fyrir skatta]]*Hámarkshlutfall_af_launum,0) -> 0 | N56: =-MIN(MAX(Launatafla[[#This Row],[Laun með bótum án skerðingar]]-Hámarkslaun,0),Launatafla[[#This Row],[Atvinnuleysisbætur fyrir skerðingu]]) -> -136921.2 | O56: =+MIN(Launatafla[[#This Row],[Skerðing v/ hámarkshlutfalls]:[Skerðing v/ hámarkslauna]]) -> -136921.2 | P56: =+IF(Launatafla[[#This Row],[Atvinnuleysisbætur fyrir skerðingu]]=0,0, MAX(MIN(Lágmarkslaun_fullt_starf,Launatafla[[#This Row],[Meðal heildarlaun sl. 3M fyrir skatta]]/Launatafla[[#This Row],[Starfshlutfall fyrir]])*Launatafla[[#This Row],[Starfshlutfall fyrir]]-(Launatafla[[#This Row],[Laun frá launagreiðanda]]+Launatafla[[#This Row],[Atvinnuleysisbætur fyrir skerðingu]]+Launatafla[[#This Row],[Skerðing v/ samtals]]),0)) -> 0 | Q56: =+Launatafla[[#This Row],[Atvinnuleysisbætur fyrir skerðingu]]+Launatafla[[#This Row],[Skerðing v/ samtals]]+Launatafla[[#This Row],[Viðbót v/ tryggðra lágmarkslauna]] -> 2.910383046e-11 | R56: =+Launatafla[[#This Row],[Laun frá launagreiðanda]]+Launatafla[[#This Row],[Laun frá ríkissjóði]] -> 700000 | S56: =IFERROR(Launatafla[[#This Row],[Heildarlaun]]/Launatafla[[#This Row],[Meðal heildarlaun sl. 3M fyrir skatta]],0) -> 0.7
E57: Starfsmaður 52 | F57: 1000000 | G57: 1 | H57: 0.4 | I57: =+Launatafla[[#This Row],[Starfshlutfall fyrir]]-Launatafla[[#This Row],[Skerðing starfshlutfalls]] -> 0.6 | J57: =+IF(OR(Launatafla[[#This Row],[Skerðing starfshlutfalls]]>Hámarkslækkun_starfshl,Launatafla[[#This Row],[Skerðing starfshlutfalls]]<Lágmarkslækkun_starfshl),0,Atvinnuleysisbætur*Launatafla[[#This Row],[Skerðing starfshlutfalls]]) -> 182561.6 | K57: =IFERROR(Launatafla[[#This Row],[Meðal heildarlaun sl. 3M fyrir skatta]]/Launatafla[[#This Row],[Starfshlutfall fyrir]],0)*(Launatafla[[#This Row],[Starfshlutfall fyrir]]-Launatafla[[#This Row],[Skerðing starfshlutfalls]]) -> 600000 | L57: =+Launatafla[[#This Row],[Atvinnuleysisbætur fyrir skerðingu]]+Launatafla[[#This Row],[Laun frá launagreiðanda]] -> 782561.6 | M57: =-MAX(Launatafla[[#This Row],[Laun með bótum án skerðingar]]-Launatafla[[#This Row],[Meðal heildarlaun sl. 3M fyrir skatta]]*Hámarkshlutfall_af_launum,0) -> 0 | N57: =-MIN(MAX(Launatafla[[#This Row],[Laun með bótum án skerðingar]]-Hámarkslaun,0),Launatafla[[#This Row],[Atvinnuleysisbætur fyrir skerðingu]]) -> -82561.6 | O57: =+MIN(Launatafla[[#This Row],[Skerðing v/ hámarkshlutfalls]:[Skerðing v/ hámarkslauna]]) -> -82561.6 | P57: =+IF(Launatafla[[#This Row],[Atvinnuleysisbætur fyrir skerðingu]]=0,0, MAX(MIN(Lágmarkslaun_fullt_starf,Launatafla[[#This Row],[Meðal heildarlaun sl. 3M fyrir skatta]]/Launatafla[[#This Row],[Starfshlutfall fyrir]])*Launatafla[[#This Row],[Starfshlutfall fyrir]]-(Launatafla[[#This Row],[Laun frá launagreiðanda]]+Launatafla[[#This Row],[Atvinnuleysisbætur fyrir skerðingu]]+Launatafla[[#This Row],[Skerðing v/ samtals]]),0)) -> 0 | Q57: =+Launatafla[[#This Row],[Atvinnuleysisbætur fyrir skerðingu]]+Launatafla[[#This Row],[Skerðing v/ samtals]]+Launatafla[[#This Row],[Viðbót v/ tryggðra lágmarkslauna]] -> 100000 | R57: =+Launatafla[[#This Row],[Laun frá launagreiðanda]]+Launatafla[[#This Row],[Laun frá ríkissjóði]] -> 700000 | S57: =IFERROR(Launatafla[[#This Row],[Heildarlaun]]/Launatafla[[#This Row],[Meðal heildarlaun sl. 3M fyrir skatta]],0) -> 0.7
E58: Starfsmaður 53 | F58: 1000000 | G58: 1 | H58: 0.5 | I58: =+Launatafla[[#This Row],[Starfshlutfall fyrir]]-Launatafla[[#This Row],[Skerðing starfshlutfalls]] -> 0.5 | J58: =+IF(OR(Launatafla[[#This Row],[Skerðing starfshlutfalls]]>Hámarkslækkun_starfshl,Launatafla[[#This Row],[Skerðing starfshlutfalls]]<Lágmarkslækkun_starfshl),0,Atvinnuleysisbætur*Launatafla[[#This Row],[Skerðing starfshlutfalls]]) -> 228202 | K58: =IFERROR(Launatafla[[#This Row],[Meðal heildarlaun sl. 3M fyrir skatta]]/Launatafla[[#This Row],[Starfshlutfall fyrir]],0)*(Launatafla[[#This Row],[Starfshlutfall fyrir]]-Launatafla[[#This Row],[Skerðing starfshlutfalls]]) -> 500000 | L58: =+Launatafla[[#This Row],[Atvinnuleysisbætur fyrir skerðingu]]+Launatafla[[#This Row],[Laun frá launagreiðanda]] -> 728202 | M58: =-MAX(Launatafla[[#This Row],[Laun með bótum án skerðingar]]-Launatafla[[#This Row],[Meðal heildarlaun sl. 3M fyrir skatta]]*Hámarkshlutfall_af_launum,0) -> 0 | N58: =-MIN(MAX(Launatafla[[#This Row],[Laun með bótum án skerðingar]]-Hámarkslaun,0),Launatafla[[#This Row],[Atvinnuleysisbætur fyrir skerðingu]]) -> -28202 | O58: =+MIN(Launatafla[[#This Row],[Skerðing v/ hámarkshlutfalls]:[Skerðing v/ hámarkslauna]]) -> -28202 | P58: =+IF(Launatafla[[#This Row],[Atvinnuleysisbætur fyrir skerðingu]]=0,0, MAX(MIN(Lágmarkslaun_fullt_starf,Launatafla[[#This Row],[Meðal heildarlaun sl. 3M fyrir skatta]]/Launatafla[[#This Row],[Starfshlutfall fyrir]])*Launatafla[[#This Row],[Starfshlutfall fyrir]]-(Launatafla[[#This Row],[Laun frá launagreiðanda]]+Launatafla[[#This Row],[Atvinnuleysisbætur fyrir skerðingu]]+Launatafla[[#This Row],[Skerðing v/ samtals]]),0)) -> 0 | Q58: =+Launatafla[[#This Row],[Atvinnuleysisbætur fyrir skerðingu]]+Launatafla[[#This Row],[Skerðing v/ samtals]]+Launatafla[[#This Row],[Viðbót v/ tryggðra lágmarkslauna]] -> 200000 | R58: =+Launatafla[[#This Row],[Laun frá launagreiðanda]]+Launatafla[[#This Row],[Laun frá ríkissjóði]] -> 700000 | S58: =IFERROR(Launatafla[[#This Row],[Heildarlaun]]/Launatafla[[#This Row],[Meðal heildarlaun sl. 3M fyrir skatta]],0) -> 0.7
E59: Starfsmaður 54 | F59: 1000000 | G59: 1 | H59: 0.6 | I59: =+Launatafla[[#This Row],[Starfshlutfall fyrir]]-Launatafla[[#This Row],[Skerðing starfshlutfalls]] -> 0.4 | J59: =+IF(OR(Launatafla[[#This Row],[Skerðing starfshlutfalls]]>Hámarkslækkun_starfshl,Launatafla[[#This Row],[Skerðing starfshlutfalls]]<Lágmarkslækkun_starfshl),0,Atvinnuleysisbætur*Launatafla[[#This Row],[Skerðing starfshlutfalls]]) -> 273842.4 | K59: =IFERROR(Launatafla[[#This Row],[Meðal heildarlaun sl. 3M fyrir skatta]]/Launatafla[[#This Row],[Starfshlutfall fyrir]],0)*(Launatafla[[#This Row],[Starfshlutfall fyrir]]-Launatafla[[#This Row],[Skerðing starfshlutfalls]]) -> 400000 | L59: =+Launatafla[[#This Row],[Atvinnuleysisbætur fyrir skerðingu]]+Launatafla[[#This Row],[Laun frá launagreiðanda]] -> 673842.4 | M59: =-MAX(Launatafla[[#This Row],[Laun með bótum án skerðingar]]-Launatafla[[#This Row],[Meðal heildarlaun sl. 3M fyrir skatta]]*Hámarkshlutfall_af_launum,0) -> 0 | N59: =-MIN(MAX(Launatafla[[#This Row],[Laun með bótum án skerðingar]]-Hámarkslaun,0),Launatafla[[#This Row],[Atvinnuleysisbætur fyrir skerðingu]]) -> 0 | O59: =+MIN(Launatafla[[#This Row],[Skerðing v/ hámarkshlutfalls]:[Skerðing v/ hámarkslauna]]) -> 0 | P59: =+IF(Launatafla[[#This Row],[Atvinnuleysisbætur fyrir skerðingu]]=0,0, MAX(MIN(Lágmarkslaun_fullt_starf,Launatafla[[#This Row],[Meðal heildarlaun sl. 3M fyrir skatta]]/Launatafla[[#This Row],[Starfshlutfall fyrir]])*Launatafla[[#This Row],[Starfshlutfall fyrir]]-(Launatafla[[#This Row],[Laun frá launagreiðanda]]+Launatafla[[#This Row],[Atvinnuleysisbætur fyrir skerðingu]]+Launatafla[[#This Row],[Skerðing v/ samtals]]),0)) -> 0 | Q59: =+Launatafla[[#This Row],[Atvinnuleysisbætur fyrir skerðingu]]+Launatafla[[#This Row],[Skerðing v/ samtals]]+Launatafla[[#This Row],[Viðbót v/ tryggðra lágmarkslauna]] -> 273842.4 | R59: =+Launatafla[[#This Row],[Laun frá launagreiðanda]]+Launatafla[[#This Row],[Laun frá ríkissjóði]] -> 673842.4 | S59: =IFERROR(Launatafla[[#This Row],[Heildarlaun]]/Launatafla[[#This Row],[Meðal heildarlaun sl. 3M fyrir skatta]],0) -> 0.6738424
E60: Starfsmaður 55 | F60: 1000000 | G60: 1 | H60: 0.7 | I60: =+Launatafla[[#This Row],[Starfshlutfall fyrir]]-Launatafla[[#This Row],[Skerðing starfshlutfalls]] -> 0.3 | J60: =+IF(OR(Launatafla[[#This Row],[Skerðing starfshlutfalls]]>Hámarkslækkun_starfshl,Launatafla[[#This Row],[Skerðing starfshlutfalls]]<Lágmarkslækkun_starfshl),0,Atvinnuleysisbætur*Launatafla[[#This Row],[Skerðing starfshlutfalls]]) -> 319482.8 | K60: =IFERROR(Launatafla[[#This Row],[Meðal heildarlaun sl. 3M fyrir skatta]]/Launatafla[[#This Row],[Starfshlutfall fyrir]],0)*(Launatafla[[#This Row],[Starfshlutfall fyrir]]-Launatafla[[#This Row],[Skerðing starfshlutfalls]]) -> 300000 | L60: =+Launatafla[[#This Row],[Atvinnuleysisbætur fyrir skerðingu]]+Launatafla[[#This Row],[Laun frá launagreiðanda]] -> 619482.8 | M60: =-MAX(Launatafla[[#This Row],[Laun með bótum án skerðingar]]-Launatafla[[#This Row],[Meðal heildarlaun sl. 3M fyrir skatta]]*Hámarkshlutfall_af_launum,0) -> 0 | N60: =-MIN(MAX(Launatafla[[#This Row],[Laun með bótum án skerðingar]]-Hámarkslaun,0),Launatafla[[#This Row],[Atvinnuleysisbætur fyrir skerðingu]]) -> 0 | O60: =+MIN(Launatafla[[#This Row],[Skerðing v/ hámarkshlutfalls]:[Skerðing v/ hámarkslauna]]) -> 0 | P60: =+IF(Launatafla[[#This Row],[Atvinnuleysisbætur fyrir skerðingu]]=0,0, MAX(MIN(Lágmarkslaun_fullt_starf,Launatafla[[#This Row],[Meðal heildarlaun sl. 3M fyrir skatta]]/Launatafla[[#This Row],[Starfshlutfall fyrir]])*Launatafla[[#This Row],[Starfshlutfall fyrir]]-(Launatafla[[#This Row],[Laun frá launagreiðanda]]+Launatafla[[#This Row],[Atvinnuleysisbætur fyrir skerðingu]]+Launatafla[[#This Row],[Skerðing v/ samtals]]),0)) -> 0 | Q60: =+Launatafla[[#This Row],[Atvinnuleysisbætur fyrir skerðingu]]+Launatafla[[#This Row],[Skerðing v/ samtals]]+Launatafla[[#This Row],[Viðbót v/ tryggðra lágmarkslauna]] -> 319482.8 | R60: =+Launatafla[[#This Row],[Laun frá launagreiðanda]]+Launatafla[[#This Row],[Laun frá ríkissjóði]] -> 619482.8 | S60: =IFERROR(Launatafla[[#This Row],[Heildarlaun]]/Launatafla[[#This Row],[Meðal heildarlaun sl. 3M fyrir skatta]],0) -> 0.6194828
E61: Starfsmaður 56 | F61: 1000000 | G61: 1 | H61: 0.75 | I61: =+Launatafla[[#This Row],[Starfshlutfall fyrir]]-Launatafla[[#This Row],[Skerðing starfshlutfalls]] -> 0.25 | J61: =+IF(OR(Launatafla[[#This Row],[Skerðing starfshlutfalls]]>Hámarkslækkun_starfshl,Launatafla[[#This Row],[Skerðing starfshlutfalls]]<Lágmarkslækkun_starfshl),0,Atvinnuleysisbætur*Launatafla[[#This Row],[Skerðing starfshlutfalls]]) -> 342303 | K61: =IFERROR(Launatafla[[#This Row],[Meðal heildarlaun sl. 3M fyrir skatta]]/Launatafla[[#This Row],[Starfshlutfall fyrir]],0)*(Launatafla[[#This Row],[Starfshlutfall fyrir]]-Launatafla[[#This Row],[Skerðing starfshlutfalls]]) -> 250000 | L61: =+Launatafla[[#This Row],[Atvinnuleysisbætur fyrir skerðingu]]+Launatafla[[#This Row],[Laun frá launagreiðanda]] -> 592303 | M61: =-MAX(Launatafla[[#This Row],[Laun með bótum án skerðingar]]-Launatafla[[#This Row],[Meðal heildarlaun sl. 3M fyrir skatta]]*Hámarkshlutfall_af_launum,0) -> 0 | N61: =-MIN(MAX(Launatafla[[#This Row],[Laun með bótum án skerðingar]]-Hámarkslaun,0),Launatafla[[#This Row],[Atvinnuleysisbætur fyrir skerðingu]]) -> 0 | O61: =+MIN(Launatafla[[#This Row],[Skerðing v/ hámarkshlutfalls]:[Skerðing v/ hámarkslauna]]) -> 0 | P61: =+IF(Launatafla[[#This Row],[Atvinnuleysisbætur fyrir skerðingu]]=0,0, MAX(MIN(Lágmarkslaun_fullt_starf,Launatafla[[#This Row],[Meðal heildarlaun sl. 3M fyrir skatta]]/Launatafla[[#This Row],[Starfshlutfall fyrir]])*Launatafla[[#This Row],[Starfshlutfall fyrir]]-(Launatafla[[#This Row],[Laun frá launagreiðanda]]+Launatafla[[#This Row],[Atvinnuleysisbætur fyrir skerðingu]]+Launatafla[[#This Row],[Skerðing v/ samtals]]),0)) -> 0 | Q61: =+Launatafla[[#This Row],[Atvinnuleysisbætur fyrir skerðingu]]+Launatafla[[#This Row],[Skerðing v/ samtals]]+Launatafla[[#This Row],[Viðbót v/ tryggðra lágmarkslauna]] -> 342303 | R61: =+Launatafla[[#This Row],[Laun frá launagreiðanda]]+Launatafla[[#This Row],[Laun frá ríkissjóði]] -> 592303 | S61: =IFERROR(Launatafla[[#This Row],[Heildarlaun]]/Launatafla[[#This Row],[Meðal heildarlaun sl. 3M fyrir skatta]],0) -> 0.592303
E62: Starfsmaður 57 | F62: 1100000 | G62: 1 | H62: 0.2 | I62: =+Launatafla[[#This Row],[Starfshlutfall fyrir]]-Launatafla[[#This Row],[Skerðing starfshlutfalls]] -> 0.8 | J62: =+IF(OR(Launatafla[[#This Row],[Skerðing starfshlutfalls]]>Hámarkslækkun_starfshl,Launatafla[[#This Row],[Skerðing starfshlutfalls]]<Lágmarkslækkun_starfshl),0,Atvinnuleysisbætur*Launatafla[[#This Row],[Skerðing starfshlutfalls]]) -> 91280.8 | K62: =IFERROR(Launatafla[[#This Row],[Meðal heildarlaun sl. 3M fyrir skatta]]/Launatafla[[#This Row],[Starfshlutfall fyrir]],0)*(Launatafla[[#This Row],[Starfshlutfall fyrir]]-Launatafla[[#This Row],[Skerðing starfshlutfalls]]) -> 880000 | L62: =+Launatafla[[#This Row],[Atvinnuleysisbætur fyrir skerðingu]]+Launatafla[[#This Row],[Laun frá launagreiðanda]] -> 971280.8 | M62: =-MAX(Launatafla[[#This Row],[Laun með bótum án skerðingar]]-Launatafla[[#This Row],[Meðal heildarlaun sl. 3M fyrir skatta]]*Hámarkshlutfall_af_launum,0) -> 0 | N62: =-MIN(MAX(Launatafla[[#This Row],[Laun með bótum án skerðingar]]-Hámarkslaun,0),Launatafla[[#This Row],[Atvinnuleysisbætur fyrir skerðingu]]) -> -91280.8 | O62: =+MIN(Launatafla[[#This Row],[Skerðing v/ hámarkshlutfalls]:[Skerðing v/ hámarkslauna]]) -> -91280.8 | P62: =+IF(Launatafla[[#This Row],[Atvinnuleysisbætur fyrir skerðingu]]=0,0, MAX(MIN(Lágmarkslaun_fullt_starf,Launatafla[[#This Row],[Meðal heildarlaun sl. 3M fyrir skatta]]/Launatafla[[#This Row],[Starfshlutfall fyrir]])*Launatafla[[#This Row],[Starfshlutfall fyrir]]-(Launatafla[[#This Row],[Laun frá launagreiðanda]]+Launatafla[[#This Row],[Atvinnuleysisbætur fyrir skerðingu]]+Launatafla[[#This Row],[Skerðing v/ samtals]]),0)) -> 0 | Q62: =+Launatafla[[#This Row],[Atvinnuleysisbætur fyrir skerðingu]]+Launatafla[[#This Row],[Skerðing v/ samtals]]+Launatafla[[#This Row],[Viðbót v/ tryggðra lágmarkslauna]] -> 0 | R62: =+Launatafla[[#This Row],[Laun frá launagreiðanda]]+Launatafla[[#This Row],[Laun frá ríkissjóði]] -> 880000 | S62: =IFERROR(Launatafla[[#This Row],[Heildarlaun]]/Launatafla[[#This Row],[Meðal heildarlaun sl. 3M fyrir skatta]],0) -> 0.8
E63: Starfsmaður 58 | F63: 1100000 | G63: 1 | H63: 0.3 | I63: =+Launatafla[[#This Row],[Starfshlutfall fyrir]]-Launatafla[[#This Row],[Skerðing starfshlutfalls]] -> 0.7 | J63: =+IF(OR(Launatafla[[#This Row],[Skerðing starfshlutfalls]]>Hámarkslækkun_starfshl,Launatafla[[#This Row],[Skerðing starfshlutfalls]]<Lágmarkslækkun_starfshl),0,Atvinnuleysisbætur*Launatafla[[#This Row],[Skerðing starfshlutfalls]]) -> 136921.2 | K63: =IFERROR(Launatafla[[#This Row],[Meðal heildarlaun sl. 3M fyrir skatta]]/Launatafla[[#This Row],[Starfshlutfall fyrir]],0)*(Launatafla[[#This Row],[Starfshlutfall fyrir]]-Launatafla[[#This Row],[Skerðing starfshlutfalls]]) -> 770000 | L63: =+Launatafla[[#This Row],[Atvinnuleysisbætur fyrir skerðingu]]+Launatafla[[#This Row],[Laun frá launagreiðanda]] -> 906921.2 | M63: =-MAX(Launatafla[[#This Row],[Laun með bótum án skerðingar]]-Launatafla[[#This Row],[Meðal heildarlaun sl. 3M fyrir skatta]]*Hámarkshlutfall_af_launum,0) -> 0 | N63: =-MIN(MAX(Launatafla[[#This Row],[Laun með bótum án skerðingar]]-Hámarkslaun,0),Launatafla[[#This Row],[Atvinnuleysisbætur fyrir skerðingu]]) -> -136921.2 | O63: =+MIN(Launatafla[[#This Row],[Skerðing v/ hámarkshlutfalls]:[Skerðing v/ hámarkslauna]]) -> -136921.2 | P63: =+IF(Launatafla[[#This Row],[Atvinnuleysisbætur fyrir skerðingu]]=0,0, MAX(MIN(Lágmarkslaun_fullt_starf,Launatafla[[#This Row],[Meðal heildarlaun sl. 3M fyrir skatta]]/Launatafla[[#This Row],[Starfshlutfall fyrir]])*Launatafla[[#This Row],[Starfshlutfall fyrir]]-(Launatafla[[#This Row],[Laun frá launagreiðanda]]+Launatafla[[#This Row],[Atvinnuleysisbætur fyrir skerðingu]]+Launatafla[[#This Row],[Skerðing v/ samtals]]),0)) -> 0 | Q63: =+Launatafla[[#This Row],[Atvinnuleysisbætur fyrir skerðingu]]+Launatafla[[#This Row],[Skerðing v/ samtals]]+Launatafla[[#This Row],[Viðbót v/ tryggðra lágmarkslauna]] -> 0 | R63: =+Launatafla[[#This Row],[Laun frá launagreiðanda]]+Launatafla[[#This Row],[Laun frá ríkissjóði]] -> 770000 | S63: =IFERROR(Launatafla[[#This Row],[Heildarlaun]]/Launatafla[[#This Row],[Meðal heildarlaun sl. 3M fyrir skatta]],0) -> 0.7
E64: Starfsmaður 59 | F64: 1100000 | G64: 1 | H64: 0.4 | I64: =+Launatafla[[#This Row],[Starfshlutfall fyrir]]-Launatafla[[#This Row],[Skerðing starfshlutfalls]] -> 0.6 | J64: =+IF(OR(Launatafla[[#This Row],[Skerðing starfshlutfalls]]>Hámarkslækkun_starfshl,Launatafla[[#This Row],[Skerðing starfshlutfalls]]<Lágmarkslækkun_starfshl),0,Atvinnuleysisbætur*Launatafla[[#This Row],[Skerðing starfshlutfalls]]) -> 182561.6 | K64: =IFERROR(Launatafla[[#This Row],[Meðal heildarlaun sl. 3M fyrir skatta]]/Launatafla[[#This Row],[Starfshlutfall fyrir]],0)*(Launatafla[[#This Row],[Starfshlutfall fyrir]]-Launatafla[[#This Row],[Skerðing starfshlutfalls]]) -> 660000 | L64: =+Launatafla[[#This Row],[Atvinnuleysisbætur fyrir skerðingu]]+Launatafla[[#This Row],[Laun frá launagreiðanda]] -> 842561.6 | M64: =-MAX(Launatafla[[#This Row],[Laun með bótum án skerðingar]]-Launatafla[[#This Row],[Meðal heildarlaun sl. 3M fyrir skatta]]*Hámarkshlutfall_af_launum,0) -> 0 | N64: =-MIN(MAX(Launatafla[[#This Row],[Laun með bótum án skerðingar]]-Hámarkslaun,0),Launatafla[[#This Row],[Atvinnuleysisbætur fyrir skerðingu]]) -> -142561.6 | O64: =+MIN(Launatafla[[#This Row],[Skerðing v/ hámarkshlutfalls]:[Skerðing v/ hámarkslauna]]) -> -142561.6 | P64: =+IF(Launatafla[[#This Row],[Atvinnuleysisbætur fyrir skerðingu]]=0,0, MAX(MIN(Lágmarkslaun_fullt_starf,Launatafla[[#This Row],[Meðal heildarlaun sl. 3M fyrir skatta]]/Launatafla[[#This Row],[Starfshlutfall fyrir]])*Launatafla[[#This Row],[Starfshlutfall fyrir]]-(Launatafla[[#This Row],[Laun frá launagreiðanda]]+Launatafla[[#This Row],[Atvinnuleysisbætur fyrir skerðingu]]+Launatafla[[#This Row],[Skerðing v/ samtals]]),0)) -> 0 | Q64: =+Launatafla[[#This Row],[Atvinnuleysisbætur fyrir skerðingu]]+Launatafla[[#This Row],[Skerðing v/ samtals]]+Launatafla[[#This Row],[Viðbót v/ tryggðra lágmarkslauna]] -> 40000 | R64: =+Launatafla[[#This Row],[Laun frá launagreiðanda]]+Launatafla[[#This Row],[Laun frá ríkissjóði]] -> 700000 | S64: =IFERROR(Launatafla[[#This Row],[Heildarlaun]]/Launatafla[[#This Row],[Meðal heildarlaun sl. 3M fyrir skatta]],0) -> 0.6363636364
E65: Starfsmaður 60 | F65: 1100000 | G65: 1 | H65: 0.5 | I65: =+Launatafla[[#This Row],[Starfshlutfall fyrir]]-Launatafla[[#This Row],[Skerðing starfshlutfalls]] -> 0.5 | J65: =+IF(OR(Launatafla[[#This Row],[Skerðing starfshlutfalls]]>Hámarkslækkun_starfshl,Launatafla[[#This Row],[Skerðing starfshlutfalls]]<Lágmarkslækkun_starfshl),0,Atvinnuleysisbætur*Launatafla[[#This Row],[Skerðing starfshlutfalls]]) -> 228202 | K65: =IFERROR(Launatafla[[#This Row],[Meðal heildarlaun sl. 3M fyrir skatta]]/Launatafla[[#This Row],[Starfshlutfall fyrir]],0)*(Launatafla[[#This Row],[Starfshlutfall fyrir]]-Launatafla[[#This Row],[Skerðing starfshlutfalls]]) -> 550000 | L65: =+Launatafla[[#This Row],[Atvinnuleysisbætur fyrir skerðingu]]+Launatafla[[#This Row],[Laun frá launagreiðanda]] -> 778202 | M65: =-MAX(Launatafla[[#This Row],[Laun með bótum án skerðingar]]-Launatafla[[#This Row],[Meðal heildarlaun sl. 3M fyrir skatta]]*Hámarkshlutfall_af_launum,0) -> 0 | N65: =-MIN(MAX(Launatafla[[#This Row],[Laun með bótum án skerðingar]]-Hámarkslaun,0),Launatafla[[#This Row],[Atvinnuleysisbætur fyrir skerðingu]]) -> -78202 | O65: =+MIN(Launatafla[[#This Row],[Skerðing v/ hámarkshlutfalls]:[Skerðing v/ hámarkslauna]]) -> -78202 | P65: =+IF(Launatafla[[#This Row],[Atvinnuleysisbætur fyrir skerðingu]]=0,0, MAX(MIN(Lágmarkslaun_fullt_starf,Launatafla[[#This Row],[Meðal heildarlaun sl. 3M fyrir skatta]]/Launatafla[[#This Row],[Starfshlutfall fyrir]])*Launatafla[[#This Row],[Starfshlutfall fyrir]]-(Launatafla[[#This Row],[Laun frá launagreiðanda]]+Launatafla[[#This Row],[Atvinnuleysisbætur fyrir skerðingu]]+Launatafla[[#This Row],[Skerðing v/ samtals]]),0)) -> 0 | Q65: =+Launatafla[[#This Row],[Atvinnuleysisbætur fyrir skerðingu]]+Launatafla[[#This Row],[Skerðing v/ samtals]]+Launatafla[[#This Row],[Viðbót v/ tryggðra lágmarkslauna]] -> 150000 | R65: =+Launatafla[[#This Row],[Laun frá launagreiðanda]]+Launatafla[[#This Row],[Laun frá ríkissjóði]] -> 700000 | S65: =IFERROR(Launatafla[[#This Row],[Heildarlaun]]/Launatafla[[#This Row],[Meðal heildarlaun sl. 3M fyrir skatta]],0) -> 0.6363636364
E66: Starfsmaður 61 | F66: 1100000 | G66: 1 | H66: 0.6 | I66: =+Launatafla[[#This Row],[Starfshlutfall fyrir]]-Launatafla[[#This Row],[Skerðing starfshlutfalls]] -> 0.4 | J66: =+IF(OR(Launatafla[[#This Row],[Skerðing starfshlutfalls]]>Hámarkslækkun_starfshl,Launatafla[[#This Row],[Skerðing starfshlutfalls]]<Lágmarkslækkun_starfshl),0,Atvinnuleysisbætur*Launatafla[[#This Row],[Skerðing starfshlutfalls]]) -> 273842.4 | K66: =IFERROR(Launatafla[[#This Row],[Meðal heildarlaun sl. 3M fyrir skatta]]/Launatafla[[#This Row],[Starfshlutfall fyrir]],0)*(Launatafla[[#This Row],[Starfshlutfall fyrir]]-Launatafla[[#This Row],[Skerðing starfshlutfalls]]) -> 440000 | L66: =+Launatafla[[#This Row],[Atvinnuleysisbætur fyrir skerðingu]]+Launatafla[[#This Row],[Laun frá launagreiðanda]] -> 713842.4 | M66: =-MAX(Launatafla[[#This Row],[Laun með bótum án skerðingar]]-Launatafla[[#This Row],[Meðal heildarlaun sl. 3M fyrir skatta]]*Hámarkshlutfall_af_launum,0) -> 0 | N66: =-MIN(MAX(Launatafla[[#This Row],[Laun með bótum án skerðingar]]-Hámarkslaun,0),Launatafla[[#This Row],[Atvinnuleysisbætur fyrir skerðingu]]) -> -13842.4 | O66: =+MIN(Launatafla[[#This Row],[Skerðing v/ hámarkshlutfalls]:[Skerðing v/ hámarkslauna]]) -> -13842.4 | P66: =+IF(Launatafla[[#This Row],[Atvinnuleysisbætur fyrir skerðingu]]=0,0, MAX(MIN(Lágmarkslaun_fullt_starf,Launatafla[[#This Row],[Meðal heildarlaun sl. 3M fyrir skatta]]/Launatafla[[#This Row],[Starfshlutfall fyrir]])*Launatafla[[#This Row],[Starfshlutfall fyrir]]-(Launatafla[[#This Row],[Laun frá launagreiðanda]]+Launatafla[[#This Row],[Atvinnuleysisbætur fyrir skerðingu]]+Launatafla[[#This Row],[Skerðing v/ samtals]]),0)) -> 0 | Q66: =+Launatafla[[#This Row],[Atvinnuleysisbætur fyrir skerðingu]]+Launatafla[[#This Row],[Skerðing v/ samtals]]+Launatafla[[#This Row],[Viðbót v/ tryggðra lágmarkslauna]] -> 260000 | R66: =+Launatafla[[#This Row],[Laun frá launagreiðanda]]+Launatafla[[#This Row],[Laun frá ríkissjóði]] -> 700000 | S66: =IFERROR(Launatafla[[#This Row],[Heildarlaun]]/Launatafla[[#This Row],[Meðal heildarlaun sl. 3M fyrir skatta]],0) -> 0.6363636364
E67: Starfsmaður 62 | F67: 1100000 | G67: 1 | H67: 0.7 | I67: =+Launatafla[[#This Row],[Starfshlutfall fyrir]]-Launatafla[[#This Row],[Skerðing starfshlutfalls]] -> 0.3 | J67: =+IF(OR(Launatafla[[#This Row],[Skerðing starfshlutfalls]]>Hámarkslækkun_starfshl,Launatafla[[#This Row],[Skerðing starfshlutfalls]]<Lágmarkslækkun_starfshl),0,Atvinnuleysisbætur*Launatafla[[#This Row],[Skerðing starfshlutfalls]]) -> 319482.8 | K67: =IFERROR(Launatafla[[#This Row],[Meðal heildarlaun sl. 3M fyrir skatta]]/Launatafla[[#This Row],[Starfshlutfall fyrir]],0)*(Launatafla[[#This Row],[Starfshlutfall fyrir]]-Launatafla[[#This Row],[Skerðing starfshlutfalls]]) -> 330000 | L67: =+Launatafla[[#This Row],[Atvinnuleysisbætur fyrir skerðingu]]+Launatafla[[#This Row],[Laun frá launagreiðanda]] -> 649482.8 | M67: =-MAX(Launatafla[[#This Row],[Laun með bótum án skerðingar]]-Launatafla[[#This Row],[Meðal heildarlaun sl. 3M fyrir skatta]]*Hámarkshlutfall_af_launum,0) -> 0 | N67: =-MIN(MAX(Launatafla[[#This Row],[Laun með bótum án skerðingar]]-Hámarkslaun,0),Launatafla[[#This Row],[Atvinnuleysisbætur fyrir skerðingu]]) -> 0 | O67: =+MIN(Launatafla[[#This Row],[Skerðing v/ hámarkshlutfalls]:[Skerðing v/ hámarkslauna]]) -> 0 | P67: =+IF(Launatafla[[#This Row],[Atvinnuleysisbætur fyrir skerðingu]]=0,0, MAX(MIN(Lágmarkslaun_fullt_starf,Launatafla[[#This Row],[Meðal heildarlaun sl. 3M fyrir skatta]]/Launatafla[[#This Row],[Starfshlutfall fyrir]])*Launatafla[[#This Row],[Starfshlutfall fyrir]]-(Launatafla[[#This Row],[Laun frá launagreiðanda]]+Launatafla[[#This Row],[Atvinnuleysisbætur fyrir skerðingu]]+Launatafla[[#This Row],[Skerðing v/ samtals]]),0)) -> 0 | Q67: =+Launatafla[[#This Row],[Atvinnuleysisbætur fyrir skerðingu]]+Launatafla[[#This Row],[Skerðing v/ samtals]]+Launatafla[[#This Row],[Viðbót v/ tryggðra lágmarkslauna]] -> 319482.8 | R67: =+Launatafla[[#This Row],[Laun frá launagreiðanda]]+Launatafla[[#This Row],[Laun frá ríkissjóði]] -> 649482.8 | S67: =IFERROR(Launatafla[[#This Row],[Heildarlaun]]/Launatafla[[#This Row],[Meðal heildarlaun sl. 3M fyrir skatta]],0) -> 0.5904389091
E68: Starfsmaður 63 | F68: 1100000 | G68: 1 | H68: 0.75 | I68: =+Launatafla[[#This Row],[Starfshlutfall fyrir]]-Launatafla[[#This Row],[Skerðing starfshlutfalls]] -> 0.25 | J68: =+IF(OR(Launatafla[[#This Row],[Skerðing starfshlutfalls]]>Hámarkslækkun_starfshl,Launatafla[[#This Row],[Skerðing starfshlutfalls]]<Lágmarkslækkun_starfshl),0,Atvinnuleysisbætur*Launatafla[[#This Row],[Skerðing starfshlutfalls]]) -> 342303 | K68: =IFERROR(Launatafla[[#This Row],[Meðal heildarlaun sl. 3M fyrir skatta]]/Launatafla[[#This Row],[Starfshlutfall fyrir]],0)*(Launatafla[[#This Row],[Starfshlutfall fyrir]]-Launatafla[[#This Row],[Skerðing starfshlutfalls]]) -> 275000 | L68: =+Launatafla[[#This Row],[Atvinnuleysisbætur fyrir skerðingu]]+Launatafla[[#This Row],[Laun frá launagreiðanda]] -> 617303 | M68: =-MAX(Launatafla[[#This Row],[Laun með bótum án skerðingar]]-Launatafla[[#This Row],[Meðal heildarlaun sl. 3M fyrir skatta]]*Hámarkshlutfall_af_launum,0) -> 0 | N68: =-MIN(MAX(Launatafla[[#This Row],[Laun með bótum án skerðingar]]-Hámarkslaun,0),Launatafla[[#This Row],[Atvinnuleysisbætur fyrir skerðingu]]) -> 0 | O68: =+MIN(Launatafla[[#This Row],[Skerðing v/ hámarkshlutfalls]:[Skerðing v/ hámarkslauna]]) -> 0 | P68: =+IF(Launatafla[[#This Row],[Atvinnuleysisbætur fyrir skerðingu]]=0,0, MAX(MIN(Lágmarkslaun_fullt_starf,Launatafla[[#This Row],[Meðal heildarlaun sl. 3M fyrir skatta]]/Launatafla[[#This Row],[Starfshlutfall fyrir]])*Launatafla[[#This Row],[Starfshlutfall fyrir]]-(Launatafla[[#This Row],[Laun frá launagreiðanda]]+Launatafla[[#This Row],[Atvinnuleysisbætur fyrir skerðingu]]+Launatafla[[#This Row],[Skerðing v/ samtals]]),0)) -> 0 | Q68: =+Launatafla[[#This Row],[Atvinnuleysisbætur fyrir skerðingu]]+Launatafla[[#This Row],[Skerðing v/ samtals]]+Launatafla[[#This Row],[Viðbót v/ tryggðra lágmarkslauna]] -> 342303 | R68: =+Launatafla[[#This Row],[Laun frá launagreiðanda]]+Launatafla[[#This Row],[Laun frá ríkissjóði]] -> 617303 | S68: =IFERROR(Launatafla[[#This Row],[Heildarlaun]]/Launatafla[[#This Row],[Meðal heildarlaun sl. 3M fyrir skatta]],0) -> 0.5611845455
E69: Starfsmaður 64 | F69: 1200000 | G69: 1 | H69: 0.2 | I69: =+Launatafla[[#This Row],[Starfshlutfall fyrir]]-Launatafla[[#This Row],[Skerðing starfshlutfalls]] -> 0.8 | J69: =+IF(OR(Launatafla[[#This Row],[Skerðing starfshlutfalls]]>Hámarkslækkun_starfshl,Launatafla[[#This Row],[Skerðing starfshlutfalls]]<Lágmarkslækkun_starfshl),0,Atvinnuleysisbætur*Launatafla[[#This Row],[Skerðing starfshlutfalls]]) -> 91280.8 | K69: =IFERROR(Launatafla[[#This Row],[Meðal heildarlaun sl. 3M fyrir skatta]]/Launatafla[[#This Row],[Starfshlutfall fyrir]],0)*(Launatafla[[#This Row],[Starfshlutfall fyrir]]-Launatafla[[#This Row],[Skerðing starfshlutfalls]]) -> 960000 | L69: =+Launatafla[[#This Row],[Atvinnuleysisbætur fyrir skerðingu]]+Launatafla[[#This Row],[Laun frá launagreiðanda]] -> 1051280.8 | M69: =-MAX(Launatafla[[#This Row],[Laun með bótum án skerðingar]]-Launatafla[[#This Row],[Meðal heildarlaun sl. 3M fyrir skatta]]*Hámarkshlutfall_af_launum,0) -> 0 | N69: =-MIN(MAX(Launatafla[[#This Row],[Laun með bótum án skerðingar]]-Hámarkslaun,0),Launatafla[[#This Row],[Atvinnuleysisbætur fyrir skerðingu]]) -> -91280.8 | O69: =+MIN(Launatafla[[#This Row],[Skerðing v/ hámarkshlutfalls]:[Skerðing v/ hámarkslauna]]) -> -91280.8 | P69: =+IF(Launatafla[[#This Row],[Atvinnuleysisbætur fyrir skerðingu]]=0,0, MAX(MIN(Lágmarkslaun_fullt_starf,Launatafla[[#This Row],[Meðal heildarlaun sl. 3M fyrir skatta]]/Launatafla[[#This Row],[Starfshlutfall fyrir]])*Launatafla[[#This Row],[Starfshlutfall fyrir]]-(Launatafla[[#This Row],[Laun frá launagreiðanda]]+Launatafla[[#This Row],[Atvinnuleysisbætur fyrir skerðingu]]+Launatafla[[#This Row],[Skerðing v/ samtals]]),0)) -> 0 | Q69: =+Launatafla[[#This Row],[Atvinnuleysisbætur fyrir skerðingu]]+Launatafla[[#This Row],[Skerðing v/ samtals]]+Launatafla[[#This Row],[Viðbót v/ tryggðra lágmarkslauna]] -> 0 | R69: =+Launatafla[[#This Row],[Laun frá launagreiðanda]]+Launatafla[[#This Row],[Laun frá ríkissjóði]] -> 960000 | S69: =IFERROR(Launatafla[[#This Row],[Heildarlaun]]/Launatafla[[#This Row],[Meðal heildarlaun sl. 3M fyrir skatta]],0) -> 0.8
E70: Starfsmaður 65 | F70: 1200000 | G70: 1 | H70: 0.3 | I70: =+Launatafla[[#This Row],[Starfshlutfall fyrir]]-Launatafla[[#This Row],[Skerðing starfshlutfalls]] -> 0.7 | J70: =+IF(OR(Launatafla[[#This Row],[Skerðing starfshlutfalls]]>Hámarkslækkun_starfshl,Launatafla[[#This Row],[Skerðing starfshlutfalls]]<Lágmarkslækkun_starfshl),0,Atvinnuleysisbætur*Launatafla[[#This Row],[Skerðing starfshlutfalls]]) -> 136921.2 | K70: =IFERROR(Launatafla[[#This Row],[Meðal heildarlaun sl. 3M fyrir skatta]]/Launatafla[[#This Row],[Starfshlutfall fyrir]],0)*(Launatafla[[#This Row],[Starfshlutfall fyrir]]-Launatafla[[#This Row],[Skerðing starfshlutfalls]]) -> 840000 | L70: =+Launatafla[[#This Row],[Atvinnuleysisbætur fyrir skerðingu]]+Launatafla[[#This Row],[Laun frá launagreiðanda]] -> 976921.2 | M70: =-MAX(Launatafla[[#This Row],[Laun með bótum án skerðingar]]-Launatafla[[#This Row],[Meðal heildarlaun sl. 3M fyrir skatta]]*Hámarkshlutfall_af_launum,0) -> 0 | N70: =-MIN(MAX(Launatafla[[#This Row],[Laun með bótum án skerðingar]]-Hámarkslaun,0),Launatafla[[#This Row],[Atvinnuleysisbætur fyrir skerðingu]]) -> -136921.2 | O70: =+MIN(Launatafla[[#This Row],[Skerðing v/ hámarkshlutfalls]:[Skerðing v/ hámarkslauna]]) -> -136921.2 | P70: =+IF(Launatafla[[#This Row],[Atvinnuleysisbætur fyrir skerðingu]]=0,0, MAX(MIN(Lágmarkslaun_fullt_starf,Launatafla[[#This Row],[Meðal heildarlaun sl. 3M fyrir skatta]]/Launatafla[[#This Row],[Starfshlutfall fyrir]])*Launatafla[[#This Row],[Starfshlutfall fyrir]]-(Launatafla[[#This Row],[Laun frá launagreiðanda]]+Launatafla[[#This Row],[Atvinnuleysisbætur fyrir skerðingu]]+Launatafla[[#This Row],[Skerðing v/ samtals]]),0)) -> 0 | Q70: =+Launatafla[[#This Row],[Atvinnuleysisbætur fyrir skerðingu]]+Launatafla[[#This Row],[Skerðing v/ samtals]]+Launatafla[[#This Row],[Viðbót v/ tryggðra lágmarkslauna]] -> 0 | R70: =+Launatafla[[#This Row],[Laun frá launagreiðanda]]+Launatafla[[#This Row],[Laun frá ríkissjóði]] -> 840000 | S70: =IFERROR(Launatafla[[#This Row],[Heildarlaun]]/Launatafla[[#This Row],[Meðal heildarlaun sl. 3M fyrir skatta]],0) -> 0.7
E71: Starfsmaður 66 | F71: 1200000 | G71: 1 | H71: 0.4 | I71: =+Launatafla[[#This Row],[Starfshlutfall fyrir]]-Launatafla[[#This Row],[Skerðing starfshlutfalls]] -> 0.6 | J71: =+IF(OR(Launatafla[[#This Row],[Skerðing starfshlutfalls]]>Hámarkslækkun_starfshl,Launatafla[[#This Row],[Skerðing starfshlutfalls]]<Lágmarkslækkun_starfshl),0,Atvinnuleysisbætur*Launatafla[[#This Row],[Skerðing starfshlutfalls]]) -> 182561.6 | K71: =IFERROR(Launatafla[[#This Row],[Meðal heildarlaun sl. 3M fyrir skatta]]/Launatafla[[#This Row],[Starfshlutfall fyrir]],0)*(Launatafla[[#This Row],[Starfshlutfall fyrir]]-Launatafla[[#This Row],[Skerðing starfshlutfalls]]) -> 720000 | L71: =+Launatafla[[#This Row],[Atvinnuleysisbætur fyrir skerðingu]]+Launatafla[[#This Row],[Laun frá launagreiðanda]] -> 902561.6 | M71: =-MAX(Launatafla[[#This Row],[Laun með bótum án skerðingar]]-Launatafla[[#This Row],[Meðal heildarlaun sl. 3M fyrir skatta]]*Hámarkshlutfall_af_launum,0) -> 0 | N71: =-MIN(MAX(Launatafla[[#This Row],[Laun með bótum án skerðingar]]-Hámarkslaun,0),Launatafla[[#This Row],[Atvinnuleysisbætur fyrir skerðingu]]) -> -182561.6 | O71: =+MIN(Launatafla[[#This Row],[Skerðing v/ hámarkshlutfalls]:[Skerðing v/ hámarkslauna]]) -> -182561.6 | P71: =+IF(Launatafla[[#This Row],[Atvinnuleysisbætur fyrir skerðingu]]=0,0, MAX(MIN(Lágmarkslaun_fullt_starf,Launatafla[[#This Row],[Meðal heildarlaun sl. 3M fyrir skatta]]/Launatafla[[#This Row],[Starfshlutfall fyrir]])*Launatafla[[#This Row],[Starfshlutfall fyrir]]-(Launatafla[[#This Row],[Laun frá launagreiðanda]]+Launatafla[[#This Row],[Atvinnuleysisbætur fyrir skerðingu]]+Launatafla[[#This Row],[Skerðing v/ samtals]]),0)) -> 0 | Q71: =+Launatafla[[#This Row],[Atvinnuleysisbætur fyrir skerðingu]]+Launatafla[[#This Row],[Skerðing v/ samtals]]+Launatafla[[#This Row],[Viðbót v/ tryggðra lágmarkslauna]] -> 0 | R71: =+Launatafla[[#This Row],[Laun frá launagreiðanda]]+Launatafla[[#This Row],[Laun frá ríkissjóði]] -> 720000 | S71: =IFERROR(Launatafla[[#This Row],[Heildarlaun]]/Launatafla[[#This Row],[Meðal heildarlaun sl. 3M fyrir skatta]],0) -> 0.6
E72: Starfsmaður 67 | F72: 1200000 | G72: 1 | H72: 0.5 | I72: =+Launatafla[[#This Row],[Starfshlutfall fyrir]]-Launatafla[[#This Row],[Skerðing starfshlutfalls]] -> 0.5 | J72: =+IF(OR(Launatafla[[#This Row],[Skerðing starfshlutfalls]]>Hámarkslækkun_starfshl,Launatafla[[#This Row],[Skerðing starfshlutfalls]]<Lágmarkslækkun_starfshl),0,Atvinnuleysisbætur*Launatafla[[#This Row],[Skerðing starfshlutfalls]]) -> 228202 | K72: =IFERROR(Launatafla[[#This Row],[Meðal heildarlaun sl. 3M fyrir skatta]]/Launatafla[[#This Row],[Starfshlutfall fyrir]],0)*(Launatafla[[#This Row],[Starfshlutfall fyrir]]-Launatafla[[#This Row],[Skerðing starfshlutfalls]]) -> 600000 | L72: =+Launatafla[[#This Row],[Atvinnuleysisbætur fyrir skerðingu]]+Launatafla[[#This Row],[Laun frá launagreiðanda]] -> 828202 | M72: =-MAX(Launatafla[[#This Row],[Laun með bótum án skerðingar]]-Launatafla[[#This Row],[Meðal heildarlaun sl. 3M fyrir skatta]]*Hámarkshlutfall_af_launum,0) -> 0 | N72: =-MIN(MAX(Launatafla[[#This Row],[Laun með bótum án skerðingar]]-Hámarkslaun,0),Launatafla[[#This Row],[Atvinnuleysisbætur fyrir skerðingu]]) -> -128202 | O72: =+MIN(Launatafla[[#This Row],[Skerðing v/ hámarkshlutfalls]:[Skerðing v/ hámarkslauna]]) -> -128202 | P72: =+IF(Launatafla[[#This Row],[Atvinnuleysisbætur fyrir skerðingu]]=0,0, MAX(MIN(Lágmarkslaun_fullt_starf,Launatafla[[#This Row],[Meðal heildarlaun sl. 3M fyrir skatta]]/Launatafla[[#This Row],[Starfshlutfall fyrir]])*Launatafla[[#This Row],[Starfshlutfall fyrir]]-(Launatafla[[#This Row],[Laun frá launagreiðanda]]+Launatafla[[#This Row],[Atvinnuleysisbætur fyrir skerðingu]]+Launatafla[[#This Row],[Skerðing v/ samtals]]),0)) -> 0 | Q72: =+Launatafla[[#This Row],[Atvinnuleysisbætur fyrir skerðingu]]+Launatafla[[#This Row],[Skerðing v/ samtals]]+Launatafla[[#This Row],[Viðbót v/ tryggðra lágmarkslauna]] -> 100000 | R72: =+Launatafla[[#This Row],[Laun frá launagreiðanda]]+Launatafla[[#This Row],[Laun frá ríkissjóði]] -> 700000 | S72: =IFERROR(Launatafla[[#This Row],[Heildarlaun]]/Launatafla[[#This Row],[Meðal heildarlaun sl. 3M fyrir skatta]],0) -> 0.5833333333
E73: Starfsmaður 68 | F73: 1200000 | G73: 1 | H73: 0.6 | I73: =+Launatafla[[#This Row],[Starfshlutfall fyrir]]-Launatafla[[#This Row],[Skerðing starfshlutfalls]] -> 0.4 | J73: =+IF(OR(Launatafla[[#This Row],[Skerðing starfshlutfalls]]>Hámarkslækkun_starfshl,Launatafla[[#This Row],[Skerðing starfshlutfalls]]<Lágmarkslækkun_starfshl),0,Atvinnuleysisbætur*Launatafla[[#This Row],[Skerðing starfshlutfalls]]) -> 273842.4 | K73: =IFERROR(Launatafla[[#This Row],[Meðal heildarlaun sl. 3M fyrir skatta]]/Launatafla[[#This Row],[Starfshlutfall fyrir]],0)*(Launatafla[[#This Row],[Starfshlutfall fyrir]]-Launatafla[[#This Row],[Skerðing starfshlutfalls]]) -> 480000 | L73: =+Launatafla[[#This Row],[Atvinnuleysisbætur fyrir skerðingu]]+Launatafla[[#This Row],[Laun frá launagreiðanda]] -> 753842.4 | M73: =-MAX(Launatafla[[#This Row],[Laun með bótum án skerðingar]]-Launatafla[[#This Row],[Meðal heildarlaun sl. 3M fyrir skatta]]*Hámarkshlutfall_af_launum,0) -> 0 | N73: =-MIN(MAX(Launatafla[[#This Row],[Laun með bótum án skerðingar]]-Hámarkslaun,0),Launatafla[[#This Row],[Atvinnuleysisbætur fyrir skerðingu]]) -> -53842.4 | O73: =+MIN(Launatafla[[#This Row],[Skerðing v/ hámarkshlutfalls]:[Skerðing v/ hámarkslauna]]) -> -53842.4 | P73: =+IF(Launatafla[[#This Row],[Atvinnuleysisbætur fyrir skerðingu]]=0,0, MAX(MIN(Lágmarkslaun_fullt_starf,Launatafla[[#This Row],[Meðal heildarlaun sl. 3M fyrir skatta]]/Launatafla[[#This Row],[Starfshlutfall fyrir]])*Launatafla[[#This Row],[Starfshlutfall fyrir]]-(Launatafla[[#This Row],[Laun frá launagreiðanda]]+Launatafla[[#This Row],[Atvinnuleysisbætur fyrir skerðingu]]+Launatafla[[#This Row],[Skerðing v/ samtals]]),0)) -> 0 | Q73: =+Launatafla[[#This Row],[Atvinnuleysisbætur fyrir skerðingu]]+Launatafla[[#This Row],[Skerðing v/ samtals]]+Launatafla[[#This Row],[Viðbót v/ tryggðra lágmarkslauna]] -> 220000 | R73: =+Launatafla[[#This Row],[Laun frá launagreiðanda]]+Launatafla[[#This Row],[Laun frá ríkissjóði]] -> 700000 | S73: =IFERROR(Launatafla[[#This Row],[Heildarlaun]]/Launatafla[[#This Row],[Meðal heildarlaun sl. 3M fyrir skatta]],0) -> 0.5833333333
E74: Starfsmaður 69 | F74: 1200000 | G74: 1 | H74: 0.7 | I74: =+Launatafla[[#This Row],[Starfshlutfall fyrir]]-Launatafla[[#This Row],[Skerðing starfshlutfalls]] -> 0.3 | J74: =+IF(OR(Launatafla[[#This Row],[Skerðing starfshlutfalls]]>Hámarkslækkun_starfshl,Launatafla[[#This Row],[Skerðing starfshlutfalls]]<Lágmarkslækkun_starfshl),0,Atvinnuleysisbætur*Launatafla[[#This Row],[Skerðing starfshlutfalls]]) -> 319482.8 | K74: =IFERROR(Launatafla[[#This Row],[Meðal heildarlaun sl. 3M fyrir skatta]]/Launatafla[[#This Row],[Starfshlutfall fyrir]],0)*(Launatafla[[#This Row],[Starfshlutfall fyrir]]-Launatafla[[#This Row],[Skerðing starfshlutfalls]]) -> 360000 | L74: =+Launatafla[[#This Row],[Atvinnuleysisbætur fyrir skerðingu]]+Launatafla[[#This Row],[Laun frá launagreiðanda]] -> 679482.8 | M74: =-MAX(Launatafla[[#This Row],[Laun með bótum án skerðingar]]-Launatafla[[#This Row],[Meðal heildarlaun sl. 3M fyrir skatta]]*Hámarkshlutfall_af_launum,0) -> 0 | N74: =-MIN(MAX(Launatafla[[#This Row],[Laun með bótum án skerðingar]]-Hámarkslaun,0),Launatafla[[#This Row],[Atvinnuleysisbætur fyrir skerðingu]]) -> 0 | O74: =+MIN(Launatafla[[#This Row],[Skerðing v/ hámarkshlutfalls]:[Skerðing v/ hámarkslauna]]) -> 0 | P74: =+IF(Launatafla[[#This Row],[Atvinnuleysisbætur fyrir skerðingu]]=0,0, MAX(MIN(Lágmarkslaun_fullt_starf,Launatafla[[#This Row],[Meðal heildarlaun sl. 3M fyrir skatta]]/Launatafla[[#This Row],[Starfshlutfall fyrir]])*Launatafla[[#This Row],[Starfshlutfall fyrir]]-(Launatafla[[#This Row],[Laun frá launagreiðanda]]+Launatafla[[#This Row],[Atvinnuleysisbætur fyrir skerðingu]]+Launatafla[[#This Row],[Skerðing v/ samtals]]),0)) -> 0 | Q74: =+Launatafla[[#This Row],[Atvinnuleysisbætur fyrir skerðingu]]+Launatafla[[#This Row],[Skerðing v/ samtals]]+Launatafla[[#This Row],[Viðbót v/ tryggðra lágmarkslauna]] -> 319482.8 | R74: =+Launatafla[[#This Row],[Laun frá launagreiðanda]]+Launatafla[[#This Row],[Laun frá ríkissjóði]] -> 679482.8 | S74: =IFERROR(Launatafla[[#This Row],[Heildarlaun]]/Launatafla[[#This Row],[Meðal heildarlaun sl. 3M fyrir skatta]],0) -> 0.5662356667
E75: Starfsmaður 70 | F75: 1200000 | G75: 1 | H75: 0.75 | I75: =+Launatafla[[#This Row],[Starfshlutfall fyrir]]-Launatafla[[#This Row],[Skerðing starfshlutfalls]] -> 0.25 | J75: =+IF(OR(Launatafla[[#This Row],[Skerðing starfshlutfalls]]>Hámarkslækkun_starfshl,Launatafla[[#This Row],[Skerðing starfshlutfalls]]<Lágmarkslækkun_starfshl),0,Atvinnuleysisbætur*Launatafla[[#This Row],[Skerðing starfshlutfalls]]) -> 342303 | K75: =IFERROR(Launatafla[[#This Row],[Meðal heildarlaun sl. 3M fyrir skatta]]/Launatafla[[#This Row],[Starfshlutfall fyrir]],0)*(Launatafla[[#This Row],[Starfshlutfall fyrir]]-Launatafla[[#This Row],[Skerðing starfshlutfalls]]) -> 300000 | L75: =+Launatafla[[#This Row],[Atvinnuleysisbætur fyrir skerðingu]]+Launatafla[[#This Row],[Laun frá launagreiðanda]] -> 642303 | M75: =-MAX(Launatafla[[#This Row],[Laun með bótum án skerðingar]]-Launatafla[[#This Row],[Meðal heildarlaun sl. 3M fyrir skatta]]*Hámarkshlutfall_af_launum,0) -> 0 | N75: =-MIN(MAX(Launatafla[[#This Row],[Laun með bótum án skerðingar]]-Hámarkslaun,0),Launatafla[[#This Row],[Atvinnuleysisbætur fyrir skerðingu]]) -> 0 | O75: =+MIN(Launatafla[[#This Row],[Skerðing v/ hámarkshlutfalls]:[Skerðing v/ hámarkslauna]]) -> 0 | P75: =+IF(Launatafla[[#This Row],[Atvinnuleysisbætur fyrir skerðingu]]=0,0, MAX(MIN(Lágmarkslaun_fullt_starf,Launatafla[[#This Row],[Meðal heildarlaun sl. 3M fyrir skatta]]/Launatafla[[#This Row],[Starfshlutfall fyrir]])*Launatafla[[#This Row],[Starfshlutfall fyrir]]-(Launatafla[[#This Row],[Laun frá launagreiðanda]]+Launatafla[[#This Row],[Atvinnuleysisbætur fyrir skerðingu]]+Launatafla[[#This Row],[Skerðing v/ samtals]]),0)) -> 0 | Q75: =+Launatafla[[#This Row],[Atvinnuleysisbætur fyrir skerðingu]]+Launatafla[[#This Row],[Skerðing v/ samtals]]+Launatafla[[#This Row],[Viðbót v/ tryggðra lágmarkslauna]] -> 342303 | R75: =+Launatafla[[#This Row],[Laun frá launagreiðanda]]+Launatafla[[#This Row],[Laun frá ríkissjóði]] -> 642303 | S75: =IFERROR(Launatafla[[#This Row],[Heildarlaun]]/Launatafla[[#This Row],[Meðal heildarlaun sl. 3M fyrir skatta]],0) -> 0.5352525
E76: Starfsmaður 71 | F76: 1300000 | G76: 1 | H76: 0.2 | I76: =+Launatafla[[#This Row],[Starfshlutfall fyrir]]-Launatafla[[#This Row],[Skerðing starfshlutfalls]] -> 0.8 | J76: =+IF(OR(Launatafla[[#This Row],[Skerðing starfshlutfalls]]>Hámarkslækkun_starfshl,Launatafla[[#This Row],[Skerðing starfshlutfalls]]<Lágmarkslækkun_starfshl),0,Atvinnuleysisbætur*Launatafla[[#This Row],[Skerðing starfshlutfalls]]) -> 91280.8 | K76: =IFERROR(Launatafla[[#This Row],[Meðal heildarlaun sl. 3M fyrir skatta]]/Launatafla[[#This Row],[Starfshlutfall fyrir]],0)*(Launatafla[[#This Row],[Starfshlutfall fyrir]]-Launatafla[[#This Row],[Skerðing starfshlutfalls]]) -> 1040000 | L76: =+Launatafla[[#This Row],[Atvinnuleysisbætur fyrir skerðingu]]+Launatafla[[#This Row],[Laun frá launagreiðanda]] -> 1131280.8 | M76: =-MAX(Launatafla[[#This Row],[Laun með bótum án skerðingar]]-Launatafla[[#This Row],[Meðal heildarlaun sl. 3M fyrir skatta]]*Hámarkshlutfall_af_launum,0) -> 0 | N76: =-MIN(MAX(Launatafla[[#This Row],[Laun með bótum án skerðingar]]-Hámarkslaun,0),Launatafla[[#This Row],[Atvinnuleysisbætur fyrir skerðingu]]) -> -91280.8 | O76: =+MIN(Launatafla[[#This Row],[Skerðing v/ hámarkshlutfalls]:[Skerðing v/ hámarkslauna]]) -> -91280.8 | P76: =+IF(Launatafla[[#This Row],[Atvinnuleysisbætur fyrir skerðingu]]=0,0, MAX(MIN(Lágmarkslaun_fullt_starf,Launatafla[[#This Row],[Meðal heildarlaun sl. 3M fyrir skatta]]/Launatafla[[#This Row],[Starfshlutfall fyrir]])*Launatafla[[#This Row],[Starfshlutfall fyrir]]-(Launatafla[[#This Row],[Laun frá launagreiðanda]]+Launatafla[[#This Row],[Atvinnuleysisbætur fyrir skerðingu]]+Launatafla[[#This Row],[Skerðing v/ samtals]]),0)) -> 0 | Q76: =+Launatafla[[#This Row],[Atvinnuleysisbætur fyrir skerðingu]]+Launatafla[[#This Row],[Skerðing v/ samtals]]+Launatafla[[#This Row],[Viðbót v/ tryggðra lágmarkslauna]] -> 0 | R76: =+Launatafla[[#This Row],[Laun frá launagreiðanda]]+Launatafla[[#This Row],[Laun frá ríkissjóði]] -> 1040000 | S76: =IFERROR(Launatafla[[#This Row],[Heildarlaun]]/Launatafla[[#This Row],[Meðal heildarlaun sl. 3M fyrir skatta]],0) -> 0.8
E77: Starfsmaður 72 | F77: 1300000 | G77: 1 | H77: 0.3 | I77: =+Launatafla[[#This Row],[Starfshlutfall fyrir]]-Launatafla[[#This Row],[Skerðing starfshlutfalls]] -> 0.7 | J77: =+IF(OR(Launatafla[[#This Row],[Skerðing starfshlutfalls]]>Hámarkslækkun_starfshl,Launatafla[[#This Row],[Skerðing starfshlutfalls]]<Lágmarkslækkun_starfshl),0,Atvinnuleysisbætur*Launatafla[[#This Row],[Skerðing starfshlutfalls]]) -> 136921.2 | K77: =IFERROR(Launatafla[[#This Row],[Meðal heildarlaun sl. 3M fyrir skatta]]/Launatafla[[#This Row],[Starfshlutfall fyrir]],0)*(Launatafla[[#This Row],[Starfshlutfall fyrir]]-Launatafla[[#This Row],[Skerðing starfshlutfalls]]) -> 910000 | L77: =+Launatafla[[#This Row],[Atvinnuleysisbætur fyrir skerðingu]]+Launatafla[[#This Row],[Laun frá launagreiðanda]] -> 1046921.2 | M77: =-MAX(Launatafla[[#This Row],[Laun með bótum án skerðingar]]-Launatafla[[#This Row],[Meðal heildarlaun sl. 3M fyrir skatta]]*Hámarkshlutfall_af_launum,0) -> 0 | N77: =-MIN(MAX(Launatafla[[#This Row],[Laun með bótum án skerðingar]]-Hámarkslaun,0),Launatafla[[#This Row],[Atvinnuleysisbætur fyrir skerðingu]]) -> -136921.2 | O77: =+MIN(Launatafla[[#This Row],[Skerðing v/ hámarkshlutfalls]:[Skerðing v/ hámarkslauna]]) -> -136921.2 | P77: =+IF(Launatafla[[#This Row],[Atvinnuleysisbætur fyrir skerðingu]]=0,0, MAX(MIN(Lágmarkslaun_fullt_starf,Launatafla[[#This Row],[Meðal heildarlaun sl. 3M fyrir skatta]]/Launatafla[[#This Row],[Starfshlutfall fyrir]])*Launatafla[[#This Row],[Starfshlutfall fyrir]]-(Launatafla[[#This Row],[Laun frá launagreiðanda]]+Launatafla[[#This Row],[Atvinnuleysisbætur fyrir skerðingu]]+Launatafla[[#This Row],[Skerðing v/ samtals]]),0)) -> 0 | Q77: =+Launatafla[[#This Row],[Atvinnuleysisbætur fyrir skerðingu]]+Launatafla[[#This Row],[Skerðing v/ samtals]]+Launatafla[[#This Row],[Viðbót v/ tryggðra lágmarkslauna]] -> 0 | R77: =+Launatafla[[#This Row],[Laun frá launagreiðanda]]+Launatafla[[#This Row],[Laun frá ríkissjóði]] -> 910000 | S77: =IFERROR(Launatafla[[#This Row],[Heildarlaun]]/Launatafla[[#This Row],[Meðal heildarlaun sl. 3M fyrir skatta]],0) -> 0.7
E78: Starfsmaður 73 | F78: 1300000 | G78: 1 | H78: 0.4 | I78: =+Launatafla[[#This Row],[Starfshlutfall fyrir]]-Launatafla[[#This Row],[Skerðing starfshlutfalls]] -> 0.6 | J78: =+IF(OR(Launatafla[[#This Row],[Skerðing starfshlutfalls]]>Hámarkslækkun_starfshl,Launatafla[[#This Row],[Skerðing starfshlutfalls]]<Lágmarkslækkun_starfshl),0,Atvinnuleysisbætur*Launatafla[[#This Row],[Skerðing starfshlutfalls]]) -> 182561.6 | K78: =IFERROR(Launatafla[[#This Row],[Meðal heildarlaun sl. 3M fyrir skatta]]/Launatafla[[#This Row],[Starfshlutfall fyrir]],0)*(Launatafla[[#This Row],[Starfshlutfall fyrir]]-Launatafla[[#This Row],[Skerðing starfshlutfalls]]) -> 780000 | L78: =+Launatafla[[#This Row],[Atvinnuleysisbætur fyrir skerðingu]]+Launatafla[[#This Row],[Laun frá launagreiðanda]] -> 962561.6 | M78: =-MAX(Launatafla[[#This Row],[Laun með bótum án skerðingar]]-Launatafla[[#This Row],[Meðal heildarlaun sl. 3M fyrir skatta]]*Hámarkshlutfall_af_launum,0) -> 0 | N78: =-MIN(MAX(Launatafla[[#This Row],[Laun með bótum án skerðingar]]-Hámarkslaun,0),Launatafla[[#This Row],[Atvinnuleysisbætur fyrir skerðingu]]) -> -182561.6 | O78: =+MIN(Launatafla[[#This Row],[Skerðing v/ hámarkshlutfalls]:[Skerðing v/ hámarkslauna]]) -> -182561.6 | P78: =+IF(Launatafla[[#This Row],[Atvinnuleysisbætur fyrir skerðingu]]=0,0, MAX(MIN(Lágmarkslaun_fullt_starf,Launatafla[[#This Row],[Meðal heildarlaun sl. 3M fyrir skatta]]/Launatafla[[#This Row],[Starfshlutfall fyrir]])*Launatafla[[#This Row],[Starfshlutfall fyrir]]-(Launatafla[[#This Row],[Laun frá launagreiðanda]]+Launatafla[[#This Row],[Atvinnuleysisbætur fyrir skerðingu]]+Launatafla[[#This Row],[Skerðing v/ samtals]]),0)) -> 0 | Q78: =+Launatafla[[#This Row],[Atvinnuleysisbætur fyrir skerðingu]]+Launatafla[[#This Row],[Skerðing v/ samtals]]+Launatafla[[#This Row],[Viðbót v/ tryggðra lágmarkslauna]] -> 0 | R78: =+Launatafla[[#This Row],[Laun frá launagreiðanda]]+Launatafla[[#This Row],[Laun frá ríkissjóði]] -> 780000 | S78: =IFERROR(Launatafla[[#This Row],[Heildarlaun]]/Launatafla[[#This Row],[Meðal heildarlaun sl. 3M fyrir skatta]],0) -> 0.6
E79: Starfsmaður 74 | F79: 1300000 | G79: 1 | H79: 0.5 | I79: =+Launatafla[[#This Row],[Starfshlutfall fyrir]]-Launatafla[[#This Row],[Skerðing starfshlutfalls]] -> 0.5 | J79: =+IF(OR(Launatafla[[#This Row],[Skerðing starfshlutfalls]]>Hámarkslækkun_starfshl,Launatafla[[#This Row],[Skerðing starfshlutfalls]]<Lágmarkslækkun_starfshl),0,Atvinnuleysisbætur*Launatafla[[#This Row],[Skerðing starfshlutfalls]]) -> 228202 | K79: =IFERROR(Launatafla[[#This Row],[Meðal heildarlaun sl. 3M fyrir skatta]]/Launatafla[[#This Row],[Starfshlutfall fyrir]],0)*(Launatafla[[#This Row],[Starfshlutfall fyrir]]-Launatafla[[#This Row],[Skerðing starfshlutfalls]]) -> 650000 | L79: =+Launatafla[[#This Row],[Atvinnuleysisbætur fyrir skerðingu]]+Launatafla[[#This Row],[Laun frá launagreiðanda]] -> 878202 | M79: =-MAX(Launatafla[[#This Row],[Laun með bótum án skerðingar]]-Launatafla[[#This Row],[Meðal heildarlaun sl. 3M fyrir skatta]]*Hámarkshlutfall_af_launum,0) -> 0 | N79: =-MIN(MAX(Launatafla[[#This Row],[Laun með bótum án skerðingar]]-Hámarkslaun,0),Launatafla[[#This Row],[Atvinnuleysisbætur fyrir skerðingu]]) -> -178202 | O79: =+MIN(Launatafla[[#This Row],[Skerðing v/ hámarkshlutfalls]:[Skerðing v/ hámarkslauna]]) -> -178202 | P79: =+IF(Launatafla[[#This Row],[Atvinnuleysisbætur fyrir skerðingu]]=0,0, MAX(MIN(Lágmarkslaun_fullt_starf,Launatafla[[#This Row],[Meðal heildarlaun sl. 3M fyrir skatta]]/Launatafla[[#This Row],[Starfshlutfall fyrir]])*Launatafla[[#This Row],[Starfshlutfall fyrir]]-(Launatafla[[#This Row],[Laun frá launagreiðanda]]+Launatafla[[#This Row],[Atvinnuleysisbætur fyrir skerðingu]]+Launatafla[[#This Row],[Skerðing v/ samtals]]),0)) -> 0 | Q79: =+Launatafla[[#This Row],[Atvinnuleysisbætur fyrir skerðingu]]+Launatafla[[#This Row],[Skerðing v/ samtals]]+Launatafla[[#This Row],[Viðbót v/ tryggðra lágmarkslauna]] -> 50000 | R79: =+Launatafla[[#This Row],[Laun frá launagreiðanda]]+Launatafla[[#This Row],[Laun frá ríkissjóði]] -> 700000 | S79: =IFERROR(Launatafla[[#This Row],[Heildarlaun]]/Launatafla[[#This Row],[Meðal heildarlaun sl. 3M fyrir skatta]],0) -> 0.5384615385
E80: Starfsmaður 75 | F80: 1300000 | G80: 1 | H80: 0.6 | I80: =+Launatafla[[#This Row],[Starfshlutfall fyrir]]-Launatafla[[#This Row],[Skerðing starfshlutfalls]] -> 0.4 | J80: =+IF(OR(Launatafla[[#This Row],[Skerðing starfshlutfalls]]>Hámarkslækkun_starfshl,Launatafla[[#This Row],[Skerðing starfshlutfalls]]<Lágmarkslækkun_starfshl),0,Atvinnuleysisbætur*Launatafla[[#This Row],[Skerðing starfshlutfalls]]) -> 273842.4 | K80: =IFERROR(Launatafla[[#This Row],[Meðal heildarlaun sl. 3M fyrir skatta]]/Launatafla[[#This Row],[Starfshlutfall fyrir]],0)*(Launatafla[[#This Row],[Starfshlutfall fyrir]]-Launatafla[[#This Row],[Skerðing starfshlutfalls]]) -> 520000 | L80: =+Launatafla[[#This Row],[Atvinnuleysisbætur fyrir skerðingu]]+Launatafla[[#This Row],[Laun frá launagreiðanda]] -> 793842.4 | M80: =-MAX(Launatafla[[#This Row],[Laun með bótum án skerðingar]]-Launatafla[[#This Row],[Meðal heildarlaun sl. 3M fyrir skatta]]*Hámarkshlutfall_af_launum,0) -> 0 | N80: =-MIN(MAX(Launatafla[[#This Row],[Laun með bótum án skerðingar]]-Hámarkslaun,0),Launatafla[[#This Row],[Atvinnuleysisbætur fyrir skerðingu]]) -> -93842.4 | O80: =+MIN(Launatafla[[#This Row],[Skerðing v/ hámarkshlutfalls]:[Skerðing v/ hámarkslauna]]) -> -93842.4 | P80: =+IF(Launatafla[[#This Row],[Atvinnuleysisbætur fyrir skerðingu]]=0,0, MAX(MIN(Lágmarkslaun_fullt_starf,Launatafla[[#This Row],[Meðal heildarlaun sl. 3M fyrir skatta]]/Launatafla[[#This Row],[Starfshlutfall fyrir]])*Launatafla[[#This Row],[Starfshlutfall fyrir]]-(Launatafla[[#This Row],[Laun frá launagreiðanda]]+Launatafla[[#This Row],[Atvinnuleysisbætur fyrir skerðingu]]+Launatafla[[#This Row],[Skerðing v/ samtals]]),0)) -> 0 | Q80: =+Launatafla[[#This Row],[Atvinnuleysisbætur fyrir skerðingu]]+Launatafla[[#This Row],[Skerðing v/ samtals]]+Launatafla[[#This Row],[Viðbót v/ tryggðra lágmarkslauna]] -> 180000 | R80: =+Launatafla[[#This Row],[Laun frá launagreiðanda]]+Launatafla[[#This Row],[Laun frá ríkissjóði]] -> 700000 | S80: =IFERROR(Launatafla[[#This Row],[Heildarlaun]]/Launatafla[[#This Row],[Meðal heildarlaun sl. 3M fyrir skatta]],0) -> 0.5384615385
E81: Starfsmaður 76 | F81: 1300000 | G81: 1 | H81: 0.7 | I81: =+Launatafla[[#This Row],[Starfshlutfall fyrir]]-Launatafla[[#This Row],[Skerðing starfshlutfalls]] -> 0.3 | J81: =+IF(OR(Launatafla[[#This Row],[Skerðing starfshlutfalls]]>Hámarkslækkun_starfshl,Launatafla[[#This Row],[Skerðing starfshlutfalls]]<Lágmarkslækkun_starfshl),0,Atvinnuleysisbætur*Launatafla[[#This Row],[Skerðing starfshlutfalls]]) -> 319482.8 | K81: =IFERROR(Launatafla[[#This Row],[Meðal heildarlaun sl. 3M fyrir skatta]]/Launatafla[[#This Row],[Starfshlutfall fyrir]],0)*(Launatafla[[#This Row],[Starfshlutfall fyrir]]-Launatafla[[#This Row],[Skerðing starfshlutfalls]]) -> 390000 | L81: =+Launatafla[[#This Row],[Atvinnuleysisbætur fyrir skerðingu]]+Launatafla[[#This Row],[Laun frá launagreiðanda]] -> 709482.8 | M81: =-MAX(Launatafla[[#This Row],[Laun með bótum án skerðingar]]-Launatafla[[#This Row],[Meðal heildarlaun sl. 3M fyrir skatta]]*Hámarkshlutfall_af_launum,0) -> 0 | N81: =-MIN(MAX(Launatafla[[#This Row],[Laun með bótum án skerðingar]]-Hámarkslaun,0),Launatafla[[#This Row],[Atvinnuleysisbætur fyrir skerðingu]]) -> -9482.8 | O81: =+MIN(Launatafla[[#This Row],[Skerðing v/ hámarkshlutfalls]:[Skerðing v/ hámarkslauna]]) -> -9482.8 | P81: =+IF(Launatafla[[#This Row],[Atvinnuleysisbætur fyrir skerðingu]]=0,0, MAX(MIN(Lágmarkslaun_fullt_starf,Launatafla[[#This Row],[Meðal heildarlaun sl. 3M fyrir skatta]]/Launatafla[[#This Row],[Starfshlutfall fyrir]])*Launatafla[[#This Row],[Starfshlutfall fyrir]]-(Launatafla[[#This Row],[Laun frá launagreiðanda]]+Launatafla[[#This Row],[Atvinnuleysisbætur fyrir skerðingu]]+Launatafla[[#This Row],[Skerðing v/ samtals]]),0)) -> 0 | Q81: =+Launatafla[[#This Row],[Atvinnuleysisbætur fyrir skerðingu]]+Launatafla[[#This Row],[Skerðing v/ samtals]]+Launatafla[[#This Row],[Viðbót v/ tryggðra lágmarkslauna]] -> 310000 | R81: =+Launatafla[[#This Row],[Laun frá launagreiðanda]]+Launatafla[[#This Row],[Laun frá ríkissjóði]] -> 700000 | S81: =IFERROR(Launatafla[[#This Row],[Heildarlaun]]/Launatafla[[#This Row],[Meðal heildarlaun sl. 3M fyrir skatta]],0) -> 0.5384615385
E82: Starfsmaður 77 | F82: 1300000 | G82: 1 | H82: 0.75 | I82: =+Launatafla[[#This Row],[Starfshlutfall fyrir]]-Launatafla[[#This Row],[Skerðing starfshlutfalls]] -> 0.25 | J82: =+IF(OR(Launatafla[[#This Row],[Skerðing starfshlutfalls]]>Hámarkslækkun_starfshl,Launatafla[[#This Row],[Skerðing starfshlutfalls]]<Lágmarkslækkun_starfshl),0,Atvinnuleysisbætur*Launatafla[[#This Row],[Skerðing starfshlutfalls]]) -> 342303 | K82: =IFERROR(Launatafla[[#This Row],[Meðal heildarlaun sl. 3M fyrir skatta]]/Launatafla[[#This Row],[Starfshlutfall fyrir]],0)*(Launatafla[[#This Row],[Starfshlutfall fyrir]]-Launatafla[[#This Row],[Skerðing starfshlutfalls]]) -> 325000 | L82: =+Launatafla[[#This Row],[Atvinnuleysisbætur fyrir skerðingu]]+Launatafla[[#This Row],[Laun frá launagreiðanda]] -> 667303 | M82: =-MAX(Launatafla[[#This Row],[Laun með bótum án skerðingar]]-Launatafla[[#This Row],[Meðal heildarlaun sl. 3M fyrir skatta]]*Hámarkshlutfall_af_launum,0) -> 0 | N82: =-MIN(MAX(Launatafla[[#This Row],[Laun með bótum án skerðingar]]-Hámarkslaun,0),Launatafla[[#This Row],[Atvinnuleysisbætur fyrir skerðingu]]) -> 0 | O82: =+MIN(Launatafla[[#This Row],[Skerðing v/ hámarkshlutfalls]:[Skerðing v/ hámarkslauna]]) -> 0 | P82: =+IF(Launatafla[[#This Row],[Atvinnuleysisbætur fyrir skerðingu]]=0,0, MAX(MIN(Lágmarkslaun_fullt_starf,Launatafla[[#This Row],[Meðal heildarlaun sl. 3M fyrir skatta]]/Launatafla[[#This Row],[Starfshlutfall fyrir]])*Launatafla[[#This Row],[Starfshlutfall fyrir]]-(Launatafla[[#This Row],[Laun frá launagreiðanda]]+Launatafla[[#This Row],[Atvinnuleysisbætur fyrir skerðingu]]+Launatafla[[#This Row],[Skerðing v/ samtals]]),0)) -> 0 | Q82: =+Launatafla[[#This Row],[Atvinnuleysisbætur fyrir skerðingu]]+Launatafla[[#This Row],[Skerðing v/ samtals]]+Launatafla[[#This Row],[Viðbót v/ tryggðra lágmarkslauna]] -> 342303 | R82: =+Launatafla[[#This Row],[Laun frá launagreiðanda]]+Launatafla[[#This Row],[Laun frá ríkissjóði]] -> 667303 | S82: =IFERROR(Launatafla[[#This Row],[Heildarlaun]]/Launatafla[[#This Row],[Meðal heildarlaun sl. 3M fyrir skatta]],0) -> 0.51331
E83: Starfsmaður 78 | F83: 1400000 | G83: 1 | H83: 0.2 | I83: =+Launatafla[[#This Row],[Starfshlutfall fyrir]]-Launatafla[[#This Row],[Skerðing starfshlutfalls]] -> 0.8 | J83: =+IF(OR(Launatafla[[#This Row],[Skerðing starfshlutfalls]]>Hámarkslækkun_starfshl,Launatafla[[#This Row],[Skerðing starfshlutfalls]]<Lágmarkslækkun_starfshl),0,Atvinnuleysisbætur*Launatafla[[#This Row],[Skerðing starfshlutfalls]]) -> 91280.8 | K83: =IFERROR(Launatafla[[#This Row],[Meðal heildarlaun sl. 3M fyrir skatta]]/Launatafla[[#This Row],[Starfshlutfall fyrir]],0)*(Launatafla[[#This Row],[Starfshlutfall fyrir]]-Launatafla[[#This Row],[Skerðing starfshlutfalls]]) -> 1120000 | L83: =+Launatafla[[#This Row],[Atvinnuleysisbætur fyrir skerðingu]]+Launatafla[[#This Row],[Laun frá launagreiðanda]] -> 1211280.8 | M83: =-MAX(Launatafla[[#This Row],[Laun með bótum án skerðingar]]-Launatafla[[#This Row],[Meðal heildarlaun sl. 3M fyrir skatta]]*Hámarkshlutfall_af_launum,0) -> 0 | N83: =-MIN(MAX(Launatafla[[#This Row],[Laun með bótum án skerðingar]]-Hámarkslaun,0),Launatafla[[#This Row],[Atvinnuleysisbætur fyrir skerðingu]]) -> -91280.8 | O83: =+MIN(Launatafla[[#This Row],[Skerðing v/ hámarkshlutfalls]:[Skerðing v/ hámarkslauna]]) -> -91280.8 | P83: =+IF(Launatafla[[#This Row],[Atvinnuleysisbætur fyrir skerðingu]]=0,0, MAX(MIN(Lágmarkslaun_fullt_starf,Launatafla[[#This Row],[Meðal heildarlaun sl. 3M fyrir skatta]]/Launatafla[[#This Row],[Starfshlutfall fyrir]])*Launatafla[[#This Row],[Starfshlutfall fyrir]]-(Launatafla[[#This Row],[Laun frá launagreiðanda]]+Launatafla[[#This Row],[Atvinnuleysisbætur fyrir skerðingu]]+Launatafla[[#This Row],[Skerðing v/ samtals]]),0)) -> 0 | Q83: =+Launatafla[[#This Row],[Atvinnuleysisbætur fyrir skerðingu]]+Launatafla[[#This Row],[Skerðing v/ samtals]]+Launatafla[[#This Row],[Viðbót v/ tryggðra lágmarkslauna]] -> 0 | R83: =+Launatafla[[#This Row],[Laun frá launagreiðanda]]+Launatafla[[#This Row],[Laun frá ríkissjóði]] -> 1120000 | S83: =IFERROR(Launatafla[[#This Row],[Heildarlaun]]/Launatafla[[#This Row],[Meðal heildarlaun sl. 3M fyrir skatta]],0) -> 0.8
E84: Starfsmaður 79 | F84: 1400000 | G84: 1 | H84: 0.3 | I84: =+Launatafla[[#This Row],[Starfshlutfall fyrir]]-Launatafla[[#This Row],[Skerðing starfshlutfalls]] -> 0.7 | J84: =+IF(OR(Launatafla[[#This Row],[Skerðing starfshlutfalls]]>Hámarkslækkun_starfshl,Launatafla[[#This Row],[Skerðing starfshlutfalls]]<Lágmarkslækkun_starfshl),0,Atvinnuleysisbætur*Launatafla[[#This Row],[Skerðing starfshlutfalls]]) -> 136921.2 | K84: =IFERROR(Launatafla[[#This Row],[Meðal heildarlaun sl. 3M fyrir skatta]]/Launatafla[[#This Row],[Starfshlutfall fyrir]],0)*(Launatafla[[#This Row],[Starfshlutfall fyrir]]-Launatafla[[#This Row],[Skerðing starfshlutfalls]]) -> 980000 | L84: =+Launatafla[[#This Row],[Atvinnuleysisbætur fyrir skerðingu]]+Launatafla[[#This Row],[Laun frá launagreiðanda]] -> 1116921.2 | M84: =-MAX(Launatafla[[#This Row],[Laun með bótum án skerðingar]]-Launatafla[[#This Row],[Meðal heildarlaun sl. 3M fyrir skatta]]*Hámarkshlutfall_af_launum,0) -> 0 | N84: =-MIN(MAX(Launatafla[[#This Row],[Laun með bótum án skerðingar]]-Hámarkslaun,0),Launatafla[[#This Row],[Atvinnuleysisbætur fyrir skerðingu]]) -> -136921.2 | O84: =+MIN(Launatafla[[#This Row],[Skerðing v/ hámarkshlutfalls]:[Skerðing v/ hámarkslauna]]) -> -136921.2 | P84: =+IF(Launatafla[[#This Row],[Atvinnuleysisbætur fyrir skerðingu]]=0,0, MAX(MIN(Lágmarkslaun_fullt_starf,Launatafla[[#This Row],[Meðal heildarlaun sl. 3M fyrir skatta]]/Launatafla[[#This Row],[Starfshlutfall fyrir]])*Launatafla[[#This Row],[Starfshlutfall fyrir]]-(Launatafla[[#This Row],[Laun frá launagreiðanda]]+Launatafla[[#This Row],[Atvinnuleysisbætur fyrir skerðingu]]+Launatafla[[#This Row],[Skerðing v/ samtals]]),0)) -> 0 | Q84: =+Launatafla[[#This Row],[Atvinnuleysisbætur fyrir skerðingu]]+Launatafla[[#This Row],[Skerðing v/ samtals]]+Launatafla[[#This Row],[Viðbót v/ tryggðra lágmarkslauna]] -> 0 | R84: =+Launatafla[[#This Row],[Laun frá launagreiðanda]]+Launatafla[[#This Row],[Laun frá ríkissjóði]] -> 980000 | S84: =IFERROR(Launatafla[[#This Row],[Heildarlaun]]/Launatafla[[#This Row],[Meðal heildarlaun sl. 3M fyrir skatta]],0) -> 0.7
E85: Starfsmaður 80 | F85: 1400000 | G85: 1 | H85: 0.4 | I85: =+Launatafla[[#This Row],[Starfshlutfall fyrir]]-Launatafla[[#This Row],[Skerðing starfshlutfalls]] -> 0.6 | J85: =+IF(OR(Launatafla[[#This Row],[Skerðing starfshlutfalls]]>Hámarkslækkun_starfshl,Launatafla[[#This Row],[Skerðing starfshlutfalls]]<Lágmarkslækkun_starfshl),0,Atvinnuleysisbætur*Launatafla[[#This Row],[Skerðing starfshlutfalls]]) -> 182561.6 | K85: =IFERROR(Launatafla[[#This Row],[Meðal heildarlaun sl. 3M fyrir skatta]]/Launatafla[[#This Row],[Starfshlutfall fyrir]],0)*(Launatafla[[#This Row],[Starfshlutfall fyrir]]-Launatafla[[#This Row],[Skerðing starfshlutfalls]]) -> 840000 | L85: =+Launatafla[[#This Row],[Atvinnuleysisbætur fyrir skerðingu]]+Launatafla[[#This Row],[Laun frá launagreiðanda]] -> 1022561.6 | M85: =-MAX(Launatafla[[#This Row],[Laun með bótum án skerðingar]]-Launatafla[[#This Row],[Meðal heildarlaun sl. 3M fyrir skatta]]*Hámarkshlutfall_af_launum,0) -> 0 | N85: =-MIN(MAX(Launatafla[[#This Row],[Laun með bótum án skerðingar]]-Hámarkslaun,0),Launatafla[[#This Row],[Atvinnuleysisbætur fyrir skerðingu]]) -> -182561.6 | O85: =+MIN(Launatafla[[#This Row],[Skerðing v/ hámarkshlutfalls]:[Skerðing v/ hámarkslauna]]) -> -182561.6 | P85: =+IF(Launatafla[[#This Row],[Atvinnuleysisbætur fyrir skerðingu]]=0,0, MAX(MIN(Lágmarkslaun_fullt_starf,Launatafla[[#This Row],[Meðal heildarlaun sl. 3M fyrir skatta]]/Launatafla[[#This Row],[Starfshlutfall fyrir]])*Launatafla[[#This Row],[Starfshlutfall fyrir]]-(Launatafla[[#This Row],[Laun frá launagreiðanda]]+Launatafla[[#This Row],[Atvinnuleysisbætur fyrir skerðingu]]+Launatafla[[#This Row],[Skerðing v/ samtals]]),0)) -> 0 | Q85: =+Launatafla[[#This Row],[Atvinnuleysisbætur fyrir skerðingu]]+Launatafla[[#This Row],[Skerðing v/ samtals]]+Launatafla[[#This Row],[Viðbót v/ tryggðra lágmarkslauna]] -> 0 | R85: =+Launatafla[[#This Row],[Laun frá launagreiðanda]]+Launatafla[[#This Row],[Laun frá ríkissjóði]] -> 840000 | S85: =IFERROR(Launatafla[[#This Row],[Heildarlaun]]/Launatafla[[#This Row],[Meðal heildarlaun sl. 3M fyrir skatta]],0) -> 0.6
E86: Starfsmaður 81 | F86: 1400000 | G86: 1 | H86: 0.5 | I86: =+Launatafla[[#This Row],[Starfshlutfall fyrir]]-Launatafla[[#This Row],[Skerðing starfshlutfalls]] -> 0.5 | J86: =+IF(OR(Launatafla[[#This Row],[Skerðing starfshlutfalls]]>Hámarkslækkun_starfshl,Launatafla[[#This Row],[Skerðing starfshlutfalls]]<Lágmarkslækkun_starfshl),0,Atvinnuleysisbætur*Launatafla[[#This Row],[Skerðing starfshlutfalls]]) -> 228202 | K86: =IFERROR(Launatafla[[#This Row],[Meðal heildarlaun sl. 3M fyrir skatta]]/Launatafla[[#This Row],[Starfshlutfall fyrir]],0)*(Launatafla[[#This Row],[Starfshlutfall fyrir]]-Launatafla[[#This Row],[Skerðing starfshlutfalls]]) -> 700000 | L86: =+Launatafla[[#This Row],[Atvinnuleysisbætur fyrir skerðingu]]+Launatafla[[#This Row],[Laun frá launagreiðanda]] -> 928202 | M86: =-MAX(Launatafla[[#This Row],[Laun með bótum án skerðingar]]-Launatafla[[#This Row],[Meðal heildarlaun sl. 3M fyrir skatta]]*Hámarkshlutfall_af_launum,0) -> 0 | N86: =-MIN(MAX(Launatafla[[#This Row],[Laun með bótum án skerðingar]]-Hámarkslaun,0),Launatafla[[#This Row],[Atvinnuleysisbætur fyrir skerðingu]]) -> -228202 | O86: =+MIN(Launatafla[[#This Row],[Skerðing v/ hámarkshlutfalls]:[Skerðing v/ hámarkslauna]]) -> -228202 | P86: =+IF(Launatafla[[#This Row],[Atvinnuleysisbætur fyrir skerðingu]]=0,0, MAX(MIN(Lágmarkslaun_fullt_starf,Launatafla[[#This Row],[Meðal heildarlaun sl. 3M fyrir skatta]]/Launatafla[[#This Row],[Starfshlutfall fyrir]])*Launatafla[[#This Row],[Starfshlutfall fyrir]]-(Launatafla[[#This Row],[Laun frá launagreiðanda]]+Launatafla[[#This Row],[Atvinnuleysisbætur fyrir skerðingu]]+Launatafla[[#This Row],[Skerðing v/ samtals]]),0)) -> 0 | Q86: =+Launatafla[[#This Row],[Atvinnuleysisbætur fyrir skerðingu]]+Launatafla[[#This Row],[Skerðing v/ samtals]]+Launatafla[[#This Row],[Viðbót v/ tryggðra lágmarkslauna]] -> 0 | R86: =+Launatafla[[#This Row],[Laun frá launagreiðanda]]+Launatafla[[#This Row],[Laun frá ríkissjóði]] -> 700000 | S86: =IFERROR(Launatafla[[#This Row],[Heildarlaun]]/Launatafla[[#This Row],[Meðal heildarlaun sl. 3M fyrir skatta]],0) -> 0.5
E87: Starfsmaður 82 | F87: 1400000 | G87: 1 | H87: 0.6 | I87: =+Launatafla[[#This Row],[Starfshlutfall fyrir]]-Launatafla[[#This Row],[Skerðing starfshlutfalls]] -> 0.4 | J87: =+IF(OR(Launatafla[[#This Row],[Skerðing starfshlutfalls]]>Hámarkslækkun_starfshl,Launatafla[[#This Row],[Skerðing starfshlutfalls]]<Lágmarkslækkun_starfshl),0,Atvinnuleysisbætur*Launatafla[[#This Row],[Skerðing starfshlutfalls]]) -> 273842.4 | K87: =IFERROR(Launatafla[[#This Row],[Meðal heildarlaun sl. 3M fyrir skatta]]/Launatafla[[#This Row],[Starfshlutfall fyrir]],0)*(Launatafla[[#This Row],[Starfshlutfall fyrir]]-Launatafla[[#This Row],[Skerðing starfshlutfalls]]) -> 560000 | L87: =+Launatafla[[#This Row],[Atvinnuleysisbætur fyrir skerðingu]]+Launatafla[[#This Row],[Laun frá launagreiðanda]] -> 833842.4 | M87: =-MAX(Launatafla[[#This Row],[Laun með bótum án skerðingar]]-Launatafla[[#This Row],[Meðal heildarlaun sl. 3M fyrir skatta]]*Hámarkshlutfall_af_launum,0) -> 0 | N87: =-MIN(MAX(Launatafla[[#This Row],[Laun með bótum án skerðingar]]-Hámarkslaun,0),Launatafla[[#This Row],[Atvinnuleysisbætur fyrir skerðingu]]) -> -133842.4 | O87: =+MIN(Launatafla[[#This Row],[Skerðing v/ hámarkshlutfalls]:[Skerðing v/ hámarkslauna]]) -> -133842.4 | P87: =+IF(Launatafla[[#This Row],[Atvinnuleysisbætur fyrir skerðingu]]=0,0, MAX(MIN(Lágmarkslaun_fullt_starf,Launatafla[[#This Row],[Meðal heildarlaun sl. 3M fyrir skatta]]/Launatafla[[#This Row],[Starfshlutfall fyrir]])*Launatafla[[#This Row],[Starfshlutfall fyrir]]-(Launatafla[[#This Row],[Laun frá launagreiðanda]]+Launatafla[[#This Row],[Atvinnuleysisbætur fyrir skerðingu]]+Launatafla[[#This Row],[Skerðing v/ samtals]]),0)) -> 0 | Q87: =+Launatafla[[#This Row],[Atvinnuleysisbætur fyrir skerðingu]]+Launatafla[[#This Row],[Skerðing v/ samtals]]+Launatafla[[#This Row],[Viðbót v/ tryggðra lágmarkslauna]] -> 140000 | R87: =+Launatafla[[#This Row],[Laun frá launagreiðanda]]+Launatafla[[#This Row],[Laun frá ríkissjóði]] -> 700000 | S87: =IFERROR(Launatafla[[#This Row],[Heildarlaun]]/Launatafla[[#This Row],[Meðal heildarlaun sl. 3M fyrir skatta]],0) -> 0.5
E88: Starfsmaður 83 | F88: 1400000 | G88: 1 | H88: 0.7 | I88: =+Launatafla[[#This Row],[Starfshlutfall fyrir]]-Launatafla[[#This Row],[Skerðing starfshlutfalls]] -> 0.3 | J88: =+IF(OR(Launatafla[[#This Row],[Skerðing starfshlutfalls]]>Hámarkslækkun_starfshl,Launatafla[[#This Row],[Skerðing starfshlutfalls]]<Lágmarkslækkun_starfshl),0,Atvinnuleysisbætur*Launatafla[[#This Row],[Skerðing starfshlutfalls]]) -> 319482.8 | K88: =IFERROR(Launatafla[[#This Row],[Meðal heildarlaun sl. 3M fyrir skatta]]/Launatafla[[#This Row],[Starfshlutfall fyrir]],0)*(Launatafla[[#This Row],[Starfshlutfall fyrir]]-Launatafla[[#This Row],[Skerðing starfshlutfalls]]) -> 420000 | L88: =+Launatafla[[#This Row],[Atvinnuleysisbætur fyrir skerðingu]]+Launatafla[[#This Row],[Laun frá launagreiðanda]] -> 739482.8 | M88: =-MAX(Launatafla[[#This Row],[Laun með bótum án skerðingar]]-Launatafla[[#This Row],[Meðal heildarlaun sl. 3M fyrir skatta]]*Hámarkshlutfall_af_launum,0) -> 0 | N88: =-MIN(MAX(Launatafla[[#This Row],[Laun með bótum án skerðingar]]-Hámarkslaun,0),Launatafla[[#This Row],[Atvinnuleysisbætur fyrir skerðingu]]) -> -39482.8 | O88: =+MIN(Launatafla[[#This Row],[Skerðing v/ hámarkshlutfalls]:[Skerðing v/ hámarkslauna]]) -> -39482.8 | P88: =+IF(Launatafla[[#This Row],[Atvinnuleysisbætur fyrir skerðingu]]=0,0, MAX(MIN(Lágmarkslaun_fullt_starf,Launatafla[[#This Row],[Meðal heildarlaun sl. 3M fyrir skatta]]/Launatafla[[#This Row],[Starfshlutfall fyrir]])*Launatafla[[#This Row],[Starfshlutfall fyrir]]-(Launatafla[[#This Row],[Laun frá launagreiðanda]]+Launatafla[[#This Row],[Atvinnuleysisbætur fyrir skerðingu]]+Launatafla[[#This Row],[Skerðing v/ samtals]]),0)) -> 0 | Q88: =+Launatafla[[#This Row],[Atvinnuleysisbætur fyrir skerðingu]]+Launatafla[[#This Row],[Skerðing v/ samtals]]+Launatafla[[#This Row],[Viðbót v/ tryggðra lágmarkslauna]] -> 280000 | R88: =+Launatafla[[#This Row],[Laun frá launagreiðanda]]+Launatafla[[#This Row],[Laun frá ríkissjóði]] -> 700000 | S88: =IFERROR(Launatafla[[#This Row],[Heildarlaun]]/Launatafla[[#This Row],[Meðal heildarlaun sl. 3M fyrir skatta]],0) -> 0.5
E89: Starfsmaður 84 | F89: 1400000 | G89: 1 | H89: 0.75 | I89: =+Launatafla[[#This Row],[Starfshlutfall fyrir]]-Launatafla[[#This Row],[Skerðing starfshlutfalls]] -> 0.25 | J89: =+IF(OR(Launatafla[[#This Row],[Skerðing starfshlutfalls]]>Hámarkslækkun_starfshl,Launatafla[[#This Row],[Skerðing starfshlutfalls]]<Lágmarkslækkun_starfshl),0,Atvinnuleysisbætur*Launatafla[[#This Row],[Skerðing starfshlutfalls]]) -> 342303 | K89: =IFERROR(Launatafla[[#This Row],[Meðal heildarlaun sl. 3M fyrir skatta]]/Launatafla[[#This Row],[Starfshlutfall fyrir]],0)*(Launatafla[[#This Row],[Starfshlutfall fyrir]]-Launatafla[[#This Row],[Skerðing starfshlutfalls]]) -> 350000 | L89: =+Launatafla[[#This Row],[Atvinnuleysisbætur fyrir skerðingu]]+Launatafla[[#This Row],[Laun frá launagreiðanda]] -> 692303 | M89: =-MAX(Launatafla[[#This Row],[Laun með bótum án skerðingar]]-Launatafla[[#This Row],[Meðal heildarlaun sl. 3M fyrir skatta]]*Hámarkshlutfall_af_launum,0) -> 0 | N89: =-MIN(MAX(Launatafla[[#This Row],[Laun með bótum án skerðingar]]-Hámarkslaun,0),Launatafla[[#This Row],[Atvinnuleysisbætur fyrir skerðingu]]) -> 0 | O89: =+MIN(Launatafla[[#This Row],[Skerðing v/ hámarkshlutfalls]:[Skerðing v/ hámarkslauna]]) -> 0 | P89: =+IF(Launatafla[[#This Row],[Atvinnuleysisbætur fyrir skerðingu]]=0,0, MAX(MIN(Lágmarkslaun_fullt_starf,Launatafla[[#This Row],[Meðal heildarlaun sl. 3M fyrir skatta]]/Launatafla[[#This Row],[Starfshlutfall fyrir]])*Launatafla[[#This Row],[Starfshlutfall fyrir]]-(Launatafla[[#This Row],[Laun frá launagreiðanda]]+Launatafla[[#This Row],[Atvinnuleysisbætur fyrir skerðingu]]+Launatafla[[#This Row],[Skerðing v/ samtals]]),0)) -> 0 | Q89: =+Launatafla[[#This Row],[Atvinnuleysisbætur fyrir skerðingu]]+Launatafla[[#This Row],[Skerðing v/ samtals]]+Launatafla[[#This Row],[Viðbót v/ tryggðra lágmarkslauna]] -> 342303 | R89: =+Launatafla[[#This Row],[Laun frá launagreiðanda]]+Launatafla[[#This Row],[Laun frá ríkissjóði]] -> 692303 | S89: =IFERROR(Launatafla[[#This Row],[Heildarlaun]]/Launatafla[[#This Row],[Meðal heildarlaun sl. 3M fyrir skatta]],0) -> 0.4945021429
I90: =+Launatafla[[#This Row],[Starfshlutfall fyrir]]-Launatafla[[#This Row],[Skerðing starfshlutfalls]] -> 0 | J90: =+IF(OR(Launatafla[[#This Row],[Skerðing starfshlutfalls]]>Hámarkslækkun_starfshl,Launatafla[[#This Row],[Skerðing starfshlutfalls]]<Lágmarkslækkun_starfshl),0,Atvinnuleysisbætur*Launatafla[[#This Row],[Skerðing starfshlutfalls]]) -> 0 | K90: =IFERROR(Launatafla[[#This Row],[Meðal heildarlaun sl. 3M fyrir skatta]]/Launatafla[[#This Row],[Starfshlutfall fyrir]],0)*(Launatafla[[#This Row],[Starfshlutfall fyrir]]-Launatafla[[#This Row],[Skerðing starfshlutfalls]]) -> 0 | L90: =+Launatafla[[#This Row],[Atvinnuleysisbætur fyrir skerðingu]]+Launatafla[[#This Row],[Laun frá launagreiðanda]] -> 0 | M90: =-MAX(Launatafla[[#This Row],[Laun með bótum án skerðingar]]-Launatafla[[#This Row],[Meðal heildarlaun sl. 3M fyrir skatta]]*Hámarkshlutfall_af_launum,0) -> 0 | N90: =-MIN(MAX(Launatafla[[#This Row],[Laun með bótum án skerðingar]]-Hámarkslaun,0),Launatafla[[#This Row],[Atvinnuleysisbætur fyrir skerðingu]]) -> 0 | O90: =+MIN(Launatafla[[#This Row],[Skerðing v/ hámarkshlutfalls]:[Skerðing v/ hámarkslauna]]) -> 0 | P90: =+IF(Launatafla[[#This Row],[Atvinnuleysisbætur fyrir skerðingu]]=0,0, MAX(MIN(Lágmarkslaun_fullt_starf,Launatafla[[#This Row],[Meðal heildarlaun sl. 3M fyrir skatta]]/Launatafla[[#This Row],[Starfshlutfall fyrir]])*Launatafla[[#This Row],[Starfshlutfall fyrir]]-(Launatafla[[#This Row],[Laun frá launagreiðanda]]+Launatafla[[#This Row],[Atvinnuleysisbætur fyrir skerðingu]]+Launatafla[[#This Row],[Skerðing v/ samtals]]),0)) -> 0 | Q90: =+Launatafla[[#This Row],[Atvinnuleysisbætur fyrir skerðingu]]+Launatafla[[#This Row],[Skerðing v/ samtals]]+Launatafla[[#This Row],[Viðbót v/ tryggðra lágmarkslauna]] -> 0 | R90: =+Launatafla[[#This Row],[Laun frá launagreiðanda]]+Launatafla[[#This Row],[Laun frá ríkissjóði]] -> 0 | S90: =IFERROR(Launatafla[[#This Row],[Heildarlaun]]/Launatafla[[#This Row],[Meðal heildarlaun sl. 3M fyrir skatta]],0) -> 0
I91: =+Launatafla[[#This Row],[Starfshlutfall fyrir]]-Launatafla[[#This Row],[Skerðing starfshlutfalls]] -> 0 | J91: =+IF(OR(Launatafla[[#This Row],[Skerðing starfshlutfalls]]>Hámarkslækkun_starfshl,Launatafla[[#This Row],[Skerðing starfshlutfalls]]<Lágmarkslækkun_starfshl),0,Atvinnuleysisbætur*Launatafla[[#This Row],[Skerðing starfshlutfalls]]) -> 0 | K91: =IFERROR(Launatafla[[#This Row],[Meðal heildarlaun sl. 3M fyrir skatta]]/Launatafla[[#This Row],[Starfshlutfall fyrir]],0)*(Launatafla[[#This Row],[Starfshlutfall fyrir]]-Launatafla[[#This Row],[Skerðing starfshlutfalls]]) -> 0 | L91: =+Launatafla[[#This Row],[Atvinnuleysisbætur fyrir skerðingu]]+Launatafla[[#This Row],[Laun frá launagreiðanda]] -> 0 | M91: =-MAX(Launatafla[[#This Row],[Laun með bótum án skerðingar]]-Launatafla[[#This Row],[Meðal heildarlaun sl. 3M fyrir skatta]]*Hámarkshlutfall_af_launum,0) -> 0 | N91: =-MIN(MAX(Launatafla[[#This Row],[Laun með bótum án skerðingar]]-Hámarkslaun,0),Launatafla[[#This Row],[Atvinnuleysisbætur fyrir skerðingu]]) -> 0 | O91: =+MIN(Launatafla[[#This Row],[Skerðing v/ hámarkshlutfalls]:[Skerðing v/ hámarkslauna]]) -> 0 | P91: =+IF(Launatafla[[#This Row],[Atvinnuleysisbætur fyrir skerðingu]]=0,0, MAX(MIN(Lágmarkslaun_fullt_starf,Launatafla[[#This Row],[Meðal heildarlaun sl. 3M fyrir skatta]]/Launatafla[[#This Row],[Starfshlutfall fyrir]])*Launatafla[[#This Row],[Starfshlutfall fyrir]]-(Launatafla[[#This Row],[Laun frá launagreiðanda]]+Launatafla[[#This Row],[Atvinnuleysisbætur fyrir skerðingu]]+Launatafla[[#This Row],[Skerðing v/ samtals]]),0)) -> 0 | Q91: =+Launatafla[[#This Row],[Atvinnuleysisbætur fyrir skerðingu]]+Launatafla[[#This Row],[Skerðing v/ samtals]]+Launatafla[[#This Row],[Viðbót v/ tryggðra lágmarkslauna]] -> 0 | R91: =+Launatafla[[#This Row],[Laun frá launagreiðanda]]+Launatafla[[#This Row],[Laun frá ríkissjóði]] -> 0 | S91: =IFERROR(Launatafla[[#This Row],[Heildarlaun]]/Launatafla[[#This Row],[Meðal heildarlaun sl. 3M fyrir skatta]],0) -> 0
I92: =+Launatafla[[#This Row],[Starfshlutfall fyrir]]-Launatafla[[#This Row],[Skerðing starfshlutfalls]] -> 0 | J92: =+IF(OR(Launatafla[[#This Row],[Skerðing starfshlutfalls]]>Hámarkslækkun_starfshl,Launatafla[[#This Row],[Skerðing starfshlutfalls]]<Lágmarkslækkun_starfshl),0,Atvinnuleysisbætur*Launatafla[[#This Row],[Skerðing starfshlutfalls]]) -> 0 | K92: =IFERROR(Launatafla[[#This Row],[Meðal heildarlaun sl. 3M fyrir skatta]]/Launatafla[[#This Row],[Starfshlutfall fyrir]],0)*(Launatafla[[#This Row],[Starfshlutfall fyrir]]-Launatafla[[#This Row],[Skerðing starfshlutfalls]]) -> 0 | L92: =+Launatafla[[#This Row],[Atvinnuleysisbætur fyrir skerðingu]]+Launatafla[[#This Row],[Laun frá launagreiðanda]] -> 0 | M92: =-MAX(Launatafla[[#This Row],[Laun með bótum án skerðingar]]-Launatafla[[#This Row],[Meðal heildarlaun sl. 3M fyrir skatta]]*Hámarkshlutfall_af_launum,0) -> 0 | N92: =-MIN(MAX(Launatafla[[#This Row],[Laun með bótum án skerðingar]]-Hámarkslaun,0),Launatafla[[#This Row],[Atvinnuleysisbætur fyrir skerðingu]]) -> 0 | O92: =+MIN(Launatafla[[#This Row],[Skerðing v/ hámarkshlutfalls]:[Skerðing v/ hámarkslauna]]) -> 0 | P92: =+IF(Launatafla[[#This Row],[Atvinnuleysisbætur fyrir skerðingu]]=0,0, MAX(MIN(Lágmarkslaun_fullt_starf,Launatafla[[#This Row],[Meðal heildarlaun sl. 3M fyrir skatta]]/Launatafla[[#This Row],[Starfshlutfall fyrir]])*Launatafla[[#This Row],[Starfshlutfall fyrir]]-(Launatafla[[#This Row],[Laun frá launagreiðanda]]+Launatafla[[#This Row],[Atvinnuleysisbætur fyrir skerðingu]]+Launatafla[[#This Row],[Skerðing v/ samtals]]),0)) -> 0 | Q92: =+Launatafla[[#This Row],[Atvinnuleysisbætur fyrir skerðingu]]+Launatafla[[#This Row],[Skerðing v/ samtals]]+Launatafla[[#This Row],[Viðbót v/ tryggðra lágmarkslauna]] -> 0 | R92: =+Launatafla[[#This Row],[Laun frá launagreiðanda]]+Launatafla[[#This Row],[Laun frá ríkissjóði]] -> 0 | S92: =IFERROR(Launatafla[[#This Row],[Heildarlaun]]/Launatafla[[#This Row],[Meðal heildarlaun sl. 3M fyrir skatta]],0) -> 0
I93: =+Launatafla[[#This Row],[Starfshlutfall fyrir]]-Launatafla[[#This Row],[Skerðing starfshlutfalls]] -> 0 | J93: =+IF(OR(Launatafla[[#This Row],[Skerðing starfshlutfalls]]>Hámarkslækkun_starfshl,Launatafla[[#This Row],[Skerðing starfshlutfalls]]<Lágmarkslækkun_starfshl),0,Atvinnuleysisbætur*Launatafla[[#This Row],[Skerðing starfshlutfalls]]) -> 0 | K93: =IFERROR(Launatafla[[#This Row],[Meðal heildarlaun sl. 3M fyrir skatta]]/Launatafla[[#This Row],[Starfshlutfall fyrir]],0)*(Launatafla[[#This Row],[Starfshlutfall fyrir]]-Launatafla[[#This Row],[Skerðing starfshlutfalls]]) -> 0 | L93: =+Launatafla[[#This Row],[Atvinnuleysisbætur fyrir skerðingu]]+Launatafla[[#This Row],[Laun frá launagreiðanda]] -> 0 | M93: =-MAX(Launatafla[[#This Row],[Laun með bótum án skerðingar]]-Launatafla[[#This Row],[Meðal heildarlaun sl. 3M fyrir skatta]]*Hámarkshlutfall_af_launum,0) -> 0 | N93: =-MIN(MAX(Launatafla[[#This Row],[Laun með bótum án skerðingar]]-Hámarkslaun,0),Launatafla[[#This Row],[Atvinnuleysisbætur fyrir skerðingu]]) -> 0 | O93: =+MIN(Launatafla[[#This Row],[Skerðing v/ hámarkshlutfalls]:[Skerðing v/ hámarkslauna]]) -> 0 | P93: =+IF(Launatafla[[#This Row],[Atvinnuleysisbætur fyrir skerðingu]]=0,0, MAX(MIN(Lágmarkslaun_fullt_starf,Launatafla[[#This Row],[Meðal heildarlaun sl. 3M fyrir skatta]]/Launatafla[[#This Row],[Starfshlutfall fyrir]])*Launatafla[[#This Row],[Starfshlutfall fyrir]]-(Launatafla[[#This Row],[Laun frá launagreiðanda]]+Launatafla[[#This Row],[Atvinnuleysisbætur fyrir skerðingu]]+Launatafla[[#This Row],[Skerðing v/ samtals]]),0)) -> 0 | Q93: =+Launatafla[[#This Row],[Atvinnuleysisbætur fyrir skerðingu]]+Launatafla[[#This Row],[Skerðing v/ samtals]]+Launatafla[[#This Row],[Viðbót v/ tryggðra lágmarkslauna]] -> 0 | R93: =+Launatafla[[#This Row],[Laun frá launagreiðanda]]+Launatafla[[#This Row],[Laun frá ríkissjóði]] -> 0 | S93: =IFERROR(Launatafla[[#This Row],[Heildarlaun]]/Launatafla[[#This Row],[Meðal heildarlaun sl. 3M fyrir skatta]],0) -> 0
I94: =+Launatafla[[#This Row],[Starfshlutfall fyrir]]-Launatafla[[#This Row],[Skerðing starfshlutfalls]] -> 0 | J94: =+IF(OR(Launatafla[[#This Row],[Skerðing starfshlutfalls]]>Hámarkslækkun_starfshl,Launatafla[[#This Row],[Skerðing starfshlutfalls]]<Lágmarkslækkun_starfshl),0,Atvinnuleysisbætur*Launatafla[[#This Row],[Skerðing starfshlutfalls]]) -> 0 | K94: =IFERROR(Launatafla[[#This Row],[Meðal heildarlaun sl. 3M fyrir skatta]]/Launatafla[[#This Row],[Starfshlutfall fyrir]],0)*(Launatafla[[#This Row],[Starfshlutfall fyrir]]-Launatafla[[#This Row],[Skerðing starfshlutfalls]]) -> 0 | L94: =+Launatafla[[#This Row],[Atvinnuleysisbætur fyrir skerðingu]]+Launatafla[[#This Row],[Laun frá launagreiðanda]] -> 0 | M94: =-MAX(Launatafla[[#This Row],[Laun með bótum án skerðingar]]-Launatafla[[#This Row],[Meðal heildarlaun sl. 3M fyrir skatta]]*Hámarkshlutfall_af_launum,0) -> 0 | N94: =-MIN(MAX(Launatafla[[#This Row],[Laun með bótum án skerðingar]]-Hámarkslaun,0),Launatafla[[#This Row],[Atvinnuleysisbætur fyrir skerðingu]]) -> 0 | O94: =+MIN(Launatafla[[#This Row],[Skerðing v/ hámarkshlutfalls]:[Skerðing v/ hámarkslauna]]) -> 0 | P94: =+IF(Launatafla[[#This Row],[Atvinnuleysisbætur fyrir skerðingu]]=0,0, MAX(MIN(Lágmarkslaun_fullt_starf,Launatafla[[#This Row],[Meðal heildarlaun sl. 3M fyrir skatta]]/Launatafla[[#This Row],[Starfshlutfall fyrir]])*Launatafla[[#This Row],[Starfshlutfall fyrir]]-(Launatafla[[#This Row],[Laun frá launagreiðanda]]+Launatafla[[#This Row],[Atvinnuleysisbætur fyrir skerðingu]]+Launatafla[[#This Row],[Skerðing v/ samtals]]),0)) -> 0 | Q94: =+Launatafla[[#This Row],[Atvinnuleysisbætur fyrir skerðingu]]+Launatafla[[#This Row],[Skerðing v/ samtals]]+Launatafla[[#This Row],[Viðbót v/ tryggðra lágmarkslauna]] -> 0 | R94: =+Launatafla[[#This Row],[Laun frá launagreiðanda]]+Launatafla[[#This Row],[Laun frá ríkissjóði]] -> 0 | S94: =IFERROR(Launatafla[[#This Row],[Heildarlaun]]/Launatafla[[#This Row],[Meðal heildarlaun sl. 3M fyrir skatta]],0) -> 0
I95: =+Launatafla[[#This Row],[Starfshlutfall fyrir]]-Launatafla[[#This Row],[Skerðing starfshlutfalls]] -> 0 | J95: =+IF(OR(Launatafla[[#This Row],[Skerðing starfshlutfalls]]>Hámarkslækkun_starfshl,Launatafla[[#This Row],[Skerðing starfshlutfalls]]<Lágmarkslækkun_starfshl),0,Atvinnuleysisbætur*Launatafla[[#This Row],[Skerðing starfshlutfalls]]) -> 0 | K95: =IFERROR(Launatafla[[#This Row],[Meðal heildarlaun sl. 3M fyrir skatta]]/Launatafla[[#This Row],[Starfshlutfall fyrir]],0)*(Launatafla[[#This Row],[Starfshlutfall fyrir]]-Launatafla[[#This Row],[Skerðing starfshlutfalls]]) -> 0 | L95: =+Launatafla[[#This Row],[Atvinnuleysisbætur fyrir skerðingu]]+Launatafla[[#This Row],[Laun frá launagreiðanda]] -> 0 | M95: =-MAX(Launatafla[[#This Row],[Laun með bótum án skerðingar]]-Launatafla[[#This Row],[Meðal heildarlaun sl. 3M fyrir skatta]]*Hámarkshlutfall_af_launum,0) -> 0 | N95: =-MIN(MAX(Launatafla[[#This Row],[Laun með bótum án skerðingar]]-Hámarkslaun,0),Launatafla[[#This Row],[Atvinnuleysisbætur fyrir skerðingu]]) -> 0 | O95: =+MIN(Launatafla[[#This Row],[Skerðing v/ hámarkshlutfalls]:[Skerðing v/ hámarkslauna]]) -> 0 | P95: =+IF(Launatafla[[#This Row],[Atvinnuleysisbætur fyrir skerðingu]]=0,0, MAX(MIN(Lágmarkslaun_fullt_starf,Launatafla[[#This Row],[Meðal heildarlaun sl. 3M fyrir skatta]]/Launatafla[[#This Row],[Starfshlutfall fyrir]])*Launatafla[[#This Row],[Starfshlutfall fyrir]]-(Launatafla[[#This Row],[Laun frá launagreiðanda]]+Launatafla[[#This Row],[Atvinnuleysisbætur fyrir skerðingu]]+Launatafla[[#This Row],[Skerðing v/ samtals]]),0)) -> 0 | Q95: =+Launatafla[[#This Row],[Atvinnuleysisbætur fyrir skerðingu]]+Launatafla[[#This Row],[Skerðing v/ samtals]]+Launatafla[[#This Row],[Viðbót v/ tryggðra lágmarkslauna]] -> 0 | R95: =+Launatafla[[#This Row],[Laun frá launagreiðanda]]+Launatafla[[#This Row],[Laun frá ríkissjóði]] -> 0 | S95: =IFERROR(Launatafla[[#This Row],[Heildarlaun]]/Launatafla[[#This Row],[Meðal heildarlaun sl. 3M fyrir skatta]],0) -> 0
I96: =+Launatafla[[#This Row],[Starfshlutfall fyrir]]-Launatafla[[#This Row],[Skerðing starfshlutfalls]] -> 0 | J96: =+IF(OR(Launatafla[[#This Row],[Skerðing starfshlutfalls]]>Hámarkslækkun_starfshl,Launatafla[[#This Row],[Skerðing starfshlutfalls]]<Lágmarkslækkun_starfshl),0,Atvinnuleysisbætur*Launatafla[[#This Row],[Skerðing starfshlutfalls]]) -> 0 | K96: =IFERROR(Launatafla[[#This Row],[Meðal heildarlaun sl. 3M fyrir skatta]]/Launatafla[[#This Row],[Starfshlutfall fyrir]],0)*(Launatafla[[#This Row],[Starfshlutfall fyrir]]-Launatafla[[#This Row],[Skerðing starfshlutfalls]]) -> 0 | L96: =+Launatafla[[#This Row],[Atvinnuleysisbætur fyrir skerðingu]]+Launatafla[[#This Row],[Laun frá launagreiðanda]] -> 0 | M96: =-MAX(Launatafla[[#This Row],[Laun með bótum án skerðingar]]-Launatafla[[#This Row],[Meðal heildarlaun sl. 3M fyrir skatta]]*Hámarkshlutfall_af_launum,0) -> 0 | N96: =-MIN(MAX(Launatafla[[#This Row],[Laun með bótum án skerðingar]]-Hámarkslaun,0),Launatafla[[#This Row],[Atvinnuleysisbætur fyrir skerðingu]]) -> 0 | O96: =+MIN(Launatafla[[#This Row],[Skerðing v/ hámarkshlutfalls]:[Skerðing v/ hámarkslauna]]) -> 0 | P96: =+IF(Launatafla[[#This Row],[Atvinnuleysisbætur fyrir skerðingu]]=0,0, MAX(MIN(Lágmarkslaun_fullt_starf,Launatafla[[#This Row],[Meðal heildarlaun sl. 3M fyrir skatta]]/Launatafla[[#This Row],[Starfshlutfall fyrir]])*Launatafla[[#This Row],[Starfshlutfall fyrir]]-(Launatafla[[#This Row],[Laun frá launagreiðanda]]+Launatafla[[#This Row],[Atvinnuleysisbætur fyrir skerðingu]]+Launatafla[[#This Row],[Skerðing v/ samtals]]),0)) -> 0 | Q96: =+Launatafla[[#This Row],[Atvinnuleysisbætur fyrir skerðingu]]+Launatafla[[#This Row],[Skerðing v/ samtals]]+Launatafla[[#This Row],[Viðbót v/ tryggðra lágmarkslauna]] -> 0 | R96: =+Launatafla[[#This Row],[Laun frá launagreiðanda]]+Launatafla[[#This Row],[Laun frá ríkissjóði]] -> 0 | S96: =IFERROR(Launatafla[[#This Row],[Heildarlaun]]/Launatafla[[#This Row],[Meðal heildarlaun sl. 3M fyrir skatta]],0) -> 0
I97: =+Launatafla[[#This Row],[Starfshlutfall fyrir]]-Launatafla[[#This Row],[Skerðing starfshlutfalls]] -> 0 | J97: =+IF(OR(Launatafla[[#This Row],[Skerðing starfshlutfalls]]>Hámarkslækkun_starfshl,Launatafla[[#This Row],[Skerðing starfshlutfalls]]<Lágmarkslækkun_starfshl),0,Atvinnuleysisbætur*Launatafla[[#This Row],[Skerðing starfshlutfalls]]) -> 0 | K97: =IFERROR(Launatafla[[#This Row],[Meðal heildarlaun sl. 3M fyrir skatta]]/Launatafla[[#This Row],[Starfshlutfall fyrir]],0)*(Launatafla[[#This Row],[Starfshlutfall fyrir]]-Launatafla[[#This Row],[Skerðing starfshlutfalls]]) -> 0 | L97: =+Launatafla[[#This Row],[Atvinnuleysisbætur fyrir skerðingu]]+Launatafla[[#This Row],[Laun frá launagreiðanda]] -> 0 | M97: =-MAX(Launatafla[[#This Row],[Laun með bótum án skerðingar]]-Launatafla[[#This Row],[Meðal heildarlaun sl. 3M fyrir skatta]]*Hámarkshlutfall_af_launum,0) -> 0 | N97: =-MIN(MAX(Launatafla[[#This Row],[Laun með bótum án skerðingar]]-Hámarkslaun,0),Launatafla[[#This Row],[Atvinnuleysisbætur fyrir skerðingu]]) -> 0 | O97: =+MIN(Launatafla[[#This Row],[Skerðing v/ hámarkshlutfalls]:[Skerðing v/ hámarkslauna]]) -> 0 | P97: =+IF(Launatafla[[#This Row],[Atvinnuleysisbætur fyrir skerðingu]]=0,0, MAX(MIN(Lágmarkslaun_fullt_starf,Launatafla[[#This Row],[Meðal heildarlaun sl. 3M fyrir skatta]]/Launatafla[[#This Row],[Starfshlutfall fyrir]])*Launatafla[[#This Row],[Starfshlutfall fyrir]]-(Launatafla[[#This Row],[Laun frá launagreiðanda]]+Launatafla[[#This Row],[Atvinnuleysisbætur fyrir skerðingu]]+Launatafla[[#This Row],[Skerðing v/ samtals]]),0)) -> 0 | Q97: =+Launatafla[[#This Row],[Atvinnuleysisbætur fyrir skerðingu]]+Launatafla[[#This Row],[Skerðing v/ samtals]]+Launatafla[[#This Row],[Viðbót v/ tryggðra lágmarkslauna]] -> 0 | R97: =+Launatafla[[#This Row],[Laun frá launagreiðanda]]+Launatafla[[#This Row],[Laun frá ríkissjóði]] -> 0 | S97: =IFERROR(Launatafla[[#This Row],[Heildarlaun]]/Launatafla[[#This Row],[Meðal heildarlaun sl. 3M fyrir skatta]],0) -> 0
I98: =+Launatafla[[#This Row],[Starfshlutfall fyrir]]-Launatafla[[#This Row],[Skerðing starfshlutfalls]] -> 0 | J98: =+IF(OR(Launatafla[[#This Row],[Skerðing starfshlutfalls]]>Hámarkslækkun_starfshl,Launatafla[[#This Row],[Skerðing starfshlutfalls]]<Lágmarkslækkun_starfshl),0,Atvinnuleysisbætur*Launatafla[[#This Row],[Skerðing starfshlutfalls]]) -> 0 | K98: =IFERROR(Launatafla[[#This Row],[Meðal heildarlaun sl. 3M fyrir skatta]]/Launatafla[[#This Row],[Starfshlutfall fyrir]],0)*(Launatafla[[#This Row],[Starfshlutfall fyrir]]-Launatafla[[#This Row],[Skerðing starfshlutfalls]]) -> 0 | L98: =+Launatafla[[#This Row],[Atvinnuleysisbætur fyrir skerðingu]]+Launatafla[[#This Row],[Laun frá launagreiðanda]] -> 0 | M98: =-MAX(Launatafla[[#This Row],[Laun með bótum án skerðingar]]-Launatafla[[#This Row],[Meðal heildarlaun sl. 3M fyrir skatta]]*Hámarkshlutfall_af_launum,0) -> 0 | N98: =-MIN(MAX(Launatafla[[#This Row],[Laun með bótum án skerðingar]]-Hámarkslaun,0),Launatafla[[#This Row],[Atvinnuleysisbætur fyrir skerðingu]]) -> 0 | O98: =+MIN(Launatafla[[#This Row],[Skerðing v/ hámarkshlutfalls]:[Skerðing v/ hámarkslauna]]) -> 0 | P98: =+IF(Launatafla[[#This Row],[Atvinnuleysisbætur fyrir skerðingu]]=0,0, MAX(MIN(Lágmarkslaun_fullt_starf,Launatafla[[#This Row],[Meðal heildarlaun sl. 3M fyrir skatta]]/Launatafla[[#This Row],[Starfshlutfall fyrir]])*Launatafla[[#This Row],[Starfshlutfall fyrir]]-(Launatafla[[#This Row],[Laun frá launagreiðanda]]+Launatafla[[#This Row],[Atvinnuleysisbætur fyrir skerðingu]]+Launatafla[[#This Row],[Skerðing v/ samtals]]),0)) -> 0 | Q98: =+Launatafla[[#This Row],[Atvinnuleysisbætur fyrir skerðingu]]+Launatafla[[#This Row],[Skerðing v/ samtals]]+Launatafla[[#This Row],[Viðbót v/ tryggðra lágmarkslauna]] -> 0 | R98: =+Launatafla[[#This Row],[Laun frá launagreiðanda]]+Launatafla[[#This Row],[Laun frá ríkissjóði]] -> 0 | S98: =IFERROR(Launatafla[[#This Row],[Heildarlaun]]/Launatafla[[#This Row],[Meðal heildarlaun sl. 3M fyrir skatta]],0) -> 0
I99: =+Launatafla[[#This Row],[Starfshlutfall fyrir]]-Launatafla[[#This Row],[Skerðing starfshlutfalls]] -> 0 | J99: =+IF(OR(Launatafla[[#This Row],[Skerðing starfshlutfalls]]>Hámarkslækkun_starfshl,Launatafla[[#This Row],[Skerðing starfshlutfalls]]<Lágmarkslækkun_starfshl),0,Atvinnuleysisbætur*Launatafla[[#This Row],[Skerðing starfshlutfalls]]) -> 0 | K99: =IFERROR(Launatafla[[#This Row],[Meðal heildarlaun sl. 3M fyrir skatta]]/Launatafla[[#This Row],[Starfshlutfall fyrir]],0)*(Launatafla[[#This Row],[Starfshlutfall fyrir]]-Launatafla[[#This Row],[Skerðing starfshlutfalls]]) -> 0 | L99: =+Launatafla[[#This Row],[Atvinnuleysisbætur fyrir skerðingu]]+Launatafla[[#This Row],[Laun frá launagreiðanda]] -> 0 | M99: =-MAX(Launatafla[[#This Row],[Laun með bótum án skerðingar]]-Launatafla[[#This Row],[Meðal heildarlaun sl. 3M fyrir skatta]]*Hámarkshlutfall_af_launum,0) -> 0 | N99: =-MIN(MAX(Launatafla[[#This Row],[Laun með bótum án skerðingar]]-Hámarkslaun,0),Launatafla[[#This Row],[Atvinnuleysisbætur fyrir skerðingu]]) -> 0 | O99: =+MIN(Launatafla[[#This Row],[Skerðing v/ hámarkshlutfalls]:[Skerðing v/ hámarkslauna]]) -> 0 | P99: =+IF(Launatafla[[#This Row],[Atvinnuleysisbætur fyrir skerðingu]]=0,0, MAX(MIN(Lágmarkslaun_fullt_starf,Launatafla[[#This Row],[Meðal heildarlaun sl. 3M fyrir skatta]]/Launatafla[[#This Row],[Starfshlutfall fyrir]])*Launatafla[[#This Row],[Starfshlutfall fyrir]]-(Launatafla[[#This Row],[Laun frá launagreiðanda]]+Launatafla[[#This Row],[Atvinnuleysisbætur fyrir skerðingu]]+Launatafla[[#This Row],[Skerðing v/ samtals]]),0)) -> 0 | Q99: =+Launatafla[[#This Row],[Atvinnuleysisbætur fyrir skerðingu]]+Launatafla[[#This Row],[Skerðing v/ samtals]]+Launatafla[[#This Row],[Viðbót v/ tryggðra lágmarkslauna]] -> 0 | R99: =+Launatafla[[#This Row],[Laun frá launagreiðanda]]+Launatafla[[#This Row],[Laun frá ríkissjóði]] -> 0 | S99: =IFERROR(Launatafla[[#This Row],[Heildarlaun]]/Launatafla[[#This Row],[Meðal heildarlaun sl. 3M fyrir skatta]],0) -> 0
I100: =+Launatafla[[#This Row],[Starfshlutfall fyrir]]-Launatafla[[#This Row],[Skerðing starfshlutfalls]] -> 0 | J100: =+IF(OR(Launatafla[[#This Row],[Skerðing starfshlutfalls]]>Hámarkslækkun_starfshl,Launatafla[[#This Row],[Skerðing starfshlutfalls]]<Lágmarkslækkun_starfshl),0,Atvinnuleysisbætur*Launatafla[[#This Row],[Skerðing starfshlutfalls]]) -> 0 | K100: =IFERROR(Launatafla[[#This Row],[Meðal heildarlaun sl. 3M fyrir skatta]]/Launatafla[[#This Row],[Starfshlutfall fyrir]],0)*(Launatafla[[#This Row],[Starfshlutfall fyrir]]-Launatafla[[#This Row],[Skerðing starfshlutfalls]]) -> 0 | L100: =+Launatafla[[#This Row],[Atvinnuleysisbætur fyrir skerðingu]]+Launatafla[[#This Row],[Laun frá launagreiðanda]] -> 0 | M100: =-MAX(Launatafla[[#This Row],[Laun með bótum án skerðingar]]-Launatafla[[#This Row],[Meðal heildarlaun sl. 3M fyrir skatta]]*Hámarkshlutfall_af_launum,0) -> 0 | N100: =-MIN(MAX(Launatafla[[#This Row],[Laun með bótum án skerðingar]]-Hámarkslaun,0),Launatafla[[#This Row],[Atvinnuleysisbætur fyrir skerðingu]]) -> 0 | O100: =+MIN(Launatafla[[#This Row],[Skerðing v/ hámarkshlutfalls]:[Skerðing v/ hámarkslauna]]) -> 0 | P100: =+IF(Launatafla[[#This Row],[Atvinnuleysisbætur fyrir skerðingu]]=0,0, MAX(MIN(Lágmarkslaun_fullt_starf,Launatafla[[#This Row],[Meðal heildarlaun sl. 3M fyrir skatta]]/Launatafla[[#This Row],[Starfshlutfall fyrir]])*Launatafla[[#This Row],[Starfshlutfall fyrir]]-(Launatafla[[#This Row],[Laun frá launagreiðanda]]+Launatafla[[#This Row],[Atvinnuleysisbætur fyrir skerðingu]]+Launatafla[[#This Row],[Skerðing v/ samtals]]),0)) -> 0 | Q100: =+Launatafla[[#This Row],[Atvinnuleysisbætur fyrir skerðingu]]+Launatafla[[#This Row],[Skerðing v/ samtals]]+Launatafla[[#This Row],[Viðbót v/ tryggðra lágmarkslauna]] -> 0 | R100: =+Launatafla[[#This Row],[Laun frá launagreiðanda]]+Launatafla[[#This Row],[Laun frá ríkissjóði]] -> 0 | S100: =IFERROR(Launatafla[[#This Row],[Heildarlaun]]/Launatafla[[#This Row],[Meðal heildarlaun sl. 3M fyrir skatta]],0) -> 0
I101: =+Launatafla[[#This Row],[Starfshlutfall fyrir]]-Launatafla[[#This Row],[Skerðing starfshlutfalls]] -> 0 | J101: =+IF(OR(Launatafla[[#This Row],[Skerðing starfshlutfalls]]>Hámarkslækkun_starfshl,Launatafla[[#This Row],[Skerðing starfshlutfalls]]<Lágmarkslækkun_starfshl),0,Atvinnuleysisbætur*Launatafla[[#This Row],[Skerðing starfshlutfalls]]) -> 0 | K101: =IFERROR(Launatafla[[#This Row],[Meðal heildarlaun sl. 3M fyrir skatta]]/Launatafla[[#This Row],[Starfshlutfall fyrir]],0)*(Launatafla[[#This Row],[Starfshlutfall fyrir]]-Launatafla[[#This Row],[Skerðing starfshlutfalls]]) -> 0 | L101: =+Launatafla[[#This Row],[Atvinnuleysisbætur fyrir skerðingu]]+Launatafla[[#This Row],[Laun frá launagreiðanda]] -> 0 | M101: =-MAX(Launatafla[[#This Row],[Laun með bótum án skerðingar]]-Launatafla[[#This Row],[Meðal heildarlaun sl. 3M fyrir skatta]]*Hámarkshlutfall_af_launum,0) -> 0 | N101: =-MIN(MAX(Launatafla[[#This Row],[Laun með bótum án skerðingar]]-Hámarkslaun,0),Launatafla[[#This Row],[Atvinnuleysisbætur fyrir skerðingu]]) -> 0 | O101: =+MIN(Launatafla[[#This Row],[Skerðing v/ hámarkshlutfalls]:[Skerðing v/ hámarkslauna]]) -> 0 | P101: =+IF(Launatafla[[#This Row],[Atvinnuleysisbætur fyrir skerðingu]]=0,0, MAX(MIN(Lágmarkslaun_fullt_starf,Launatafla[[#This Row],[Meðal heildarlaun sl. 3M fyrir skatta]]/Launatafla[[#This Row],[Starfshlutfall fyrir]])*Launatafla[[#This Row],[Starfshlutfall fyrir]]-(Launatafla[[#This Row],[Laun frá launagreiðanda]]+Launatafla[[#This Row],[Atvinnuleysisbætur fyrir skerðingu]]+Launatafla[[#This Row],[Skerðing v/ samtals]]),0)) -> 0 | Q101: =+Launatafla[[#This Row],[Atvinnuleysisbætur fyrir skerðingu]]+Launatafla[[#This Row],[Skerðing v/ samtals]]+Launatafla[[#This Row],[Viðbót v/ tryggðra lágmarkslauna]] -> 0 | R101: =+Launatafla[[#This Row],[Laun frá launagreiðanda]]+Launatafla[[#This Row],[Laun frá ríkissjóði]] -> 0 | S101: =IFERROR(Launatafla[[#This Row],[Heildarlaun]]/Launatafla[[#This Row],[Meðal heildarlaun sl. 3M fyrir skatta]],0) -> 0
I102: =+Launatafla[[#This Row],[Starfshlutfall fyrir]]-Launatafla[[#This Row],[Skerðing starfshlutfalls]] -> 0 | J102: =+IF(OR(Launatafla[[#This Row],[Skerðing starfshlutfalls]]>Hámarkslækkun_starfshl,Launatafla[[#This Row],[Skerðing starfshlutfalls]]<Lágmarkslækkun_starfshl),0,Atvinnuleysisbætur*Launatafla[[#This Row],[Skerðing starfshlutfalls]]) -> 0 | K102: =IFERROR(Launatafla[[#This Row],[Meðal heildarlaun sl. 3M fyrir skatta]]/Launatafla[[#This Row],[Starfshlutfall fyrir]],0)*(Launatafla[[#This Row],[Starfshlutfall fyrir]]-Launatafla[[#This Row],[Skerðing starfshlutfalls]]) -> 0 | L102: =+Launatafla[[#This Row],[Atvinnuleysisbætur fyrir skerðingu]]+Launatafla[[#This Row],[Laun frá launagreiðanda]] -> 0 | M102: =-MAX(Launatafla[[#This Row],[Laun með bótum án skerðingar]]-Launatafla[[#This Row],[Meðal heildarlaun sl. 3M fyrir skatta]]*Hámarkshlutfall_af_launum,0) -> 0 | N102: =-MIN(MAX(Launatafla[[#This Row],[Laun með bótum án skerðingar]]-Hámarkslaun,0),Launatafla[[#This Row],[Atvinnuleysisbætur fyrir skerðingu]]) -> 0 | O102: =+MIN(Launatafla[[#This Row],[Skerðing v/ hámarkshlutfalls]:[Skerðing v/ hámarkslauna]]) -> 0 | P102: =+IF(Launatafla[[#This Row],[Atvinnuleysisbætur fyrir skerðingu]]=0,0, MAX(MIN(Lágmarkslaun_fullt_starf,Launatafla[[#This Row],[Meðal heildarlaun sl. 3M fyrir skatta]]/Launatafla[[#This Row],[Starfshlutfall fyrir]])*Launatafla[[#This Row],[Starfshlutfall fyrir]]-(Launatafla[[#This Row],[Laun frá launagreiðanda]]+Launatafla[[#This Row],[Atvinnuleysisbætur fyrir skerðingu]]+Launatafla[[#This Row],[Skerðing v/ samtals]]),0)) -> 0 | Q102: =+Launatafla[[#This Row],[Atvinnuleysisbætur fyrir skerðingu]]+Launatafla[[#This Row],[Skerðing v/ samtals]]+Launatafla[[#This Row],[Viðbót v/ tryggðra lágmarkslauna]] -> 0 | R102: =+Launatafla[[#This Row],[Laun frá launagreiðanda]]+Launatafla[[#This Row],[Laun frá ríkissjóði]] -> 0 | S102: =IFERROR(Launatafla[[#This Row],[Heildarlaun]]/Launatafla[[#This Row],[Meðal heildarlaun sl. 3M fyrir skatta]],0) -> 0
I103: =+Launatafla[[#This Row],[Starfshlutfall fyrir]]-Launatafla[[#This Row],[Skerðing starfshlutfalls]] -> 0 | J103: =+IF(OR(Launatafla[[#This Row],[Skerðing starfshlutfalls]]>Hámarkslækkun_starfshl,Launatafla[[#This Row],[Skerðing starfshlutfalls]]<Lágmarkslækkun_starfshl),0,Atvinnuleysisbætur*Launatafla[[#This Row],[Skerðing starfshlutfalls]]) -> 0 | K103: =IFERROR(Launatafla[[#This Row],[Meðal heildarlaun sl. 3M fyrir skatta]]/Launatafla[[#This Row],[Starfshlutfall fyrir]],0)*(Launatafla[[#This Row],[Starfshlutfall fyrir]]-Launatafla[[#This Row],[Skerðing starfshlutfalls]]) -> 0 | L103: =+Launatafla[[#This Row],[Atvinnuleysisbætur fyrir skerðingu]]+Launatafla[[#This Row],[Laun frá launagreiðanda]] -> 0 | M103: =-MAX(Launatafla[[#This Row],[Laun með bótum án skerðingar]]-Launatafla[[#This Row],[Meðal heildarlaun sl. 3M fyrir skatta]]*Hámarkshlutfall_af_launum,0) -> 0 | N103: =-MIN(MAX(Launatafla[[#This Row],[Laun með bótum án skerðingar]]-Hámarkslaun,0),Launatafla[[#This Row],[Atvinnuleysisbætur fyrir skerðingu]]) -> 0 | O103: =+MIN(Launatafla[[#This Row],[Skerðing v/ hámarkshlutfalls]:[Skerðing v/ hámarkslauna]]) -> 0 | P103: =+IF(Launatafla[[#This Row],[Atvinnuleysisbætur fyrir skerðingu]]=0,0, MAX(MIN(Lágmarkslaun_fullt_starf,Launatafla[[#This Row],[Meðal heildarlaun sl. 3M fyrir skatta]]/Launatafla[[#This Row],[Starfshlutfall fyrir]])*Launatafla[[#This Row],[Starfshlutfall fyrir]]-(Launatafla[[#This Row],[Laun frá launagreiðanda]]+Launatafla[[#This Row],[Atvinnuleysisbætur fyrir skerðingu]]+Launatafla[[#This Row],[Skerðing v/ samtals]]),0)) -> 0 | Q103: =+Launatafla[[#This Row],[Atvinnuleysisbætur fyrir skerðingu]]+Launatafla[[#This Row],[Skerðing v/ samtals]]+Launatafla[[#This Row],[Viðbót v/ tryggðra lágmarkslauna]] -> 0 | R103: =+Launatafla[[#This Row],[Laun frá launagreiðanda]]+Launatafla[[#This Row],[Laun frá ríkissjóði]] -> 0 | S103: =IFERROR(Launatafla[[#This Row],[Heildarlaun]]/Launatafla[[#This Row],[Meðal heildarlaun sl. 3M fyrir skatta]],0) -> 0
I104: =+Launatafla[[#This Row],[Starfshlutfall fyrir]]-Launatafla[[#This Row],[Skerðing starfshlutfalls]] -> 0 | J104: =+IF(OR(Launatafla[[#This Row],[Skerðing starfshlutfalls]]>Hámarkslækkun_starfshl,Launatafla[[#This Row],[Skerðing starfshlutfalls]]<Lágmarkslækkun_starfshl),0,Atvinnuleysisbætur*Launatafla[[#This Row],[Skerðing starfshlutfalls]]) -> 0 | K104: =IFERROR(Launatafla[[#This Row],[Meðal heildarlaun sl. 3M fyrir skatta]]/Launatafla[[#This Row],[Starfshlutfall fyrir]],0)*(Launatafla[[#This Row],[Starfshlutfall fyrir]]-Launatafla[[#This Row],[Skerðing starfshlutfalls]]) -> 0 | L104: =+Launatafla[[#This Row],[Atvinnuleysisbætur fyrir skerðingu]]+Launatafla[[#This Row],[Laun frá launagreiðanda]] -> 0 | M104: =-MAX(Launatafla[[#This Row],[Laun með bótum án skerðingar]]-Launatafla[[#This Row],[Meðal heildarlaun sl. 3M fyrir skatta]]*Hámarkshlutfall_af_launum,0) -> 0 | N104: =-MIN(MAX(Launatafla[[#This Row],[Laun með bótum án skerðingar]]-Hámarkslaun,0),Launatafla[[#This Row],[Atvinnuleysisbætur fyrir skerðingu]]) -> 0 | O104: =+MIN(Launatafla[[#This Row],[Skerðing v/ hámarkshlutfalls]:[Skerðing v/ hámarkslauna]]) -> 0 | P104: =+IF(Launatafla[[#This Row],[Atvinnuleysisbætur fyrir skerðingu]]=0,0, MAX(MIN(Lágmarkslaun_fullt_starf,Launatafla[[#This Row],[Meðal heildarlaun sl. 3M fyrir skatta]]/Launatafla[[#This Row],[Starfshlutfall fyrir]])*Launatafla[[#This Row],[Starfshlutfall fyrir]]-(Launatafla[[#This Row],[Laun frá launagreiðanda]]+Launatafla[[#This Row],[Atvinnuleysisbætur fyrir skerðingu]]+Launatafla[[#This Row],[Skerðing v/ samtals]]),0)) -> 0 | Q104: =+Launatafla[[#This Row],[Atvinnuleysisbætur fyrir skerðingu]]+Launatafla[[#This Row],[Skerðing v/ samtals]]+Launatafla[[#This Row],[Viðbót v/ tryggðra lágmarkslauna]] -> 0 | R104: =+Launatafla[[#This Row],[Laun frá launagreiðanda]]+Launatafla[[#This Row],[Laun frá ríkissjóði]] -> 0 | S104: =IFERROR(Launatafla[[#This Row],[Heildarlaun]]/Launatafla[[#This Row],[Meðal heildarlaun sl. 3M fyrir skatta]],0) -> 0
I105: =+Launatafla[[#This Row],[Starfshlutfall fyrir]]-Launatafla[[#This Row],[Skerðing starfshlutfalls]] -> 0 | J105: =+IF(OR(Launatafla[[#This Row],[Skerðing starfshlutfalls]]>Hámarkslækkun_starfshl,Launatafla[[#This Row],[Skerðing starfshlutfalls]]<Lágmarkslækkun_starfshl),0,Atvinnuleysisbætur*Launatafla[[#This Row],[Skerðing starfshlutfalls]]) -> 0 | K105: =IFERROR(Launatafla[[#This Row],[Meðal heildarlaun sl. 3M fyrir skatta]]/Launatafla[[#This Row],[Starfshlutfall fyrir]],0)*(Launatafla[[#This Row],[Starfshlutfall fyrir]]-Launatafla[[#This Row],[Skerðing starfshlutfalls]]) -> 0 | L105: =+Launatafla[[#This Row],[Atvinnuleysisbætur fyrir skerðingu]]+Launatafla[[#This Row],[Laun frá launagreiðanda]] -> 0 | M105: =-MAX(Launatafla[[#This Row],[Laun með bótum án skerðingar]]-Launatafla[[#This Row],[Meðal heildarlaun sl. 3M fyrir skatta]]*Hámarkshlutfall_af_launum,0) -> 0 | N105: =-MIN(MAX(Launatafla[[#This Row],[Laun með bótum án skerðingar]]-Hámarkslaun,0),Launatafla[[#This Row],[Atvinnuleysisbætur fyrir skerðingu]]) -> 0 | O105: =+MIN(Launatafla[[#This Row],[Skerðing v/ hámarkshlutfalls]:[Skerðing v/ hámarkslauna]]) -> 0 | P105: =+IF(Launatafla[[#This Row],[Atvinnuleysisbætur fyrir skerðingu]]=0,0, MAX(MIN(Lágmarkslaun_fullt_starf,Launatafla[[#This Row],[Meðal heildarlaun sl. 3M fyrir skatta]]/Launatafla[[#This Row],[Starfshlutfall fyrir]])*Launatafla[[#This Row],[Starfshlutfall fyrir]]-(Launatafla[[#This Row],[Laun frá launagreiðanda]]+Launatafla[[#This Row],[Atvinnuleysisbætur fyrir skerðingu]]+Launatafla[[#This Row],[Skerðing v/ samtals]]),0)) -> 0 | Q105: =+Launatafla[[#This Row],[Atvinnuleysisbætur fyrir skerðingu]]+Launatafla[[#This Row],[Skerðing v/ samtals]]+Launatafla[[#This Row],[Viðbót v/ tryggðra lágmarkslauna]] -> 0 | R105: =+Launatafla[[#This Row],[Laun frá launagreiðanda]]+Launatafla[[#This Row],[Laun frá ríkissjóði]] -> 0 | S105: =IFERROR(Launatafla[[#This Row],[Heildarlaun]]/Launatafla[[#This Row],[Meðal heildarlaun sl. 3M fyrir skatta]],0) -> 0
I106: =+Launatafla[[#This Row],[Starfshlutfall fyrir]]-Launatafla[[#This Row],[Skerðing starfshlutfalls]] -> 0 | J106: =+IF(OR(Launatafla[[#This Row],[Skerðing starfshlutfalls]]>Hámarkslækkun_starfshl,Launatafla[[#This Row],[Skerðing starfshlutfalls]]<Lágmarkslækkun_starfshl),0,Atvinnuleysisbætur*Launatafla[[#This Row],[Skerðing starfshlutfalls]]) -> 0 | K106: =IFERROR(Launatafla[[#This Row],[Meðal heildarlaun sl. 3M fyrir skatta]]/Launatafla[[#This Row],[Starfshlutfall fyrir]],0)*(Launatafla[[#This Row],[Starfshlutfall fyrir]]-Launatafla[[#This Row],[Skerðing starfshlutfalls]]) -> 0 | L106: =+Launatafla[[#This Row],[Atvinnuleysisbætur fyrir skerðingu]]+Launatafla[[#This Row],[Laun frá launagreiðanda]] -> 0 | M106: =-MAX(Launatafla[[#This Row],[Laun með bótum án skerðingar]]-Launatafla[[#This Row],[Meðal heildarlaun sl. 3M fyrir skatta]]*Hámarkshlutfall_af_launum,0) -> 0 | N106: =-MIN(MAX(Launatafla[[#This Row],[Laun með bótum án skerðingar]]-Hámarkslaun,0),Launatafla[[#This Row],[Atvinnuleysisbætur fyrir skerðingu]]) -> 0 | O106: =+MIN(Launatafla[[#This Row],[Skerðing v/ hámarkshlutfalls]:[Skerðing v/ hámarkslauna]]) -> 0 | P106: =+IF(Launatafla[[#This Row],[Atvinnuleysisbætur fyrir skerðingu]]=0,0, MAX(MIN(Lágmarkslaun_fullt_starf,Launatafla[[#This Row],[Meðal heildarlaun sl. 3M fyrir skatta]]/Launatafla[[#This Row],[Starfshlutfall fyrir]])*Launatafla[[#This Row],[Starfshlutfall fyrir]]-(Launatafla[[#This Row],[Laun frá launagreiðanda]]+Launatafla[[#This Row],[Atvinnuleysisbætur fyrir skerðingu]]+Launatafla[[#This Row],[Skerðing v/ samtals]]),0)) -> 0 | Q106: =+Launatafla[[#This Row],[Atvinnuleysisbætur fyrir skerðingu]]+Launatafla[[#This Row],[Skerðing v/ samtals]]+Launatafla[[#This Row],[Viðbót v/ tryggðra lágmarkslauna]] -> 0 | R106: =+Launatafla[[#This Row],[Laun frá launagreiðanda]]+Launatafla[[#This Row],[Laun frá ríkissjóði]] -> 0 | S106: =IFERROR(Launatafla[[#This Row],[Heildarlaun]]/Launatafla[[#This Row],[Meðal heildarlaun sl. 3M fyrir skatta]],0) -> 0
I107: =+Launatafla[[#This Row],[Starfshlutfall fyrir]]-Launatafla[[#This Row],[Skerðing starfshlutfalls]] -> 0 | J107: =+IF(OR(Launatafla[[#This Row],[Skerðing starfshlutfalls]]>Hámarkslækkun_starfshl,Launatafla[[#This Row],[Skerðing starfshlutfalls]]<Lágmarkslækkun_starfshl),0,Atvinnuleysisbætur*Launatafla[[#This Row],[Skerðing starfshlutfalls]]) -> 0 | K107: =IFERROR(Launatafla[[#This Row],[Meðal heildarlaun sl. 3M fyrir skatta]]/Launatafla[[#This Row],[Starfshlutfall fyrir]],0)*(Launatafla[[#This Row],[Starfshlutfall fyrir]]-Launatafla[[#This Row],[Skerðing starfshlutfalls]]) -> 0 | L107: =+Launatafla[[#This Row],[Atvinnuleysisbætur fyrir skerðingu]]+Launatafla[[#This Row],[Laun frá launagreiðanda]] -> 0 | M107: =-MAX(Launatafla[[#This Row],[Laun með bótum án skerðingar]]-Launatafla[[#This Row],[Meðal heildarlaun sl. 3M fyrir skatta]]*Hámarkshlutfall_af_launum,0) -> 0 | N107: =-MIN(MAX(Launatafla[[#This Row],[Laun með bótum án skerðingar]]-Hámarkslaun,0),Launatafla[[#This Row],[Atvinnuleysisbætur fyrir skerðingu]]) -> 0 | O107: =+MIN(Launatafla[[#This Row],[Skerðing v/ hámarkshlutfalls]:[Skerðing v/ hámarkslauna]]) -> 0 | P107: =+IF(Launatafla[[#This Row],[Atvinnuleysisbætur fyrir skerðingu]]=0,0, MAX(MIN(Lágmarkslaun_fullt_starf,Launatafla[[#This Row],[Meðal heildarlaun sl. 3M fyrir skatta]]/Launatafla[[#This Row],[Starfshlutfall fyrir]])*Launatafla[[#This Row],[Starfshlutfall fyrir]]-(Launatafla[[#This Row],[Laun frá launagreiðanda]]+Launatafla[[#This Row],[Atvinnuleysisbætur fyrir skerðingu]]+Launatafla[[#This Row],[Skerðing v/ samtals]]),0)) -> 0 | Q107: =+Launatafla[[#This Row],[Atvinnuleysisbætur fyrir skerðingu]]+Launatafla[[#This Row],[Skerðing v/ samtals]]+Launatafla[[#This Row],[Viðbót v/ tryggðra lágmarkslauna]] -> 0 | R107: =+Launatafla[[#This Row],[Laun frá launagreiðanda]]+Launatafla[[#This Row],[Laun frá ríkissjóði]] -> 0 | S107: =IFERROR(Launatafla[[#This Row],[Heildarlaun]]/Launatafla[[#This Row],[Meðal heildarlaun sl. 3M fyrir skatta]],0) -> 0
I108: =+Launatafla[[#This Row],[Starfshlutfall fyrir]]-Launatafla[[#This Row],[Skerðing starfshlutfalls]] -> 0 | J108: =+IF(OR(Launatafla[[#This Row],[Skerðing starfshlutfalls]]>Hámarkslækkun_starfshl,Launatafla[[#This Row],[Skerðing starfshlutfalls]]<Lágmarkslækkun_starfshl),0,Atvinnuleysisbætur*Launatafla[[#This Row],[Skerðing starfshlutfalls]]) -> 0 | K108: =IFERROR(Launatafla[[#This Row],[Meðal heildarlaun sl. 3M fyrir skatta]]/Launatafla[[#This Row],[Starfshlutfall fyrir]],0)*(Launatafla[[#This Row],[Starfshlutfall fyrir]]-Launatafla[[#This Row],[Skerðing starfshlutfalls]]) -> 0 | L108: =+Launatafla[[#This Row],[Atvinnuleysisbætur fyrir skerðingu]]+Launatafla[[#This Row],[Laun frá launagreiðanda]] -> 0 | M108: =-MAX(Launatafla[[#This Row],[Laun með bótum án skerðingar]]-Launatafla[[#This Row],[Meðal heildarlaun sl. 3M fyrir skatta]]*Hámarkshlutfall_af_launum,0) -> 0 | N108: =-MIN(MAX(Launatafla[[#This Row],[Laun með bótum án skerðingar]]-Hámarkslaun,0),Launatafla[[#This Row],[Atvinnuleysisbætur fyrir skerðingu]]) -> 0 | O108: =+MIN(Launatafla[[#This Row],[Skerðing v/ hámarkshlutfalls]:[Skerðing v/ hámarkslauna]]) -> 0 | P108: =+IF(Launatafla[[#This Row],[Atvinnuleysisbætur fyrir skerðingu]]=0,0, MAX(MIN(Lágmarkslaun_fullt_starf,Launatafla[[#This Row],[Meðal heildarlaun sl. 3M fyrir skatta]]/Launatafla[[#This Row],[Starfshlutfall fyrir]])*Launatafla[[#This Row],[Starfshlutfall fyrir]]-(Launatafla[[#This Row],[Laun frá launagreiðanda]]+Launatafla[[#This Row],[Atvinnuleysisbætur fyrir skerðingu]]+Launatafla[[#This Row],[Skerðing v/ samtals]]),0)) -> 0 | Q108: =+Launatafla[[#This Row],[Atvinnuleysisbætur fyrir skerðingu]]+Launatafla[[#This Row],[Skerðing v/ samtals]]+Launatafla[[#This Row],[Viðbót v/ tryggðra lágmarkslauna]] -> 0 | R108: =+Launatafla[[#This Row],[Laun frá launagreiðanda]]+Launatafla[[#This Row],[Laun frá ríkissjóði]] -> 0 | S108: =IFERROR(Launatafla[[#This Row],[Heildarlaun]]/Launatafla[[#This Row],[Meðal heildarlaun sl. 3M fyrir skatta]],0) -> 0
I109: =+Launatafla[[#This Row],[Starfshlutfall fyrir]]-Launatafla[[#This Row],[Skerðing starfshlutfalls]] -> 0 | J109: =+IF(OR(Launatafla[[#This Row],[Skerðing starfshlutfalls]]>Hámarkslækkun_starfshl,Launatafla[[#This Row],[Skerðing starfshlutfalls]]<Lágmarkslækkun_starfshl),0,Atvinnuleysisbætur*Launatafla[[#This Row],[Skerðing starfshlutfalls]]) -> 0 | K109: =IFERROR(Launatafla[[#This Row],[Meðal heildarlaun sl. 3M fyrir skatta]]/Launatafla[[#This Row],[Starfshlutfall fyrir]],0)*(Launatafla[[#This Row],[Starfshlutfall fyrir]]-Launatafla[[#This Row],[Skerðing starfshlutfalls]]) -> 0 | L109: =+Launatafla[[#This Row],[Atvinnuleysisbætur fyrir skerðingu]]+Launatafla[[#This Row],[Laun frá launagreiðanda]] -> 0 | M109: =-MAX(Launatafla[[#This Row],[Laun með bótum án skerðingar]]-Launatafla[[#This Row],[Meðal heildarlaun sl. 3M fyrir skatta]]*Hámarkshlutfall_af_launum,0) -> 0 | N109: =-MIN(MAX(Launatafla[[#This Row],[Laun með bótum án skerðingar]]-Hámarkslaun,0),Launatafla[[#This Row],[Atvinnuleysisbætur fyrir skerðingu]]) -> 0 | O109: =+MIN(Launatafla[[#This Row],[Skerðing v/ hámarkshlutfalls]:[Skerðing v/ hámarkslauna]]) -> 0 | P109: =+IF(Launatafla[[#This Row],[Atvinnuleysisbætur fyrir skerðingu]]=0,0, MAX(MIN(Lágmarkslaun_fullt_starf,Launatafla[[#This Row],[Meðal heildarlaun sl. 3M fyrir skatta]]/Launatafla[[#This Row],[Starfshlutfall fyrir]])*Launatafla[[#This Row],[Starfshlutfall fyrir]]-(Launatafla[[#This Row],[Laun frá launagreiðanda]]+Launatafla[[#This Row],[Atvinnuleysisbætur fyrir skerðingu]]+Launatafla[[#This Row],[Skerðing v/ samtals]]),0)) -> 0 | Q109: =+Launatafla[[#This Row],[Atvinnuleysisbætur fyrir skerðingu]]+Launatafla[[#This Row],[Skerðing v/ samtals]]+Launatafla[[#This Row],[Viðbót v/ tryggðra lágmarkslauna]] -> 0 | R109: =+Launatafla[[#This Row],[Laun frá launagreiðanda]]+Launatafla[[#This Row],[Laun frá ríkissjóði]] -> 0 | S109: =IFERROR(Launatafla[[#This Row],[Heildarlaun]]/Launatafla[[#This Row],[Meðal heildarlaun sl. 3M fyrir skatta]],0) -> 0
I110: =+Launatafla[[#This Row],[Starfshlutfall fyrir]]-Launatafla[[#This Row],[Skerðing starfshlutfalls]] -> 0 | J110: =+IF(OR(Launatafla[[#This Row],[Skerðing starfshlutfalls]]>Hámarkslækkun_starfshl,Launatafla[[#This Row],[Skerðing starfshlutfalls]]<Lágmarkslækkun_starfshl),0,Atvinnuleysisbætur*Launatafla[[#This Row],[Skerðing starfshlutfalls]]) -> 0 | K110: =IFERROR(Launatafla[[#This Row],[Meðal heildarlaun sl. 3M fyrir skatta]]/Launatafla[[#This Row],[Starfshlutfall fyrir]],0)*(Launatafla[[#This Row],[Starfshlutfall fyrir]]-Launatafla[[#This Row],[Skerðing starfshlutfalls]]) -> 0 | L110: =+Launatafla[[#This Row],[Atvinnuleysisbætur fyrir skerðingu]]+Launatafla[[#This Row],[Laun frá launagreiðanda]] -> 0 | M110: =-MAX(Launatafla[[#This Row],[Laun með bótum án skerðingar]]-Launatafla[[#This Row],[Meðal heildarlaun sl. 3M fyrir skatta]]*Hámarkshlutfall_af_launum,0) -> 0 | N110: =-MIN(MAX(Launatafla[[#This Row],[Laun með bótum án skerðingar]]-Hámarkslaun,0),Launatafla[[#This Row],[Atvinnuleysisbætur fyrir skerðingu]]) -> 0 | O110: =+MIN(Launatafla[[#This Row],[Skerðing v/ hámarkshlutfalls]:[Skerðing v/ hámarkslauna]]) -> 0 | P110: =+IF(Launatafla[[#This Row],[Atvinnuleysisbætur fyrir skerðingu]]=0,0, MAX(MIN(Lágmarkslaun_fullt_starf,Launatafla[[#This Row],[Meðal heildarlaun sl. 3M fyrir skatta]]/Launatafla[[#This Row],[Starfshlutfall fyrir]])*Launatafla[[#This Row],[Starfshlutfall fyrir]]-(Launatafla[[#This Row],[Laun frá launagreiðanda]]+Launatafla[[#This Row],[Atvinnuleysisbætur fyrir skerðingu]]+Launatafla[[#This Row],[Skerðing v/ samtals]]),0)) -> 0 | Q110: =+Launatafla[[#This Row],[Atvinnuleysisbætur fyrir skerðingu]]+Launatafla[[#This Row],[Skerðing v/ samtals]]+Launatafla[[#This Row],[Viðbót v/ tryggðra lágmarkslauna]] -> 0 | R110: =+Launatafla[[#This Row],[Laun frá launagreiðanda]]+Launatafla[[#This Row],[Laun frá ríkissjóði]] -> 0 | S110: =IFERROR(Launatafla[[#This Row],[Heildarlaun]]/Launatafla[[#This Row],[Meðal heildarlaun sl. 3M fyrir skatta]],0) -> 0
I111: =+Launatafla[[#This Row],[Starfshlutfall fyrir]]-Launatafla[[#This Row],[Skerðing starfshlutfalls]] -> 0 | J111: =+IF(OR(Launatafla[[#This Row],[Skerðing starfshlutfalls]]>Hámarkslækkun_starfshl,Launatafla[[#This Row],[Skerðing starfshlutfalls]]<Lágmarkslækkun_starfshl),0,Atvinnuleysisbætur*Launatafla[[#This Row],[Skerðing starfshlutfalls]]) -> 0 | K111: =IFERROR(Launatafla[[#This Row],[Meðal heildarlaun sl. 3M fyrir skatta]]/Launatafla[[#This Row],[Starfshlutfall fyrir]],0)*(Launatafla[[#This Row],[Starfshlutfall fyrir]]-Launatafla[[#This Row],[Skerðing starfshlutfalls]]) -> 0 | L111: =+Launatafla[[#This Row],[Atvinnuleysisbætur fyrir skerðingu]]+Launatafla[[#This Row],[Laun frá launagreiðanda]] -> 0 | M111: =-MAX(Launatafla[[#This Row],[Laun með bótum án skerðingar]]-Launatafla[[#This Row],[Meðal heildarlaun sl. 3M fyrir skatta]]*Hámarkshlutfall_af_launum,0) -> 0 | N111: =-MIN(MAX(Launatafla[[#This Row],[Laun með bótum án skerðingar]]-Hámarkslaun,0),Launatafla[[#This Row],[Atvinnuleysisbætur fyrir skerðingu]]) -> 0 | O111: =+MIN(Launatafla[[#This Row],[Skerðing v/ hámarkshlutfalls]:[Skerðing v/ hámarkslauna]]) -> 0 | P111: =+IF(Launatafla[[#This Row],[Atvinnuleysisbætur fyrir skerðingu]]=0,0, MAX(MIN(Lágmarkslaun_fullt_starf,Launatafla[[#This Row],[Meðal heildarlaun sl. 3M fyrir skatta]]/Launatafla[[#This Row],[Starfshlutfall fyrir]])*Launatafla[[#This Row],[Starfshlutfall fyrir]]-(Launatafla[[#This Row],[Laun frá launagreiðanda]]+Launatafla[[#This Row],[Atvinnuleysisbætur fyrir skerðingu]]+Launatafla[[#This Row],[Skerðing v/ samtals]]),0)) -> 0 | Q111: =+Launatafla[[#This Row],[Atvinnuleysisbætur fyrir skerðingu]]+Launatafla[[#This Row],[Skerðing v/ samtals]]+Launatafla[[#This Row],[Viðbót v/ tryggðra lágmarkslauna]] -> 0 | R111: =+Launatafla[[#This Row],[Laun frá launagreiðanda]]+Launatafla[[#This Row],[Laun frá ríkissjóði]] -> 0 | S111: =IFERROR(Launatafla[[#This Row],[Heildarlaun]]/Launatafla[[#This Row],[Meðal heildarlaun sl. 3M fyrir skatta]],0) -> 0
I112: =+Launatafla[[#This Row],[Starfshlutfall fyrir]]-Launatafla[[#This Row],[Skerðing starfshlutfalls]] -> 0 | J112: =+IF(OR(Launatafla[[#This Row],[Skerðing starfshlutfalls]]>Hámarkslækkun_starfshl,Launatafla[[#This Row],[Skerðing starfshlutfalls]]<Lágmarkslækkun_starfshl),0,Atvinnuleysisbætur*Launatafla[[#This Row],[Skerðing starfshlutfalls]]) -> 0 | K112: =IFERROR(Launatafla[[#This Row],[Meðal heildarlaun sl. 3M fyrir skatta]]/Launatafla[[#This Row],[Starfshlutfall fyrir]],0)*(Launatafla[[#This Row],[Starfshlutfall fyrir]]-Launatafla[[#This Row],[Skerðing starfshlutfalls]]) -> 0 | L112: =+Launatafla[[#This Row],[Atvinnuleysisbætur fyrir skerðingu]]+Launatafla[[#This Row],[Laun frá launagreiðanda]] -> 0 | M112: =-MAX(Launatafla[[#This Row],[Laun með bótum án skerðingar]]-Launatafla[[#This Row],[Meðal heildarlaun sl. 3M fyrir skatta]]*Hámarkshlutfall_af_launum,0) -> 0 | N112: =-MIN(MAX(Launatafla[[#This Row],[Laun með bótum án skerðingar]]-Hámarkslaun,0),Launatafla[[#This Row],[Atvinnuleysisbætur fyrir skerðingu]]) -> 0 | O112: =+MIN(Launatafla[[#This Row],[Skerðing v/ hámarkshlutfalls]:[Skerðing v/ hámarkslauna]]) -> 0 | P112: =+IF(Launatafla[[#This Row],[Atvinnuleysisbætur fyrir skerðingu]]=0,0, MAX(MIN(Lágmarkslaun_fullt_starf,Launatafla[[#This Row],[Meðal heildarlaun sl. 3M fyrir skatta]]/Launatafla[[#This Row],[Starfshlutfall fyrir]])*Launatafla[[#This Row],[Starfshlutfall fyrir]]-(Launatafla[[#This Row],[Laun frá launagreiðanda]]+Launatafla[[#This Row],[Atvinnuleysisbætur fyrir skerðingu]]+Launatafla[[#This Row],[Skerðing v/ samtals]]),0)) -> 0 | Q112: =+Launatafla[[#This Row],[Atvinnuleysisbætur fyrir skerðingu]]+Launatafla[[#This Row],[Skerðing v/ samtals]]+Launatafla[[#This Row],[Viðbót v/ tryggðra lágmarkslauna]] -> 0 | R112: =+Launatafla[[#This Row],[Laun frá launagreiðanda]]+Launatafla[[#This Row],[Laun frá ríkissjóði]] -> 0 | S112: =IFERROR(Launatafla[[#This Row],[Heildarlaun]]/Launatafla[[#This Row],[Meðal heildarlaun sl. 3M fyrir skatta]],0) -> 0
I113: =+Launatafla[[#This Row],[Starfshlutfall fyrir]]-Launatafla[[#This Row],[Skerðing starfshlutfalls]] -> 0 | J113: =+IF(OR(Launatafla[[#This Row],[Skerðing starfshlutfalls]]>Hámarkslækkun_starfshl,Launatafla[[#This Row],[Skerðing starfshlutfalls]]<Lágmarkslækkun_starfshl),0,Atvinnuleysisbætur*Launatafla[[#This Row],[Skerðing starfshlutfalls]]) -> 0 | K113: =IFERROR(Launatafla[[#This Row],[Meðal heildarlaun sl. 3M fyrir skatta]]/Launatafla[[#This Row],[Starfshlutfall fyrir]],0)*(Launatafla[[#This Row],[Starfshlutfall fyrir]]-Launatafla[[#This Row],[Skerðing starfshlutfalls]]) -> 0 | L113: =+Launatafla[[#This Row],[Atvinnuleysisbætur fyrir skerðingu]]+Launatafla[[#This Row],[Laun frá launagreiðanda]] -> 0 | M113: =-MAX(Launatafla[[#This Row],[Laun með bótum án skerðingar]]-Launatafla[[#This Row],[Meðal heildarlaun sl. 3M fyrir skatta]]*Hámarkshlutfall_af_launum,0) -> 0 | N113: =-MIN(MAX(Launatafla[[#This Row],[Laun með bótum án skerðingar]]-Hámarkslaun,0),Launatafla[[#This Row],[Atvinnuleysisbætur fyrir skerðingu]]) -> 0 | O113: =+MIN(Launatafla[[#This Row],[Skerðing v/ hámarkshlutfalls]:[Skerðing v/ hámarkslauna]]) -> 0 | P113: =+IF(Launatafla[[#This Row],[Atvinnuleysisbætur fyrir skerðingu]]=0,0, MAX(MIN(Lágmarkslaun_fullt_starf,Launatafla[[#This Row],[Meðal heildarlaun sl. 3M fyrir skatta]]/Launatafla[[#This Row],[Starfshlutfall fyrir]])*Launatafla[[#This Row],[Starfshlutfall fyrir]]-(Launatafla[[#This Row],[Laun frá launagreiðanda]]+Launatafla[[#This Row],[Atvinnuleysisbætur fyrir skerðingu]]+Launatafla[[#This Row],[Skerðing v/ samtals]]),0)) -> 0 | Q113: =+Launatafla[[#This Row],[Atvinnuleysisbætur fyrir skerðingu]]+Launatafla[[#This Row],[Skerðing v/ samtals]]+Launatafla[[#This Row],[Viðbót v/ tryggðra lágmarkslauna]] -> 0 | R113: =+Launatafla[[#This Row],[Laun frá launagreiðanda]]+Launatafla[[#This Row],[Laun frá ríkissjóði]] -> 0 | S113: =IFERROR(Launatafla[[#This Row],[Heildarlaun]]/Launatafla[[#This Row],[Meðal heildarlaun sl. 3M fyrir skatta]],0) -> 0
I114: =+Launatafla[[#This Row],[Starfshlutfall fyrir]]-Launatafla[[#This Row],[Skerðing starfshlutfalls]] -> 0 | J114: =+IF(OR(Launatafla[[#This Row],[Skerðing starfshlutfalls]]>Hámarkslækkun_starfshl,Launatafla[[#This Row],[Skerðing starfshlutfalls]]<Lágmarkslækkun_starfshl),0,Atvinnuleysisbætur*Launatafla[[#This Row],[Skerðing starfshlutfalls]]) -> 0 | K114: =IFERROR(Launatafla[[#This Row],[Meðal heildarlaun sl. 3M fyrir skatta]]/Launatafla[[#This Row],[Starfshlutfall fyrir]],0)*(Launatafla[[#This Row],[Starfshlutfall fyrir]]-Launatafla[[#This Row],[Skerðing starfshlutfalls]]) -> 0 | L114: =+Launatafla[[#This Row],[Atvinnuleysisbætur fyrir skerðingu]]+Launatafla[[#This Row],[Laun frá launagreiðanda]] -> 0 | M114: =-MAX(Launatafla[[#This Row],[Laun með bótum án skerðingar]]-Launatafla[[#This Row],[Meðal heildarlaun sl. 3M fyrir skatta]]*Hámarkshlutfall_af_launum,0) -> 0 | N114: =-MIN(MAX(Launatafla[[#This Row],[Laun með bótum án skerðingar]]-Hámarkslaun,0),Launatafla[[#This Row],[Atvinnuleysisbætur fyrir skerðingu]]) -> 0 | O114: =+MIN(Launatafla[[#This Row],[Skerðing v/ hámarkshlutfalls]:[Skerðing v/ hámarkslauna]]) -> 0 | P114: =+IF(Launatafla[[#This Row],[Atvinnuleysisbætur fyrir skerðingu]]=0,0, MAX(MIN(Lágmarkslaun_fullt_starf,Launatafla[[#This Row],[Meðal heildarlaun sl. 3M fyrir skatta]]/Launatafla[[#This Row],[Starfshlutfall fyrir]])*Launatafla[[#This Row],[Starfshlutfall fyrir]]-(Launatafla[[#This Row],[Laun frá launagreiðanda]]+Launatafla[[#This Row],[Atvinnuleysisbætur fyrir skerðingu]]+Launatafla[[#This Row],[Skerðing v/ samtals]]),0)) -> 0 | Q114: =+Launatafla[[#This Row],[Atvinnuleysisbætur fyrir skerðingu]]+Launatafla[[#This Row],[Skerðing v/ samtals]]+Launatafla[[#This Row],[Viðbót v/ tryggðra lágmarkslauna]] -> 0 | R114: =+Launatafla[[#This Row],[Laun frá launagreiðanda]]+Launatafla[[#This Row],[Laun frá ríkissjóði]] -> 0 | S114: =IFERROR(Launatafla[[#This Row],[Heildarlaun]]/Launatafla[[#This Row],[Meðal heildarlaun sl. 3M fyrir skatta]],0) -> 0
I115: =+Launatafla[[#This Row],[Starfshlutfall fyrir]]-Launatafla[[#This Row],[Skerðing starfshlutfalls]] -> 0 | J115: =+IF(OR(Launatafla[[#This Row],[Skerðing starfshlutfalls]]>Hámarkslækkun_starfshl,Launatafla[[#This Row],[Skerðing starfshlutfalls]]<Lágmarkslækkun_starfshl),0,Atvinnuleysisbætur*Launatafla[[#This Row],[Skerðing starfshlutfalls]]) -> 0 | K115: =IFERROR(Launatafla[[#This Row],[Meðal heildarlaun sl. 3M fyrir skatta]]/Launatafla[[#This Row],[Starfshlutfall fyrir]],0)*(Launatafla[[#This Row],[Starfshlutfall fyrir]]-Launatafla[[#This Row],[Skerðing starfshlutfalls]]) -> 0 | L115: =+Launatafla[[#This Row],[Atvinnuleysisbætur fyrir skerðingu]]+Launatafla[[#This Row],[Laun frá launagreiðanda]] -> 0 | M115: =-MAX(Launatafla[[#This Row],[Laun með bótum án skerðingar]]-Launatafla[[#This Row],[Meðal heildarlaun sl. 3M fyrir skatta]]*Hámarkshlutfall_af_launum,0) -> 0 | N115: =-MIN(MAX(Launatafla[[#This Row],[Laun með bótum án skerðingar]]-Hámarkslaun,0),Launatafla[[#This Row],[Atvinnuleysisbætur fyrir skerðingu]]) -> 0 | O115: =+MIN(Launatafla[[#This Row],[Skerðing v/ hámarkshlutfalls]:[Skerðing v/ hámarkslauna]]) -> 0 | P115: =+IF(Launatafla[[#This Row],[Atvinnuleysisbætur fyrir skerðingu]]=0,0, MAX(MIN(Lágmarkslaun_fullt_starf,Launatafla[[#This Row],[Meðal heildarlaun sl. 3M fyrir skatta]]/Launatafla[[#This Row],[Starfshlutfall fyrir]])*Launatafla[[#This Row],[Starfshlutfall fyrir]]-(Launatafla[[#This Row],[Laun frá launagreiðanda]]+Launatafla[[#This Row],[Atvinnuleysisbætur fyrir skerðingu]]+Launatafla[[#This Row],[Skerðing v/ samtals]]),0)) -> 0 | Q115: =+Launatafla[[#This Row],[Atvinnuleysisbætur fyrir skerðingu]]+Launatafla[[#This Row],[Skerðing v/ samtals]]+Launatafla[[#This Row],[Viðbót v/ tryggðra lágmarkslauna]] -> 0 | R115: =+Launatafla[[#This Row],[Laun frá launagreiðanda]]+Launatafla[[#This Row],[Laun frá ríkissjóði]] -> 0 | S115: =IFERROR(Launatafla[[#This Row],[Heildarlaun]]/Launatafla[[#This Row],[Meðal heildarlaun sl. 3M fyrir skatta]],0) -> 0
